Workbook

Sheet AER Sheet Heading (hidden)
B1: =INDEX(dms_Worksheet_List,MATCH(dms_Model,dms_Model_List)) -> REGULATORY REPORTING STATEMENT
B2: =INDEX(dms_TradingNameFull_List,MATCH(dms_TradingName,dms_TradingName_List)) -> Queensland Electricity Transmission Corporation Limited trading as Powerlink Queensland
B3: =dms_Header_Span -> 2020-21 - 2026-27
B4: XX
C11: EXPENDITURE
C12: =CONCATENATE("Forecast ($0's, real ",dms_DollarReal,")") -> Forecast ($0's, real June 2022)
C13: =dms_y1 -> 2020-21 | D13: =dms_y2 -> 2021-22 | E13: =dms_y3 -> 2022-23 | F13: =dms_y4 -> 2023-24 | G13: =dms_y5 -> 2024-25 | H13: =dms_y6 -> 2025-26 | I13: =dms_y7 -> 2026-27
C42: VOLUMES
C43: 0's
C44: =CRCP_y4 -> 2020-21 | D44: =CRCP_y5 -> 2021-22 | E44: =FRCP_y1 -> 2022-23 | F44: =FRCP_y2 -> 2023-24 | G44: =FRCP_y3 -> 2024-25 | H44: =FRCP_y4 -> 2025-26 | I44: =FRCP_y5 -> 2026-27

Sheet AER CF (hidden)
B1: AER CONDITIONAL FORMATTING
B3: CELLS FLAGED "Y" and greyed out will be greyed out in the worksheets.
B4: CONDITIONAL FORMATTING MAP
F5: =INDEX(dms_CF_3.6.1, MATCH(dms_TradingName,dms_CF_TradingName))="Y" | G5: =INDEX(dms_CF_3.6.5, MATCH(dms_TradingName,dms_CF_TradingName))="Y" | H5: =INDEX(dms_CF_3.6.6.1, MATCH(dms_TradingName,dms_CF_TradingName))="Y" | I5: =INDEX(dms_CF_3.6.6.2, MATCH(dms_TradingName,dms_CF_TradingName))="Y" | J5: =INDEX(dms_CF_3.6.6.3, MATCH(dms_TradingName,dms_CF_TradingName))="Y" | K5: =INDEX(dms_CF_3.6.7.1, MATCH(dms_TradingName,dms_CF_TradingName))="Y" | L5: =INDEX(dms_CF_3.6.7.2, MATCH(dms_TradingName,dms_CF_TradingName))="Y" | M5: =INDEX(dms_CF_3.6.7.3, MATCH(dms_TradingName,dms_CF_TradingName))="Y" | N5: =INDEX(dms_CF_3.6.7.4, MATCH(dms_TradingName,dms_CF_TradingName))="Y" | O5: =INDEX(dms_CF_3.6.8, MATCH(dms_TradingName,dms_CF_TradingName))="Y" | P5: =INDEX(dms_CF_4.1, MATCH(dms_TradingName,dms_CF_TradingName))="Y" | Q5: =INDEX(dms_CF_6.8, MATCH(dms_TradingName,dms_CF_TradingName))="Y" | R5: =INDEX(dms_CF_7.12, MATCH(dms_TradingName,dms_CF_TradingName))="Y" | S5: =INDEX(dms_CF_8.1_A, MATCH(dms_TradingName,dms_CF_TradingName))="Y" | T5: =INDEX(dms_CF_8.1_B, MATCH(dms_TradingName,dms_CF_TradingName))="Y" | U5: =INDEX(dms_CF_8.1_Neg, MATCH(dms_TradingName,dms_CF_TradingName))="Y" -> TRUE | V5: =INDEX(dms_CF_4.4.1_Neg, MATCH(dms_TradingName,dms_CF_TradingName))="Y" | Y5: =INDEX(dms_CF_F10, MATCH(dms_TradingName,dms_CF_TradingName))="Y"
B6: dms_CF_TradingName | C6: JurisdictionList | D6: Sector | E6: Segment | F6: dms_CF_3.6.1 | G6: dms_CF_3.6.5 | H6: dms_CF_3.6.6.1 | I6: dms_CF_3.6.6.2 | J6: dms_CF_3.6.6.3 | K6: dms_CF_3.6.7.1 | L6: dms_CF_3.6.7.2 | M6: dms_CF_3.6.7.3 | N6: dms_CF_3.6.7.4 | O6: dms_CF_3.6.8 | P6: dms_CF_4.1 | Q6: dms_CF_6.8 (set from dms_MAIFI_flag) | R6: dms_CF_7.12 | S6: dms_CF_8.1_A (and 8.4) | T6: dms_CF_8.1_B (and 8.4) | U6: dms_CF_8.1_Neg (and 8.4) | V6: dms_CF_4.4.1 | W6: dms_CF_MAIFI_flag (set from dms_MAIFI_flag) | X6: 9.5 TUOS (set from Jurisdiction) | Y6: dms_CF_F10
B7: Ausgrid | C7: NSW | D7: Electricity | E7: Distribution | G7: Y | H7: N | I7: Y | J7: Y | K7: N | L7: N | M7: N | N7: Y | O7: N | P7: N | Q7: =IFERROR(IF(dms_MAIFI_flag="Yes","N","Y"),"Y") -> Y | R7: Y | S7: N | T7: Y | U7: Y | V7: N | W7: =IFERROR(LEFT(dms_MAIFI_flag),"N") -> N | X7: =IF('AER CF'!$C7="Vic","Y","N") -> N
B8: Ausgrid (Tx Assets) | C8: NSW | D8: Electricity | E8: Distribution | G8: Y | H8: N | I8: Y | J8: Y | K8: N | L8: N | M8: N | N8: Y | O8: N | P8: N | Q8: Y | R8: Y | S8: N | T8: Y | U8: Y | V8: N | W8: =IFERROR(LEFT(dms_MAIFI_flag),"N") -> N | X8: =IF('AER CF'!$C8="Vic","Y","N") -> N
B9: AusNet (D) | C9: Vic | D9: Electricity | E9: Distribution | G9: N | H9: N | K9: N | L9: N | M9: N | N9: N | O9: N | P9: N | Q9: Y | R9: N | S9: N | T9: N | U9: Y | V9: N | W9: =IFERROR(LEFT(dms_MAIFI_flag),"N") -> N | X9: =IF('AER CF'!$C9="Vic","Y","N") -> Y
B10: AusNet (T) | C10: Vic | D10: Electricity | E10: Transmission | G10: N | K10: N | L10: N | M10: N | N10: N | O10: N | P10: Y | Q10: Y | R10: N | S10: N | T10: N | U10: Y | V10: N | W10: N | X10: =IF('AER CF'!$C10="Vic","Y","N") -> Y
B11: Amadeus | C11: NT | D11: Gas | E11: Transmission | G11: N | K11: N | L11: N | M11: N | N11: N | O11: N | P11: Y | Q11: Y | R11: N | S11: N | T11: N | U11: Y | V11: N | W11: N | X11: =IF('AER CF'!$C11="Vic","Y","N") -> N | Y11: N
B12: APA GasNet | C12: Vic | D12: Gas | E12: Transmission | G12: N | K12: N | L12: N | M12: N | N12: N | O12: N | P12: Y | Q12: Y | R12: N | S12: N | T12: N | U12: Y | V12: N | W12: N | X12: =IF('AER CF'!$C12="Vic","Y","N") -> Y | Y12: Y
B13: Australian Distribution Co. | C13: NSW | D13: Electricity | E13: Distribution | F13: N | G13: N | H13: N | I13: N | K13: N | L13: N | M13: N | N13: N | O13: N | P13: N | Q13: Y | R13: N | S13: N | T13: N | U13: N | V13: N | W13: N | X13: =IF('AER CF'!$C13="Vic","Y","N") -> N
B14: Australian Distribution Co. (Vic) | C14: Vic | D14: Electricity | E14: Distribution | F14: N | G14: N | H14: N | I14: N | K14: N | L14: N | M14: N | N14: N | O14: N | P14: N | Q14: Y | R14: N | S14: N | T14: N | U14: N | V14: N | W14: N | X14: =IF('AER CF'!$C14="Vic","Y","N") -> Y
B15: CitiPower | C15: Vic | D15: Electricity | E15: Distribution | G15: N | H15: N | K15: N | L15: N | M15: N | N15: N | O15: N | P15: N | Q15: Y | R15: N | S15: N | T15: N | U15: Y | V15: N | W15: N | X15: =IF('AER CF'!$C15="Vic","Y","N") -> Y
B16: Directlink | C16: Qld | D16: Electricity | E16: Transmission | G16: N | K16: N | L16: N | M16: N | N16: N | O16: N | P16: Y | Q16: Y | R16: N | S16: N | T16: Y | U16: Y | V16: N | W16: N | X16: =IF('AER CF'!$C16="Vic","Y","N") -> N
B17: ElectraNet | C17: SA | D17: Electricity | E17: Transmission | G17: N | K17: N | L17: N | M17: N | N17: N | O17: N | P17: Y | Q17: Y | R17: N | S17: N | T17: Y | U17: Y | V17: N | W17: N | X17: =IF('AER CF'!$C17="Vic","Y","N") -> N
B18: Endeavour Energy | C18: NSW | D18: Electricity | E18: Distribution | G18: Y | H18: N | I18: Y | J18: Y | K18: N | L18: N | M18: N | N18: Y | O18: N | P18: N | Q18: Y | R18: Y | S18: N | T18: Y | U18: Y | V18: Y | W18: N | X18: =IF('AER CF'!$C18="Vic","Y","N") -> N
B19: Energex | C19: Qld | D19: Electricity | E19: Distribution | G19: Y | H19: N | K19: N | L19: N | M19: N | N19: N | O19: N | P19: N | Q19: Y | R19: Y | S19: N | T19: Y | U19: Y | V19: Y | W19: N | X19: =IF('AER CF'!$C19="Vic","Y","N") -> N
B20: Ergon Energy | C20: Qld | D20: Electricity | E20: Distribution | G20: Y | H20: N | I20: Y | J20: Y | K20: N | L20: N | M20: N | N20: N | O20: N | P20: N | Q20: Y | R20: Y | S20: N | T20: Y | U20: Y | V20: N | W20: N | X20: =IF('AER CF'!$C20="Vic","Y","N") -> N
B21: Essential Energy | C21: NSW | D21: Electricity | E21: Distribution | G21: Y | H21: N | I21: Y | J21: Y | K21: N | L21: N | M21: N | N21: Y | O21: N | P21: N | Q21: Y | R21: Y | S21: N | T21: Y | U21: Y | V21: N | W21: N | X21: =IF('AER CF'!$C21="Vic","Y","N") -> N
B22: Evoenergy Distribution | C22: ACT | D22: Electricity | E22: Distribution | G22: Y | H22: N | I22: Y | J22: Y | K22: Y | L22: Y | M22: N | N22: Y | O22: N | P22: Y | Q22: Y | R22: Y | S22: N | T22: Y | U22: Y | V22: N | W22: N | X22: =IF('AER CF'!$C22="Vic","Y","N") -> N
B23: Evoenergy Distribution (Tx Assets) | C23: ACT | D23: Electricity | E23: Distribution | G23: Y | H23: N | I23: Y | J23: Y | K23: Y | L23: Y | M23: N | N23: Y | O23: N | P23: Y | Q23: Y | R23: Y | S23: N | T23: Y | U23: Y | V23: N | W23: N | X23: =IF('AER CF'!$C23="Vic","Y","N") -> N
B24: Jemena Electricity | C24: Vic | D24: Electricity | E24: Distribution | G24: N | H24: N | K24: N | L24: N | M24: N | N24: N | O24: N | P24: N | Q24: Y | R24: N | S24: N | T24: N | U24: Y | V24: N | W24: N | X24: =IF('AER CF'!$C24="Vic","Y","N") -> Y
B25: Murraylink | C25: SA | D25: Electricity | E25: Transmission | G25: N | K25: N | L25: N | M25: N | N25: N | O25: N | P25: Y | Q25: Y | R25: N | S25: N | T25: Y | U25: Y | V25: N | W25: N | X25: =IF('AER CF'!$C25="Vic","Y","N") -> N
B26: Power and Water | C26: NT | D26: Electricity | E26: Distribution | G26: N | H26: N | K26: N | L26: Y | M26: N | N26: N | O26: N | P26: Y | Q26: Y | R26: Y | S26: N | T26: Y | U26: Y | V26: N | W26: N | X26: =IF('AER CF'!$C26="Vic","Y","N") -> N
B27: Powercor Australia | C27: Vic | D27: Electricity | E27: Distribution | G27: N | H27: N | K27: N | L27: N | M27: N | N27: N | O27: N | P27: N | Q27: Y | R27: N | S27: N | T27: N | U27: Y | V27: N | W27: N | X27: =IF('AER CF'!$C27="Vic","Y","N") -> Y
B28: Powerlink | C28: Qld | D28: Electricity | E28: Transmission | G28: N | K28: N | L28: N | M28: N | N28: N | O28: N | P28: Y | Q28: Y | R28: N | S28: N | T28: Y | U28: Y | V28: N | W28: N | X28: =IF('AER CF'!$C28="Vic","Y","N") -> N
B29: Roma to Brisbane Pipeline | C29: Qld | D29: Gas | E29: Transmission | G29: N | K29: N | L29: N | M29: N | N29: N | O29: N | P29: Y | Q29: Y | R29: N | S29: N | T29: N | U29: Y | V29: N | W29: N | X29: =IF('AER CF'!$C29="Vic","Y","N") -> N | Y29: Y
B30: SA Power Networks | C30: SA | D30: Electricity | E30: Distribution | G30: Y | H30: N | K30: N | L30: N | M30: N | N30: N | O30: N | P30: N | Q30: Y | R30: Y | S30: N | T30: Y | U30: N | V30: N | W30: N | X30: =IF('AER CF'!$C30="Vic","Y","N") -> N
B31: TasNetworks (D) | C31: Tas | D31: Electricity | E31: Distribution | G31: Y | H31: N | K31: N | L31: N | M31: N | N31: N | O31: N | P31: N | Q31: Y | R31: Y | S31: N | T31: Y | U31: Y | V31: N | W31: N | X31: =IF('AER CF'!$C31="Vic","Y","N") -> N
B32: TasNetworks (T) | C32: Tas | D32: Electricity | E32: Transmission | G32: N | K32: N | L32: N | M32: N | N32: N | O32: N | P32: Y | Q32: Y | R32: N | S32: N | T32: Y | U32: Y | V32: N | W32: N | X32: =IF('AER CF'!$C32="Vic","Y","N") -> N
B33: TransGrid | C33: NSW | D33: Electricity | E33: Transmission | G33: N | K33: N | L33: N | M33: N | N33: N | O33: N | P33: Y | Q33: Y | R33: N | S33: N | T33: Y | U33: Y | V33: N | W33: N | X33: =IF('AER CF'!$C33="Vic","Y","N") -> N
B34: United Energy | C34: Vic | D34: Electricity | E34: Distribution | G34: N | H34: N | K34: N | L34: N | M34: N | N34: N | O34: N | P34: N | Q34: Y | R34: N | S34: N | T34: N | U34: Y | V34: N | W34: N | X34: =IF('AER CF'!$C34="Vic","Y","N") -> Y
B37: Confidential
B38: Amended
B40: Worksheet 6.2 STPIS reliability
B41: Formula | F41: Applied to:
B43: =INDEX(dms_CBD_flag,MATCH(dms_TradingName,dms_TradingName_List))="NO" | F43: $D$11,$D$17,$D$23,$D$33,$D$39,$D$45,$D$55,$D$61,$D$67,$D$77,$D$83,$D$89
B44: =INDEX(dms_Urban_flag,MATCH(dms_TradingName,dms_TradingName_List))="NO" | F44: $D$12,$D$18,$D$24,$D$56,$D$62,$D$78,$D$68,$D$84
B45: =INDEX(dms_ShortRural_flag,MATCH(dms_TradingName,dms_TradingName_List))="NO" | F45: $D$13,$D$19,$D$25,$D$57,$D$63,$D$69,$D$79,$D$85
B46: =INDEX(dms_LongRural_flag,MATCH(dms_TradingName,dms_TradingName_List))="NO" | F46: $D$14,$D$20,$D$26,$D$58,$D$64,$D$65,$D$70,$D$71,$D$80,$D$86
B47: =INDEX(dms_FeederType_5_flag,MATCH(dms_TradingName,dms_TradingName_List))="NO" | F47: $D$87,$D$81,$D$71,$D$65,$D$59,$D$49,$D$43,$D$37,$D$21,$D$15
B48: =dms_MAIFI_Flag="No" | F48: $D$55:$D$72
B51: Business & other details
B52: =(INDEX(dms_Model_Span,MATCH(dms_Model,dms_Model_List))>1)
B53: =(INDEX(dms_Model_Span,MATCH(dms_Model,dms_Model_List))=1)
B56: STYLES IN USE
B57: HEADING ONE | C57: dms_1
B58: HEADING TWO | C58: dms_2
B59: HEADING THREE | C59: dms_3
B60: HEADING FOUR | C60: dms_4
B61: HEADING FIVE | C61: dms_5
B62: 5.111 | C62: dms_NUM
B63: 0.0545 | C63: dms_NUM%
B64: 5.5555 | C64: dms_NUM3d
B65: Text description | C65: dms_Row_Locked
B66: Text description | C66: dms_Row1
B67: Text description | C67: dms_Row2
B68: Total | C68: dms_T1
B69: Total | C69: dms_T2
B70: EXPENSES | C70: dms_BH
B71: 2019 | C71: dms_BY1
B72: 2019 | C72: dms_BY2
B73: VOLUMES | C73: dms_GH
B74: 2019 | C74: dms_GY1
B75: 2019 | C75: dms_GY2

Sheet AER NRs (hidden)
B1: AER NAMED RANGES
B3: DROP DOWN SELECTORS USED IN WORKBOOKS
B5: COVER SHEET | C5: dms_DataQuality_List | D5: dms_Confid_status_List
C6: -- select -- | D6: -- select --
C7: Actual | D7: Public
C8: Estimate | D8: Confidential
C9: Consolidated
C12: For all files either AER or business needs to be able to specify the type of submission | D12: For PTRM & RFM templates we must provide a choice in case they change their form of control - otherwise it is drawn from the business specific lookup table above.
C13: dms_SourceList | D13: dms_FormControl_Choices
C14: -- select -- | D14: Revenue cap
C15: After appeal | D15: Revenue yield
C16: Draft decision | D16: Weighted average price cap
C17: Final decision
C18: PTRM update 1
C19: PTRM update 2
C20: PTRM update 3
C21: PTRM update 4
C22: PTRM update 5
C23: PTRM update 6
C24: PTRM update 7
C25: Recast
C26: Regulatory proposal
C27: Reporting
C28: Revised regulatory proposal
K31: This is used to create an image to insert on 6.3 STPIS sheet - not for dropdown lists. | N31: GAS
B32: CA & RESET RINS DNSP | C32: dms_DNSP_020301_SubstationType | D32: dms_DNSP_020301_ProjectType | E32: dms_DNSP_020301_ProjectTrigger | F32: dms_DNSP_020302_ProjectType | G32: dms_DNSP_020302_ProjectTrigger | H32: dms_STPIS_Exclusion_List | I32: dms_Reason_Interruption | J32: dms_Reason_Interruption_Detailed | K32: Reason for interruption | N32: dms_N0205_AssetType
C33: Subtransmission substation | D33: New substation establishment | E33: Demand growth | F33: New line on new route - single circuit | G33: Demand growth | H33: Weather | I33: Animal | J33: Animal impact | K33: Animal | L33: Animal impact | N33: Cast Iron
C34: Zone substation | D34: Substation upgrade - capacity | E34: Voltage issues | F34: New line on new route - dual circuit | G34: Voltage issues | H34: Equipment failure | I34: Asset failure | J34: Animal nesting/burrowing, etc and other | L34: Animal nesting/burrowing, etc and other | N34: PVC
C35: Switching station | D35: Substation upgrade - voltage | E35: Reactive power issue | F35: New line on new route - other | G35: Reactive power issue | H35: Operational error | I35: Other | J35: Other | L35: Other | N35: Polyamide
C36: Other | D36: Other | E36: Fault level issues | F36: Line rebuild over existing route - single circuit | G36: Fault level issues | H36: Vegetation | I36: Overloads | J36: LV | K36: Asset failure | L36: LV | N36: High density polyethylene (80)
E37: Safety | F37: Line rebuild over existing route - dual circuit | G37: Net market benefit | H37: Animals | I37: Planned | J37: Distribution substation | L37: Distribution substation | N37: High density polyethylene (100)
E38: Environment | F38: Reconductor - Single circuit | G38: Safety | H38: Third party impacts | I38: Network business | J38: HV | L38: HV | N38: High density polyethylene (250)
E39: Other | F39: Reconductor - Dual circuit | G39: Environment | H39: Transmission failure | I39: Third party | J39: Zone substation | L39: Zone substation | N39: High density polyethylene (575)
F40: Reconductor - Other | G40: Other | H40: Load shedding | I40: Unknown | J40: Subtransmission | L40: Subtransmission | N40: Medium density polyethylene
F41: Line upgrade - raising/retensoring | H41: Inter-distributor connection failure | I41: Vegetation | J41: insert description of 'other' | K41: Other | L41: insert description of 'other' | N41: Unprotected steel
F42: Line upgrade - voltage upgrade | H42: Other | I42: Weather | J42: Network error | K42: Overloads | N42: Protected steel
F43: Line upgrade - capacity | I43: 2 - STPIS Exclusion (3.3)(a) | J43: Switching and protection error | K43: Planned | N43: Other
F44: String spare circuit | I44: 3 - STPIS Exclusion (3.3)(a) | J44: Fire | K44: Network business | L44: Network error
F45: Other | I45: 4 - STPIS Exclusion (3.3)(a) | J45: Other | L45: Switching and protection error
I46: 5 - STPIS Exclusion (3.3)(a) | J46: Dig-in | K46: Third party | L46: Fire
I47: 6 - STPIS Exclusion (3.3)(a) | J47: Unauthorised access | L47: Other
I48: 7 - STPIS Exclusion (3.3)(a) | J48: Vehicle impact | L48: Dig-in
J49: Unknown | L49: Unauthorised access
J50: Blow-in/Fall-in - NSP responsibility | L50: Vehicle impact
J51: Grow-in - NSP responsibility | K51: Unknown | L51: Unknown
J52: Blow-in/Fall-in - Other responsible party | K52: Vegetation | L52: Blow-in/Fall-in - NSP responsibility
J53: Grow-in - Other responsible party | L53: Grow-in - NSP responsibility
L54: Blow-in/Fall-in - Other responsible party
L55: Grow-in - Other responsible party
K56: Weather
K57: 2 - STPIS Exclusion (3.3)(a)
K58: 3 - STPIS Exclusion (3.3)(a)
K59: 4 - STPIS Exclusion (3.3)(a)
K60: 5 - STPIS Exclusion (3.3)(a)
K61: 6 - STPIS Exclusion (3.3)(a)
K62: 7 - STPIS Exclusion (3.3)(a)
B65: CA & RESET RINS TNSP | C65: dms_TNSP_0203_SubstationType | D65: dms_TNSP_020301_ProjectType | E65: dms_TNSP_020301_ProjectTrigger | F65: dms_TNSP_020302_ProjectType | G65: dms_TNSP_0203_ProjectTrigger
C66: Terminal station | D66: New substation establishment | E66: Demand growth | F66: New line on new route - single circuit | G66: Demand growth
C67: Switching station | D67: Capacity upgrade | E67: Voltage issues | F67: New line on new route - dual circuit | G67: Voltage issues
C68: Transmission substation | D68: Voltage upgrade | E68: Reactive power issue | F68: New line on new route - other | G68: Reactive power issue
C69: Other | D69: Other | E69: Fault level issues | F69: Line rebuild over existing route - single circuit | G69: Fault level issues
E70: Net market benefit | F70: Line rebuild over existing route - dual circuit | G70: Net market benefit
E71: Safety | F71: Reconductor - Single circuit | G71: Safety
E72: Environment | F72: Reconductor - Dual circuit | G72: Environment
E73: Other | F73: Reconductor - Other | G73: Other
F74: Line upgrade - raising/retensoring
F75: Line upgrade - voltage upgrade
F76: Line upgrade - capacity
F77: String spare circuit
F78: Other
B82: NAMED RANGES USED IN ETL PROCESS
M83: GAS ARR & RESET
B84: CA & RESET RINS DNSP ONLY | C84: dms_020303_01_UOM | D84: dms_020501_01_UOM | E84: dms_020501_02_UOM | F84: dms_020501_03_UOM | G84: dms_020501_04_UOM | H84: dms_020701_01_UOM | I84: dms_020701_02_UOM | J84: dms_020701_01_Rows | K84: dms_040102_01_UOM | L84: dms_040102_04_UOM | M84: dms_S140101_UOM | N84: dms_E050201_UOM | O84: dms_E050302_UOM
C85: Circuit line length in km | D85: 0's | E85: 0's | F85: 0's | G85: 0's | H85: km | I85: km | J85: Route line length within zone | K85: 0's | L85: days | M85: number | N85: per metre per connection | O85: metres per connection
C86: Circuit line length in km | D86: 0's | E86: 0's | F86: 0's | G86: 0's | H86: 0's | I86: 0's | J86: Number of maintenance spans | K86: 0's | L86: 0's | M86: number | N86: per service per connection | O86: number per connection
C87: Circuit line length in km | D87: MVA added | E87: MVA added | F87: MVA added | G87: MVA added | H87: km | I87: km | J87: Total length of maintenance spans | K87: 0's | L87: $0s | M87: number | N87: number per connection | O87: number per connection
C88: Circuit line length in km | D88: 0's | E88: 0's | F88: 0's | G88: 0's | H88: km | I88: km | J88: Length of vegetation corridors | K88: $0s | L88: 0's | M88: km
C89: Number | D89: total spend $0s | E89: total spend $0s | F89: total spend $0s | G89: total spend $0s | H89: 0's | I89: 0's | J89: Average number of trees per maintenance span
C90: Number | D90: net circuit km added | E90: net circuit km added | F90: net circuit km added | G90: net circuit km added | H90: years | I90: years | J90: Average frequency of cutting cycle
C91: Number | D91: total spend $0s | E91: total spend $0s | F91: total spend $0s | G91: total spend $0s
D92: net circuit km added | E92: net circuit km added | F92: net circuit km added | G92: net circuit km added
D93: total spend $0s | E93: total spend $0s | F93: total spend $0s | G93: total spend $0s
D94: 0's | F94: $0s
D95: 0's
D96: 0's
D97: $0s
B100: CA & RESET RINS TNSP ONLY | C100: dms_020701_01_UOM
C101: km
C102: 0's
C103: km
C104: 0's
C105: km
C106: metres
C107: years
B110: CA & RESET RINS DNSP & TNSP | C110: dms_020603_01_UOM
C111: 0's
C112: 0's
C113: 0's
C114: 0's
C115: (per cent)
B118: EB & RESET RINS DNSP ONLY | C118: dms_030601_01_UOM | D118: dms_030601_02_UOM | E118: dms_030701_01_UOM | F118: dms_030702_01_UOM | G118: dms_030703_01_UOM
C119: minutes/customer | D119: minutes/customer | E119: Customer / km | F119: % | G119: km
C120: minutes/customer | D120: minutes/customer | E120: MWh/customer | F120: Number of spans
C121: interruptions/customer | D121: interruptions/customer | E121: kVA / customer | F121: Number of spans
C122: interruptions/customer | D122: interruptions/customer | F122: Number of spans
F123: Number of spans
F124: Years
F125: Years
F126: Trees
F127: Trees
F128: Defects
F129: Defects
F130: Spans
F131: km
F132: Spans
C134: WHEN INSERTING COVER SHEET INTO A TNSP FILE - APPLY THESE NAMED RANGES
B135: EB & RESET RINS TNSP ONLY | C135: dms_030601_01_UOM | E135: dms_030701_01_UOM | F135: dms_030702_01_UOM
C136: % | E136: Number of spans | F136: km
C137: number | E137: Years | F137: %
C138: number | E138: Trees | F138: km
C139: % | E139: Defects | F139: number
C140: number | E140: Number of spans
C141: number | E141: km
C142: % | E142: km
C143: number | E143: Number of spans
C144: number
C145: %
C146: number
C147: %
C148: number
C149: %
C150: number
B152: EB & RESET RINS DNSP & TNSP | C152: dms_EB_RAB_PIT
C153: Beginning of year
C154: End of year
C155: End of year
C156: End of year
C157: End of year
C158: End of year
B160: ARR DNSP ONLY | C160: dms_030605_UOM | D160: dms_03060703_UOM | E160: dms_E020202_UOM | F160: Spare
C161: number | D161: number | E161: Length of mains replaced
C162: number | D162: number | E162: Number of services replaced
C163: number | D163: number
C164: number | D164: number
C165: number | D165: (per cent)
C166: number
C167: number
C168: number
C169: number
C170: number
C171: number
C172: number
C173: (per cent)
C174: (per cent)
B176: RFM | C176: dms_Beg | D176: dms_Mid | E176: dms_End
C177: Beginning of year | D177: Mid year | E177: End of Year
B179: PTRM | C179: dms_PTRM_RAB_PIT | D179: dms_PTRM_TAB_PIT | E179: DMS_Xfactor
C180: Beginning of year | D180: Beginning of year | E180: x factors
C181: End of year | D181: End of year
C182: End of year | D182: End of year
C183: End of year | D183: End of year
C184: End of year
B187: STPIS & MIC NAMED RANGES
B189: These "row descriptions" are the column headings in the various templates but become row descriptions in the ETL process
B191: Table 6.3 sustained interruptions - row descriptions | C191: dms_060301_CustNo_Affected_Row | D191: dms_060301_Avg_Duration_Sustained_Int_Row | E191: dms_060301_Effect_unplanned_SAIDI_Row | F191: dms_060301_Effect_unplanned_SAIFI_Row
C192: Number of customers affected by the interruption | D192: Average duration of sustained customer interruption | E192: Effect on unplanned SAIDI | F192: Effect on unplanned SAIFI
B195: Table 6.1 telephone answering - row descriptions and start date | C195: dms_060101_Rows | D195: dms_060102_Rows | E195: dms_060101_StartDateTxt
C196: Total number of calls (after removing excluded events) | D196: Number of calls answered within 30 seconds (after excluding excluded events) | E196: =dms_060701_StartDateTxt -> 1-Jul-2015
B199: Table 6.8.1 - row descriptions | C199: dms_060801_01_Rows | D199: dms_060801_02_Rows | E199: dms_060801_03_Rows | F199: dms_060801_04_Rows
C200: Number of interruptions | D200: Duration of interruptions | E200: Total unplanned minutes off supply | F200: Effect on unplanned MAIFI
B203: Table 7.9.4 - market impact component - row descriptions | C203: dms_070904_01_Rows | D203: without exclusions | E203: with exclusions
B206: These headings (Lists) are determined from the INDEX/MATCH function on the NSP selected on the Business & other details sheet
B208: Table 6.7.1 - daily performance data - unplanned - MAIFI -- row descriptions and header named range values | C208: dms_060701_Feeder_Header_Lvl4 | D208: =INDEX(dms_FeederName_1,MATCH(dms_TradingName,dms_TradingName_List)) -> CBD | E208: =INDEX(dms_FeederName_1,MATCH(dms_TradingName,dms_TradingName_List)) -> CBD | F208: =INDEX(dms_FeederName_2,MATCH(dms_TradingName,dms_TradingName_List)) -> Urban | G208: =INDEX(dms_FeederName_2,MATCH(dms_TradingName,dms_TradingName_List)) -> Urban | H208: =INDEX(dms_FeederName_3,MATCH(dms_TradingName,dms_TradingName_List)) -> Short rural | I208: =INDEX(dms_FeederName_3,MATCH(dms_TradingName,dms_TradingName_List)) -> Short rural | J208: =INDEX(dms_FeederName_4,MATCH(dms_TradingName,dms_TradingName_List)) -> Long rural | K208: =INDEX(dms_FeederName_4,MATCH(dms_TradingName,dms_TradingName_List)) -> Long rural | L208: =IF((INDEX(dms_FeederName_5,MATCH(dms_TradingName,dms_TradingName_List))=0),"Network",(INDEX(dms_FeederName_5,MATCH(dms_TradingName,dms_TradingName_List)))) -> Network | M208: =IF((INDEX(dms_FeederName_5,MATCH(dms_TradingName,dms_TradingName_List))=0),"Network",(INDEX(dms_FeederName_5,MATCH(dms_TradingName,dms_TradingName_List)))) -> Network | N208: Network | O208: Network
C210: dms_060701_Rows | D210: All events | E210: After removing excluded events | F210: All events | G210: After removing excluded events | H210: All events | I210: After removing excluded events | J210: All events | K210: After removing excluded events | L210: All events | M210: After removing excluded events | N210: All events | O210: After removing excluded events
D211: the number of column headings changes from 10 to 12 depending on the number of feeder categories for the NSP
C213: dms_0603_FeederList | D213: =INDEX(dms_FeederName_1,MATCH(dms_TradingName,dms_TradingName_List)) -> CBD | E213: =INDEX(dms_FeederName_2,MATCH(dms_TradingName,dms_TradingName_List)) -> Urban | F213: =INDEX(dms_FeederName_3,MATCH(dms_TradingName,dms_TradingName_List)) -> Short rural | G213: =INDEX(dms_FeederName_4,MATCH(dms_TradingName,dms_TradingName_List)) -> Long rural
B216: Use these to add to specific worksheets in existing files | C216: Use these to add to specific worksheets in existing files
B219: ARRs 6.7 STPIS daily performance | C219: dms_060101_Values | D219: dms_060102_Values | E219: dms_060701_Values
C220: dms_LeapYear
B223: ARR's 6.8 STPIS exclusions | C223: dms_060801_Event_Date | D223: dms_060801_OutageID | E223: dms_060801_FeederID | F223: dms_060801_FeederClass | G223: dms_060801_CauseID | H223: dms_060801_01_Values | I223: dms_060801_02_Values | J223: dms_060801_03_Values | K223: dms_060801_Excl_Cat | L223: dms_060801_04_Values
C224: dms_060801_StartCell
B227: CA 6.3 sustained interruptions | C227: dms_060301_Event_Date | D227: dms_060301_Event_Time | E227: dms_060301_AssetID | F227: dms_060301_FeederClass | G227: dms_060301_Reason | H227: dms_060301_DetailedReason | I227: dms_060301_CustNo_Affected_Values | J227: dms_060301_Avg_Duration_Sustained_Int_Values | K227: dms_060301_Effect_unplanned_SAIDI_Values | L227: dms_060301_Effect_unplanned_SAIFI_Values | M227: dms_060301_MED

Sheet AER lookups (hidden)
B1: AER LOOKUP TABLES
B3: Data in these columns used for data validation and database purposes.
B4: Date last modified: | C4: 2017-01-16 | D4: added (Albury and Victora) for AGN
C5: 2016-10-17 | D5: updated TransGrid's correct legal name, corrected TasNetworks (T) to June financial year
C6: 2017-02-01 | D6: inserted Power and Water, added NRs (dms_FeederCat_1 and dms_FeederCat_2)
C7: 2017-03-03 | D7: inserted AEMO as a business
C8: 2018-03-28 | D8: major changes to accommodate STPIS
C9: Template Version | D9: 5
Z11: FOR ELECTRICITY BUSINESSES ONLY
Z12: Feeder Types | AD12: TasNetworks (D) | AE12: Feeder Names
Z14: CBD | AA14: Urban | AB14: Short rural | AC14: long rural | AD14: EXTRA
B15: dms_TradingName_List | C15: dms_TradingNameFull_List | D15: dms_ABN_List | E15: dms_JurisdictionList | F15: dms_Sector_List | G15: dms_Segment_List | H15: dms_FormControl_List | I15: dms_RPT_List | J15: dms_RPTMonth_List | K15: dms_CRCPlength_List | L15: dms_FRCPlength_List | M15: dms_PRCPlength_List | N15: dms_663_List | O15: dms_DeterminationRef_List | P15: dms_Addr1_List | Q15: dms_Addr2_List | R15: dms_Suburb_List | S15: dms_State_List | T15: dms_PostCode_List | U15: dms_PAddr1_List | V15: dms_PAddr2_List | W15: dms_PSuburb_List | X15: dms_PState_List | Y15: dms_PPostCode_List | Z15: dms_CBD_flag | AA15: dms_Urban_flag | AB15: dms_ShortRural_flag | AC15: dms_LongRural_flag | AD15: dms_FeederType_5_flag | AE15: dms_FeederName_1 | AF15: dms_FeederName_2 | AG15: dms_FeederName_3 | AH15: dms_FeederName_4 | AI15: dms_FeederName_5 | AJ15: dms_Public_Lighting_List | AK15: Name
B16: AusNet (T) | C16: AusNet Transmission Group Pty Ltd | D16: 78079798173 | E16: Vic | F16: Electricity | G16: Transmission | H16: Revenue cap | I16: Financial | J16: March | K16: 5 | L16: 5 | M16: 5 | N16: 2 | O16: transmission determination | P16: Level 32 | Q16: 2 Southbank Boulevard | R16: SOUTHBANK | S16: Vic | T16: 3006 | U16: Locked Bag 14051 | W16: MELBOURNE CITY MAIL CENTRE | X16: Vic | Y16: 8001 | Z16: NO | AA16: NO | AB16: NO | AC16: NO | AD16: NO | AE16: CBD | AF16: Urban | AG16: Short rural | AH16: Long rural | AJ16: NO | AK16: =B16 -> AusNet (T)
B17: Powerlink | C17: Queensland Electricity Transmission Corporation Limited trading as Powerlink Queensland | D17: 82078849233 | E17: Qld | F17: Electricity | G17: Transmission | H17: Revenue cap | I17: Financial | J17: June | K17: 5 | L17: 5 | M17: 5 | N17: 5 | O17: transmission determination | P17: 33 Harold St | R17: VIRGINIA | S17: Qld | T17: 4014 | U17: PO Box 1193 | W17: VIRGINIA | X17: QLD | Y17: 4014 | Z17: NO | AA17: NO | AB17: NO | AC17: NO | AD17: NO | AE17: CBD | AF17: Urban | AG17: Short rural | AH17: Long rural | AJ17: NO | AK17: Powerlink
B22: The Reg Year Ending (dms_RYE) must be set to the last year of the regulatory period. For forecast data is is usually (FRCP_y5) for actual it is a single year (CRY). For historical actual data the RYE will need to be set manually in the business details sheet by setting the dms_Multiyear_flag to 1 and putting the correct value in 'dms_Specified_FinalYear. See cells C67:C68
B23: dms_Model_List | C23: dms_Model_Name_Format1 | D23: dms_Worksheet_List | E23: dms_Model_Span_List
B24: ARR | C24: Annual Reporting | D24: =IF(dms_MultiYear_ResponseFlag="yes","NEW HISTORICAL ANNUAL REPORTING","ANNUAL REPORTING") -> ANNUAL REPORTING | E24: 1
B25: CA | C25: Category Analysis | D25: =IF(dms_MultiYear_ResponseFlag="yes","NEW HISTORICAL CATEGORY ANALYSIS","CATEGORY ANALYSIS") -> CATEGORY ANALYSIS | E25: 1
B26: CESS | C26: Capitlal Expenditure | D26: CAPITLAL EXPENDITURE SHARING SCHEMING | E26: 5
B27: CPI | C27: CPI | D27: CPI | E27: 5
B28: EB | C28: Economic Benchmarking | D28: =IF(dms_MultiYear_ResponseFlag="yes","NEW HISTORICAL ECONOMIC BENCHMARKING","ECONOMIC BENCHMARKING") -> ECONOMIC BENCHMARKING | E28: 1
B29: Pricing | C29: Pricing Proposal | D29: PRICING PROPOSAL | E29: 5
B30: PTRM | C30: Post Tax Revenue Model | D30: POST TAX REVENUE MODEL | E30: 5
B31: Reset | C31: Regulatory Reporting (Reset) | D31: REGULATORY REPORTING STATEMENT | E31: 5
B32: RFM | C32: Roll Forward Model | D32: ROLL FORWARD MODEL | E32: 5
B33: WACC | C33: Weighted Average Cost of Capital | D33: WEIGHTED AVERAGE COST OF CAPITAL | E33: 1
B37: Financial | C37: Calendar | E37: PREVIOUS | G37: CURRENT | I37: FORTHCOMING
B38: 1987-88 | C38: 1988 | D38: PRCP_y1 | E38: =INDEX(INDIRECT(dms_RPT),dms_PRCP_start_row) -> 2012-13 | F38: CRCP_y1 | G38: =INDEX(INDIRECT(dms_RPT),dms_CRCP_start_row) -> 2017-18 | H38: =FRCP_y1 -> 2022-23 | I38: =INDEX(INDIRECT(dms_RPT),dms_FRCP_start_row) -> 2022-23
B39: 1988-89 | C39: 1989 | D39: PRCP_y2 | E39: =INDEX(INDIRECT(dms_RPT),dms_PRCP_start_row+1) -> 2013-14 | F39: CRCP_y2 | G39: =INDEX(INDIRECT(dms_RPT),dms_CRCP_start_row+1) -> 2018-19 | H39: FRCP_y2 | I39: =INDEX(INDIRECT(dms_RPT),dms_FRCP_start_row+1) -> 2023-24
B40: 1989-90 | C40: 1990 | D40: PRCP_y3 | E40: =INDEX(INDIRECT(dms_RPT),dms_PRCP_start_row+2) -> 2014-15 | F40: CRCP_y3 | G40: =INDEX(INDIRECT(dms_RPT),dms_CRCP_start_row+2) -> 2019-20 | H40: FRCP_y3 | I40: =INDEX(INDIRECT(dms_RPT),dms_FRCP_start_row+2) -> 2024-25
B41: 1990-91 | C41: 1991 | D41: PRCP_y4 | E41: =INDEX(INDIRECT(dms_RPT),dms_PRCP_start_row+3) -> 2015-16 | F41: CRCP_y4 | G41: =INDEX(INDIRECT(dms_RPT),dms_CRCP_start_row+3) -> 2020-21 | H41: FRCP_y4 | I41: =INDEX(INDIRECT(dms_RPT),dms_FRCP_start_row+3) -> 2025-26
B42: 1991-92 | C42: 1992 | D42: PRCP_y5 | E42: =INDEX(INDIRECT(dms_RPT),dms_PRCP_start_row+4) -> 2016-17 | F42: CRCP_y5 | G42: =INDEX(INDIRECT(dms_RPT),dms_CRCP_start_row+4) -> 2021-22 | H42: FRCP_y5 | I42: =INDEX(INDIRECT(dms_RPT),dms_FRCP_start_row+4) -> 2026-27
B43: 1992-93 | C43: 1993 | D43: PRCP_y6 | E43: =INDEX(INDIRECT(dms_RPT),dms_PRCP_start_row+5) -> 2017-18 | F43: CRCP_y6 | G43: =INDEX(INDIRECT(dms_RPT),dms_CRCP_start_row+5) -> 2022-23 | H43: FRCP_y6 | I43: =INDEX(INDIRECT(dms_RPT),dms_FRCP_start_row+5) -> 2027-28
B44: 1993-94 | C44: 1994 | D44: PRCP_y7 | E44: =INDEX(INDIRECT(dms_RPT),dms_PRCP_start_row+6) -> 2018-19 | F44: CRCP_y7 | G44: =INDEX(INDIRECT(dms_RPT),dms_CRCP_start_row+6) -> 2023-24 | H44: FRCP_y7 | I44: =INDEX(INDIRECT(dms_RPT),dms_FRCP_start_row+6) -> 2028-29
B45: 1994-95 | C45: 1995 | D45: PRCP_y8 | E45: =INDEX(INDIRECT(dms_RPT),dms_PRCP_start_row+7) -> 2019-20 | F45: CRCP_y8 | G45: =INDEX(INDIRECT(dms_RPT),dms_CRCP_start_row+7) -> 2024-25 | H45: FRCP_y8 | I45: =INDEX(INDIRECT(dms_RPT),dms_FRCP_start_row+7) -> 2029-30
B46: 1995-96 | C46: 1996 | D46: PRCP_y9 | E46: =INDEX(INDIRECT(dms_RPT),dms_PRCP_start_row+8) -> 2020-21 | F46: CRCP_y9 | G46: =INDEX(INDIRECT(dms_RPT),dms_CRCP_start_row+8) -> 2025-26 | H46: FRCP_y9 | I46: =INDEX(INDIRECT(dms_RPT),dms_FRCP_start_row+8) -> 2030-31
B47: 1996-97 | C47: 1997 | D47: PRCP_y10 | E47: =INDEX(INDIRECT(dms_RPT),dms_PRCP_start_row+9) -> 2021-22 | F47: CRCP_y10 | G47: =INDEX(INDIRECT(dms_RPT),dms_CRCP_start_row+9) -> 2026-27 | H47: FRCP_y10 | I47: =INDEX(INDIRECT(dms_RPT),dms_FRCP_start_row+9) -> 2031-32
B48: 1997-98 | C48: 1998 | D48: PRCP_y11 | E48: =INDEX(INDIRECT(dms_RPT),dms_PRCP_start_row+10) -> 2022-23 | F48: CRCP_y11 | G48: =INDEX(INDIRECT(dms_RPT),dms_CRCP_start_row+10) -> 2027-28 | H48: FRCP_y11 | I48: =INDEX(INDIRECT(dms_RPT),dms_FRCP_start_row+10) -> 2032-33
B49: 1998-99 | C49: 1999 | D49: PRCP_y12 | E49: =INDEX(INDIRECT(dms_RPT),dms_PRCP_start_row+11) -> 2023-24 | F49: CRCP_y12 | G49: =INDEX(INDIRECT(dms_RPT),dms_CRCP_start_row+11) -> 2028-29 | H49: FRCP_y12 | I49: =INDEX(INDIRECT(dms_RPT),dms_FRCP_start_row+11) -> 2033-34
B50: 1999-00 | C50: 2000 | D50: PRCP_y13 | E50: =INDEX(INDIRECT(dms_RPT),dms_PRCP_start_row+12) -> 2024-25 | F50: CRCP_y13 | G50: =INDEX(INDIRECT(dms_RPT),dms_CRCP_start_row+12) -> 2029-30 | H50: FRCP_y13 | I50: =INDEX(INDIRECT(dms_RPT),dms_FRCP_start_row+12) -> 2034-35
B51: 2000-01 | C51: 2001 | D51: PRCP_y14 | E51: =INDEX(INDIRECT(dms_RPT),dms_PRCP_start_row+13) -> 2025-26 | F51: CRCP_y14 | G51: =INDEX(INDIRECT(dms_RPT),dms_CRCP_start_row+13) -> 2030-31 | H51: FRCP_y14 | I51: =INDEX(INDIRECT(dms_RPT),dms_FRCP_start_row+13) -> 2035-36
B52: 2001-02 | C52: 2002 | D52: PRCP_y15 | E52: =INDEX(INDIRECT(dms_RPT),dms_PRCP_start_row+14) -> 2026-27 | F52: CRCP_y15 | G52: =INDEX(INDIRECT(dms_RPT),dms_CRCP_start_row+14) -> 2031-32 | H52: FRCP_y15 | I52: =INDEX(INDIRECT(dms_RPT),dms_FRCP_start_row+14) -> 2036-37
B53: 2002-03 | C53: 2003 | D53: PRCP_y16 | E53: =INDEX(INDIRECT(dms_RPT),dms_PRCP_start_row+15) -> 2027-28 | F53: CRCP_y16 | G53: =INDEX(INDIRECT(dms_RPT),dms_CRCP_start_row+15) -> 2032-33 | H53: FRCP_y16 | I53: =INDEX(INDIRECT(dms_RPT),dms_FRCP_start_row+15) -> 
B54: 2003-04 | C54: 2004
B55: 2004-05 | C55: 2005
B56: 2005-06 | C56: 2006 | E56: CRY - FRY
B57: 2006-07 | C57: 2007 | D57: dms_y1 | E57: =IFERROR(INDEX(INDIRECT(dms_RPT),dms_CRY_start_row),0) -> 2020-21
B58: 2007-08 | C58: 2008 | D58: dms_y2 | E58: =IFERROR(INDEX(INDIRECT(dms_RPT),dms_CRY_start_row+1),0) -> 2021-22
B59: 2008-09 | C59: 2009 | D59: dms_y3 | E59: =IFERROR(INDEX(INDIRECT(dms_RPT),dms_CRY_start_row+2),0) -> 2022-23
B60: 2009-10 | C60: 2010 | D60: dms_y4 | E60: =IFERROR(INDEX(INDIRECT(dms_RPT),dms_CRY_start_row+3),0) -> 2023-24
B61: 2010-11 | C61: 2011 | D61: dms_y5 | E61: =IFERROR(INDEX(INDIRECT(dms_RPT),dms_CRY_start_row+4),0) -> 2024-25
B62: 2011-12 | C62: 2012 | D62: dms_y6 | E62: =IFERROR(INDEX(INDIRECT(dms_RPT),dms_CRY_start_row+5),0) -> 2025-26
B63: 2012-13 | C63: 2013 | D63: dms_y7 | E63: =IFERROR(INDEX(INDIRECT(dms_RPT),dms_CRY_start_row+6),0) -> 2026-27
B64: 2013-14 | C64: 2014 | D64: dms_y8 | E64: =IFERROR(INDEX(INDIRECT(dms_RPT),dms_CRY_start_row+7),0) -> 2027-28
B65: 2014-15 | C65: 2015 | D65: dms_y9 | E65: =IFERROR(INDEX(INDIRECT(dms_RPT),dms_CRY_start_row+8),0) -> 2028-29
B66: 2015-16 | C66: 2016 | D66: dms_y10 | E66: =IFERROR(INDEX(INDIRECT(dms_RPT),dms_CRY_start_row+9),0) -> 2029-30
B67: 2016-17 | C67: 2017 | D67: dms_y11 | E67: =IFERROR(INDEX(INDIRECT(dms_RPT),dms_CRY_start_row+10),0) -> 2030-31
B68: 2017-18 | C68: 2018 | D68: dms_y12 | E68: =IFERROR(INDEX(INDIRECT(dms_RPT),dms_CRY_start_row+11),0) -> 2031-32
B69: 2018-19 | C69: 2019 | D69: dms_y13 | E69: =IFERROR(INDEX(INDIRECT(dms_RPT),dms_CRY_start_row+12),0) -> 2032-33
B70: 2019-20 | C70: 2020 | D70: dms_y14 | E70: =IFERROR(INDEX(INDIRECT(dms_RPT),dms_CRY_start_row+13),0) -> 2033-34
B71: 2020-21 | C71: 2021 | D71: dms_y15 | E71: =IFERROR(INDEX(INDIRECT(dms_RPT),dms_CRY_start_row+14),0) -> 2034-35
B72: 2021-22 | C72: 2022 | D72: dms_y16 | E72: =IFERROR(INDEX(INDIRECT(dms_RPT),dms_CRY_start_row+15),0) -> 2035-36
B73: 2022-23 | C73: 2023
B74: 2023-24 | C74: 2024
B75: 2024-25 | C75: 2025
B76: 2025-26 | C76: 2026
B77: 2026-27 | C77: 2027
B78: 2027-28 | C78: 2028
B79: 2028-29 | C79: 2029
B80: 2029-30 | C80: 2030
B81: 2030-31 | C81: 2031
B82: 2031-32 | C82: 2032
B83: 2032-33 | C83: 2033
B84: 2033-34 | C84: 2034
B85: 2034-35 | C85: 2035
B86: 2035-36 | C86: 2036
B87: 2036-37 | C87: 2037

Sheet AER ETL (hidden)
A1: DRAFT RIN - 20200429 (WIP) | B1: AER ETL INFORMATION
B3: USES NAMED RANGES FLAG | C3: yes | D3: dms_Defined_Names_Used
B5: IF THIS IS AN ABC RIN - make sure the the named range CRY is applied and the named range dms_dollar_nom_UOM is applied
B6: IF THIS IS A RESET RIN - make sure the named ranges CRY and dms_dollar_nom_UOM are NOT present in the workbook
B7: FOR ABC RINS THAT SPAN MULTIPLE YEARS - make sure MultiYear Flag is set and final year entered as required
B9: Full trading name | C9: =INDEX(dms_TradingNameFull_List,MATCH(dms_TradingName,dms_TradingName_List)) -> Queensland Electricity Transmission Corporation Limited trading as Powerlink Queensland | E9: dms_TradingNameFull
B10: Trading name | C10: =dms_TradingName -> Powerlink
A11: Selected here | B11: Model / RIN | C11: Reset | D11: dms_Model
A12: Read from Business & other details | B12: Source | C12: Regulatory proposal | D12: dms_Source
B13: Data quality | C13: Consolidated | D13: For DB purposes this is always Consoldiated
B14: Data status | C14: Public | D14: For DB purposes this is always Public
B15: Amendment reason | C15: =dms_Amendment_Text -> . | F15: dms_AmendmentReason
B16: Submission date | C16: =dms_Typed_Submission_Date -> 2021-01-28 | D16: dms_SubmissionDate
A18: Redundant | B18: EBSS - First application of scheme in forthcoming period? | C18: No
A19: Pre-populated from lookup table | B19: Data ingestion data quality | C19: Consolidated | D19: dms_DataQuality | E19: Always Consolidated
B20: Sector | C20: =INDEX(dms_Sector_List,MATCH(dms_TradingName,dms_TradingName_List)) -> Electricity | D20: dms_Sector | E20: =INDEX(dms_Sector_List,MATCH(dms_TradingName,dms_TradingName_List))
B21: Segment | C21: =INDEX(dms_Segment_List,MATCH(dms_TradingName,dms_TradingName_List)) -> Transmission | D21: dms_Segment | E21: =INDEX(dms_Segment_List,MATCH(dms_TradingName,dms_TradingName_List))
B22: Regulatory Year Ending | C22: =dms_RYE_result -> 2027 | D22: dms_RYE | E22: =IF(dms_MultiYear_Flag=1,LEFT(dms_Specified_FinalYear,2)&RIGHT(dms_Specified_FinalYear,2),INDEX(dms_RYE_Formula_Result,MATCH(dms_Model,dms_Model_List)))
B23: Reporting Period Type | C23: =INDEX(dms_RPT_List,MATCH(dms_TradingName,dms_TradingName_List)) -> Financial | D23: dms_RPT | E23: =INDEX(dms_RPT_List,MATCH(dms_TradingName,dms_TradingName_List))
B24: EB/CA Unit of Measure for Monetary Values | C24: $0s | D24: dms_dollar_nom_UOM | E24: If the cover sheet is attached to an ABC RIN apply the NAMED RANGE to the cell
B25: Security Classification | C25: Public | D25: dms_Classification | E25: Always Public
B26: Jurisdiction | C26: =INDEX(dms_JurisdictionList,MATCH(dms_TradingName,dms_TradingName_List)) -> Qld | D26: dms_Jurisdiction | E26: =INDEX(dms_JurisdictionList,MATCH(dms_TradingName,dms_TradingName_List))
A27: Relevant for PTRM, RFMs and Reset RINS | B27: $ REAL REFERENCES
B28: Does the named range CRY exist in this file? | C28: =IFERROR(CRY,"NO") -> NO
B29: CRY-1 (last full calendar year before CRY) | C29: =IFERROR(IF(dms_RPT="calendar",CRY-1,LEFT(CRY,4)),"CRY not present") -> CRY not present | D29: dms_Cal_Year_B4_CRY | E29: '=IF(dms_RPT="financial",VALUE(LEFT(dms_SingleYear_FinalYear_Result,4)),VALUE(LEFT(dms_SingleYear_FinalYear_Result,4)-1))
B30: Dollar $ real month | C30: =INDEX(dms_RPTMonth_List,MATCH(dms_TradingName,dms_TradingName_List)) -> June | D30: dms_RPTMonth | E30: =INDEX(dms_RPTMonth_List,MATCH(dms_TradingName,dms_TradingName_List))
B31: Dollar $ real (the last month before the FRCP_y1) | C31: =IF(dms_SingleYearModel="yes",CONCATENATE(dms_RPTMonth)&" "&VALUE((LEFT(dms_CRY_start_year,2)&RIGHT(dms_CRY_start_year,2))),CONCATENATE(dms_RPTMonth)&" "&dms_DollarReal_year) -> June 2022 | D31: dms_DollarReal | E31: =IF(SUM(dms_SingleYear_Model)>0,CONCATENATE(dms_RPTMonth)&" "&VALUE((LEFT(CRY,2))&RIGHT(CRY,2)),CONCATENATE(dms_RPTMonth)&" "&VALUE((LEFT(dms_RYE,2)&RIGHT(dms_RYE,2))))
B32: Dollar $ real previous year (PRCP_y5) | C32: =CONCATENATE(dms_RPTMonth)&" "&dms_Previous_DollarReal_year -> June 2017 | D32: dms_DollarReal_Prev | E32: =IF(SUM(dms_SingleYear_Model)>0,CONCATENATE(dms_RPTMonth)&" "&VALUE(((LEFT(CRY,2))&RIGHT(CRY,2))-1),CONCATENATE(dms_RPTMonth)&" "&VALUE(((LEFT(dms_CRCP_FirstYear_Result,2)&RIGHT(dms_CRCP_FirstYear_Result,2))))-1)
B33: PTRM/ RFMs
B34: Form of control | C34: =INDEX(dms_FormControl_List,MATCH(dms_TradingName,dms_TradingName_List)) -> Revenue cap | D34: dms_FormControl | E34: =INDEX(dms_FormControl_List,MATCH(dms_TradingName,dms_TradingName_List))
A35: All potential values for Regulatory Years or RYEs as calculated | B35: This block works out the various RYE's for ALL RIN types and MODELS
B36: dms_start_year | C36: =FRCP_y1 -> 2022-23 | D36: =FRCP_y1 | E36: FRCP_y1 from cover sheet
B37: dms_CRY_start_year | C37: =IFERROR(CRY,CRCP_y4) -> 2020-21 | D37: =IFERROR(CRY,CRCP_y4)
B38: dms_CRY_start_row | C38: =IFERROR(MATCH(dms_CRY_start_year,INDIRECT(dms_RPT),0),0) -> 34 | D38: =IFERROR(MATCH(dms_CRY_start_year,INDIRECT(dms_RPT),0),0)
B39: dms_FRCP_start_row | C39: =MATCH(dms_start_year,INDIRECT(dms_RPT),0) -> 36 | D39: =MATCH(dms_start_year,INDIRECT(dms_RPT),0) | E39: Uses FRCP_y1 as a start reference
B40: dms_CRCP_start_row | C40: =dms_FRCP_start_row-dms_CRCPlength_Num -> 31 | D40: =dms_FRCP_start_row-dms_CRCPlength_Num | E40: Uses the value in dms_CRCPlength_Num
B41: dms_PRCP_start_row | C41: =dms_FRCP_start_row-dms_CRCPlength_Num-dms_PRCPlength_Num -> 26 | D41: =dms_FRCP_start_row-dms_CRCPlength_Num-dms_PRCPlength_Num | E41: Uses the value in dms_CRCPlength_Num and dms_PRCPlength_Num
B42: dms_RYE_start_row | C42: =dms_FRCP_start_row+(dms_FRCPlength_Num-1) -> 40 | D42: =dms_FRCP_start_row+(dms_FRCPlength_Num-1) | E42: Uses the value in dms_FRCPlength_Num-1
B43: FRCP_start_year | C43: =INDEX(INDIRECT(dms_RPT),dms_FRCP_start_row) -> 2022-23 | D43: =INDEX(INDIRECT(dms_RPT),dms_FRCP_start_row) | E43: Converts the FRCP start row to display the year
B44: CRCP_start_year | C44: =INDEX(INDIRECT(dms_RPT),dms_CRCP_start_row) -> 2017-18 | D44: =INDEX(INDIRECT(dms_RPT),dms_CRCP_start_row) | E44: Converts the CRCP start row to display the year
B45: PRCP_start_year | C45: =INDEX(INDIRECT(dms_RPT),dms_PRCP_start_row) -> 2012-13 | D45: =INDEX(INDIRECT(dms_RPT),dms_PRCP_start_row) | E45: Converts the PRCP start row to display the year
B46: FRCP_final_year | C46: =INDEX(INDIRECT(dms_RPT),dms_FRCP_start_row+dms_FRCPlength_Num-1) -> 2026-27 | D46: =INDEX(INDIRECT(dms_RPT),dms_FRCP_start_row+dms_FRCPlength_Num-1) | E46: Finds the FRCP final year
B47: CRCP_final_year | C47: =INDEX(INDIRECT(dms_RPT),dms_CRCP_start_row+dms_CRCPlength_Num-1) -> 2021-22 | D47: =INDEX(INDIRECT(dms_RPT),dms_CRCP_start_row+dms_CRCPlength_Num-1) | E47: Finds the CRCP final year
B48: PRCP_final_year | C48: =INDEX(INDIRECT(dms_RPT),dms_PRCP_start_row+dms_FRCPlength_Num-1) -> 2016-17 | D48: =INDEX(INDIRECT(dms_RPT),dms_PRCP_start_row+dms_FRCPlength_Num-1) | E48: Finds the PRCP final year
B49: dms_Reset_final_year | C49: =INDEX(INDIRECT(dms_RPT),dms_RYE_start_row) -> 2026-27 | D49: =INDEX(INDIRECT(dms_RPT),dms_RYE_start_row) | E49: For Resets and PTRM/RFMs (same as FRCP_final_year)
B50: dms_SpecifiedYear_final_year | C50: =FRY ->  | D50: =FRY | E50: FRY from cover sheet
B51: dms_DollarReal_year | C51: =LEFT(CRCP_final_year,2)&RIGHT(CRCP_final_year,2) -> 2022 | D51: =LEFT(CRCP_final_year,2)&RIGHT(CRCP_final_year,2) | E51: Uses the value in CRCP_final_year
B52: dms_Previous_DollarReal_year | C52: =LEFT(PRCP_final_year,2)&RIGHT(PRCP_final_year,2) -> 2017 | D52: =LEFT(PRCP_final_year,2)&RIGHT(PRCP_final_year,2) | E52: Uses the value in PRCP_final_year
B53: dms_CRY_RYE | C53: =IFERROR(LEFT(CRY,2)&RIGHT(CRY,2),0) -> 0 | D53: =IFERROR(LEFT(CRY,2)&RIGHT(CRY,2),0) | E53: For ABC single year RINS
B54: dms_Reset_RYE | C54: =IF(dms_Model_Span>1,IF(dms_Model="RFM",(LEFT(dms_DollarReal_year,2)&RIGHT(dms_DollarReal_year,2)),(LEFT(dms_Reset_final_year,2)&RIGHT(dms_Reset_final_year,2))),0) -> 2027 | D54: =IF(dms_Model_Span>1,IF(dms_Model="RFM",(LEFT(dms_DollarReal_year,2)&RIGHT(dms_DollarReal_year,2)),(LEFT(dms_Reset_final_year,2)&RIGHT(dms_Reset_final_year,2))),0) | E54: If model span > 1 then uses dms_Reset_RYE otherwise it's a multi year ABC and uses dms_Specified_RYE
B55: dms_Specified_RYE | C55: =IF(dms_MultiYear_ResponseFlag="Yes",(LEFT(dms_Specified_FinalYear,2)&RIGHT(dms_Specified_FinalYear,2)),0) -> 0 | D55: =IF(dms_MultiYear_ResponseFlag="Yes",(LEFT(dms_Specified_FinalYear,2)&RIGHT(dms_Specified_FinalYear,2)),0) | E55: If multi year ABC - uses dms_Specified_FinalYear
B56: dms_Model_Span | C56: =INDEX(dms_Model_Span_List,MATCH(dms_Model,dms_Model_List)) -> 5 | D56: =INDEX(dms_Model_Span_List,MATCH(dms_Model,dms_Model_List)) | E56: A result of 5 is used to signify that it is more than 1 year span
B57: dms_RYE_result | C57: =IF(dms_MultiYear_ResponseFlag="yes",dms_Specified_RYE,(IF(dms_Model_Span>1,dms_Reset_RYE,dms_CRY_RYE))) -> 2027 | D57: =IF(dms_MultiYear_ResponseFlag="yes",dms_Specified_RYE,(IF(dms_Model_Span>1,dms_Reset_RYE,dms_CRY_RYE))) | E57: Nested IF - feeds into dms_RYE
B58: dms_Reset_Span | C58: =IF(dms_Reset_RYE>0,CONCATENATE(FRCP_y1," to ",FRCP_final_year),0) -> 2022-23 to 2026-27 | D58: =IF(dms_Reset_RYE>0,CONCATENATE(FRCP_y1," to ",FRCP_final_year),0) | E58: Reset span of years as text
B59: dms_SpecifiedYear_Span | C59: =IF(dms_Specified_RYE>0,CONCATENATE(CRY," to ",dms_Specified_FinalYear),0) -> 0 | D59: =IF(dms_Specified_RYE>0,CONCATENATE(CRY," to ",dms_Specified_FinalYear),0) | E59: Multi year ABC span of years as text
B60: dms_Header_Span | C60: =IF(dms_MultiYear_Flag=1,dms_SpecifiedYear_Span,IF(dms_Model_Span>1,dms_y1&" - "&FRCP_final_year,CRY)) -> 2020-21 - 2026-27 | D60: =IF(dms_MultiYear_Flag=1,dms_SpecifiedYear_Span,IF(dms_Model_Span>1,dms_Reset_Span,CRY)) | E60: NESTED IF - for Sheet Headers
B61: ABC RINS THAT SPAN MULTIPLE YEARS
B62: This is a multi year ABC RIN? | C62: No
C63: =IF(dms_MultiYear_ResponseFlag="No",0,1) -> 0 | D63: dms_MultiYear_Flag | E63: This is set from the answer provided above
C64: =IF(dms_MultiYear_Flag=1,FRY,"not a Multiple year submission") -> not a Multiple year submission | D64: dms_Specified_FinalYear | E64: The result here is returned to dms_CRCP_FinalYear_Result if response to Q in C73 is "yes" and dms_MultiYear_Flag is set to 1
B65: Start year for 5.2 in Multi year ABC RINS | C65: =IFERROR(IF(dms_MultiYear_Flag=1,FRY,CRY),"not an ABC") -> not an ABC | D65: dms_0502_Inst_Year | E65: =IF(dms_MultiYear_Flag=1,FRY,CRY) | G65: For single year RINS this is CRY - multi year RINS need to start a the end of the span of years (ie. FRY)
B66: WHAT IS THE RYE?
B67: Reg Period Lengths
B68: PRCP length in years | C68: =INDEX(dms_PRCPlength_List,MATCH(dms_TradingName,dms_TradingName_List)) -> 5 | D68: dms_PRCPlength_Num | E68: =INDEX(dms_PRCPlength_List,MATCH(dms_TradingName,dms_TradingName_List))
B69: CRCP length in years | C69: =INDEX(dms_CRCPlength_List,MATCH(dms_TradingName,dms_TradingName_List)) -> 5 | D69: dms_CRCPlength_Num | E69: =INDEX(dms_CRCPlength_List,MATCH(dms_TradingName,dms_TradingName_List))
B70: FRCP length in years | C70: =INDEX(dms_FRCPlength_List,MATCH(dms_TradingName,dms_TradingName_List)) -> 5 | D70: dms_FRCPlength_Num | E70: =INDEX(dms_FRCPlength_List,MATCH(dms_TradingName,dms_TradingName_List))
B71: Single year RIN?
B72: Single Year ABC RIN ? | C72: =IF(dms_Model="EB",1,0) -> 0 | D72: dms_EB
C73: =IF(dms_Model="CA",1,0) -> 0 | D73: dms_CA | E73: =dms_SingleYear_Model
C74: =IF(dms_Model="ARR",1,0) -> 0 | D74: dms_ARR
B75: Is this a single Year ABC RIN? | C75: =IF(SUM(dms_SingleYear_Model)=1,"yes","no") -> no | D75: dms_SingleYearModel | E75: =IF(SUM(dms_SingleYear_Model)=1,"yes","no")
B76: Single Year Final Year Result | C76: =IF(AND(dms_SingleYearModel="yes",dms_MultiYear_Flag=0),CRY,0) -> 0 | D76: dms_SingleYear_FinalYear_Result | E76: =IFERROR(IF(SUM(dms_SingleYear_Model)<>0,(INDIRECT(dms_SingleYear_FinalYear_Ref)),"not a single year RIN"),"CRY not present")
B77: Multi year RIN?
B79: Multi Year Reset/Model? | C79: =IF(dms_Model_Span>1,"yes","no") -> yes
B80: Final year result for Reset/Model | C80: =IF(dms_Model_Span>1,dms_Reset_final_year,0) -> 2026-27 | D80: dms_MultiYear_FinalYear_Result | E80: dms_CRCP_FinalYear_Result
B82: Multi Year ABC RIN? | C82: =IF(dms_MultiYear_Flag=1,"yes","no") -> no | D82: dms_MultiYear_ABC_RIN
B83: Final year result for ABC multi year | C83: =IF(dms_MultiYear_Flag=1,C50,0) -> 0
B85: EB RINS
B86: Calendar Year for table 3.6 data | C86: =IFERROR(IF(dms_Segment="Transmission",dms_Cal_Year_B4_CRY,CRY),"CRY not present") -> CRY not present | D86: dms_0306_Year | E86: =IF(dms_Segment="Transmission",dms_Cal_Year_B4_CRY,CRY)
B87: CA RINS
B88: Find how many rows in tables 6.3 sustained interruptions? | E88: dms_060301_MaxRows only returns a valid value when cover sheet is attached to a CA file
C89: =IF(dms_Model<>"CA","not a CA","Is a CA") -> not a CA | E89: =IF(dms_Model<>"CA","not a CA","Is a CA")
B90: dms_060301_Avg_Duration_Sustained_Int_Values present? | C90: =IFERROR(IF(INDEX(dms_060301_Avg_Duration_Sustained_Int_Values,1,1)<>"","yes","no"),"no") -> no | D90: dms_060301_checkvalue | E90: =IFERROR(IF(INDEX(dms_060301_Avg_Duration_Sustained_Int_Values,1,1)<>"","yes","no"),"no")
C91: =IF(AND(dms_Model="CA",(dms_060301_checkvalue="no")),"error - NR not present","no errors") -> no errors | E91: =IF(AND(dms_Model="CA",(dms_060301_checkvalue="no")),"error - NR not present","no errors")
B92: Table 6.3.1 - last row reference | C92: =IFERROR(IF(dms_Model="CA",LOOKUP(2,1/(dms_060301_Avg_Duration_Sustained_Int_Values<>""),(ROW(dms_060301_Avg_Duration_Sustained_Int_Values))),"not a CA"),"6.3 not present") -> not a CA | D92: dms_060301_LastRow | E92: =IFERROR(IF(dms_Model="CA",LOOKUP(2,1/(dms_060301_Avg_Duration_Sustained_Int_Values<>""),(ROW(dms_060301_Avg_Duration_Sustained_Int_Values))),"not a CA"),"6.3 not present")
B93: Table 6.3.1 - max number rows | C93: =IFERROR(IF(dms_Model="CA",(dms_060301_LastRow-15),"not a CA"),"error") -> not a CA | D93: dms_060301_MaxRows | E93: =IFERROR(IF(dms_Model="CA",(dms_060301_LastRow-15),"not a CA"),"error")
B94: Table 6.6.3 - Public lighting repair - no. business days | C94: =INDEX(dms_663_List,MATCH(dms_TradingName,dms_TradingName_List)) -> 5 | D94: dms_663 | E94: =INDEX(dms_663_List,MATCH(dms_TradingName,dms_TradingName_List))
B95: ARR or RESET RINS
B96: How many rows in tables 6.1 or 6.7? (leap year?) | C96: insert dms_LeapYear NR if required | E96: 'dms_LeapYear is used to determine dms_060701_Max_Rows BUT it is only found on worksheet 6.1 or 6.7 and the date value in the cell is used to determine whether it is a leap year
B97: Is dms_LeapYear named range present? | C97: =IFERROR(IF(dms_LeapYear,"yes"),"no") -> no
B98: Table 6.7.1 - includes a leap year? | C98: =IFERROR(IF(MONTH(DATE(YEAR(dms_LeapYear),2,29))=2,"is a leap year","not a leap year"), "dms_LeapYear not present") -> dms_LeapYear not present | D98: dms_LeapYear_Result | E98: =IFERROR(IF(MONTH(DATE(YEAR(dms_LeapYear),2,29))=2,"is a leap year","not a leap year"),"dms_LeapYear not present")
B99: MaxRows if Reset and leap year | C99: =IF(dms_LeapYear_Result="is a leap year",1827,1826) -> 1826 | D99: dms_060701_Reset_MaxRows | E99: =IF(dms_LeapYear_Result="is a leap year",1827,1826) | H99: number of days present in Reset RIN table
B100: MaxRows if ARR and leap year | C100: =IF(dms_LeapYear_Result="is a leap year",366,365) -> 365 | D100: dms_060701_ARR_MaxRows | E100: =IF(dms_LeapYear_Result="is a leap year",366,365) | H100: number of days present in ARR RIN table
B101: Table 6.7.1 - Max Rows (leap year/ non leap year) | C101: =IF(dms_Model="ARR",dms_060701_ARR_MaxRows,IF(dms_Model="Reset",dms_060701_Reset_MaxRows,"not a relevant RIN type")) -> 1826 | D101: dms_060701_MaxRows | E101: =IF(dms_Model="ARR",dms_060701_ARR_MaxRows,IF(dms_Model="Reset",dms_060701_Reset_MaxRows,"not a relevant RIN type"))
B102: How many columns in 6.7? (4 or 5 feeder categories) | C102: =IF(dms_FifthFeeder_flag_NSP="NO","This NSP has only 4 feeder categories","This NSP has 5 feeder categories") -> This NSP has only 4 feeder categories
B103: Table 6.7.1 - Last column (# of feeder categories > 4) | C103: =IF(dms_FifthFeeder_flag_NSP="NO",10,12) -> 10 | D103: dms_060701_MaxCols | E103: =IF(dms_FifthFeeder_flag_NSP="NO",8,10)
B104: Table 6.7.1 - Number of offset rows | C104: =IF(dms_Model="ARR",15,9) -> 9 | D104: dms_060701_OffsetRows | E104: =IF(dms_Model="ARR",15,9)
B105: Start date for telephone answering in 6.1 or 6.7? | E105: Using 060101 as naming standard not 060701 for start dates
B106: Table 6.1.1 and 6.7.1 - Start Date as Text | C106: =IF(dms_SingleYearModel="yes",(CONCATENATE(IF(LEN(CRY)=4,"1-Jan-","1-Jul-"),LEFT(CRY,4))),(CONCATENATE(IF(LEN(PRCP_y4)=4,"1-Jan-","1-Jul-"),LEFT(PRCP_y4,4)))) -> 1-Jul-2015 | D106: dms_060101_StartDateTxt | E106: =IF(SUM(dms_SingleYear_Model)>1,(CONCATENATE(IF(LEN(CRY)=4,"1-Jan-","1-Jul-"),LEFT(CRY,4))),(CONCATENATE(IF(LEN(CRCP_y4)=4,"1-Jan-","1-Jul-"),LEFT(CRCP_y4,4))))
B107: Table 6.1.1 and 6.7.1 - Start Date as Date Value | C107: =DATEVALUE(dms_060701_StartDateTxt) -> 42186 | D107: dms_060101_StartDateVal | E107: =DATEVALUE(dms_060701_StartDateTxt)
B108: ARRs
B109: How many rows in table 6.8? | C109: insert dms_060801_StartCell NR if required | E109: dms_060801_StartCell is only found on worksheet 6.8 and is used to determine the starting date for the date range
B110: Is dms_060801_StartCell named range present? | C110: yes | E110: =IFERROR(IF((ROW(dms_060801_StartCell)-1)=1,"yes","yes"),"no")
B111: Table 6.8 - Number of offset rows | C111: 12 | D111: dms_0608_OffsetRows | E111: =IFERROR(IF(dms_Model="ARR",(ROW(dms_060801_StartCell)-1),"not an ARR"),"6.8 error")
B112: Table 6.8 - Last row | C112: 0 | D112: dms_0608_LastRow | E112: =IFERROR(IF(dms_060801_StartCell<>"",IF(dms_Model="ARR",(LOOKUP(2,1/(dms_060801_01_Values<>""),(ROW(dms_060801_01_Values)))),"not an ARR"),0),"0")
B113: Table 6.8 - MaxRows | C113: =IFERROR(IF(dms_Model="ARR",(MAX(0,dms_0608_LastRow-dms_0608_OffsetRows)),"not an ARR"),"0") -> not an ARR | D113: dms_060801_MaxRows | E113: =IFERROR(IF(dms_Model="ARR",(MAX(0,dms_0608_LastRow-dms_0608_OffsetRows)),"not an ARR"),"0")
B114: TNSP RESET RINS
B115: Table 7.9.4 only appears in TNSPs Reset RIN
B116: Table 7.9.4 - first year | C116: =LEFT(PRCP_y3,4) -> 2014 | D116: dms_070904_Start_Year | E116: =LEFT(PRCP_y3,4)
B118: MISC
B119: Distribution Determination Reference | C119: =INDEX(dms_DeterminationRef_List,MATCH(dms_TradingName,dms_TradingName_List)) -> transmission determination | D119: dms_DeterminationRef
B120: Public lighting NSP? | C120: =INDEX(dms_Public_Lighting_List,MATCH(dms_TradingName,dms_TradingName_List)) -> NO | D120: dms_Public_Lighting | E120: =INDEX(dms_Public_Lighting_List,MATCH(dms_TradingName,dms_TradingName_List))
B121: CBD Feeder for this business | C121: =INDEX(dms_CBD_flag,MATCH(dms_TradingName,dms_TradingName_List)) -> NO | D121: dms_CBD_flag_NSP
B122: Urban Feeder for this business | C122: =INDEX(dms_Urban_flag,MATCH(dms_TradingName,dms_TradingName_List)) -> NO | D122: dms_Urban_flag_NSP
B123: Short rural Feeder for this business | C123: =INDEX(dms_ShortRural_flag,MATCH(dms_TradingName,dms_TradingName_List)) -> NO | D123: dms_ShortRural_flag_NSP
B124: Long rural Feeder for this business | C124: =INDEX(dms_LongRural_flag,MATCH(dms_TradingName,dms_TradingName_List)) -> NO | D124: dms_LongRural_flag_NSP
B125: Fifth Feeder Category (eg. TasNetworks (D)) | C125: =INDEX(dms_FeederType_5_flag,MATCH(dms_TradingName,dms_TradingName_List)) -> NO | D125: dms_FifthFeeder_flag_NSP | E125: =INDEX(dms_FeederType_5_flag,MATCH(dms_TradingName,dms_TradingName_List))
B127: DISCARD FILES
B128: discard this record? | C128: NO | D128: dms_DISCARD | E128: If record is to be discarded from DB set this flag to YES
B130: SUBSET FILES
B131: Is this Submission File a Subset File | C131: NO | D131: dms_Partial
B134: REGULATORY YEARS FOR MULTI RYE SUBMISSIONS
B135: Multiple RYE flag | C135: NO | D135: dms_Multi_RYE_flag
C136: Manually specify RYE | D136: Named ranges to apply
C137: 2013 | D137: dms_RYE_01
C138: 2014 | D138: dms_RYE_02
C139: 2015 | D139: dms_RYE_03
C140: 2016 | D140: dms_RYE_04
C141: 2017 | D141: dms_RYE_05
C142: 2018 | D142: dms_RYE_06
C143: 2019 | D143: dms_RYE_07
C144: 2020 | D144: dms_RYE_08
C145: 2021 | D145: dms_RYE_09

Sheet Instructions
B2: =CONCATENATE(dms_Sector," ",dms_Segment," ", "Network Service Provider") -> Electricity Transmission Network Service Provider
B3: =IF(dms_Model="Reset","Regulatory Proposal RIN Template","Annual Reporting RIN") -> Regulatory Proposal RIN Template
B4: =CONCATENATE("This template is to be used by ",dms_TradingNameFull," to fulfil its reporting obligations to the AER.") -> This template is to be used by Queensland Electricity Transmission Corporation Limited trading as Powerlink Queensland to fulfil its reporting obligations to the AER.
B5: INSTRUCTIONS
B6: GENERAL | C6: Complete the Business & other details worksheet before entering data or values in any other worksheets. The Business & other details worksheet is linked to other worksheets within the workbook and automatically generates certain column headings and conditional formatting.
B8: CONFIDENTIAL INFORMATION | C8: Please use the macro at the top of each worksheet to identify confidential information in the confidential workbook.
C9: -Do this by selecting the cell or cells that contain confidential information and then run the Mark selection as CONFIDENTIAL macro. This will format the cells a specific colour that is identified by the AER's database which in turn marks that information as confidential. -To reverse this, select the cell or cells and run the Return selection to NON-CONFIDENTIAL macro.
B11: RESPONSES | C11: Please return four (4) files to the AER: 1. A confidential version which must contain a complete set of all responses with confidential information marked using the Mark selection CONFIDENTIAL macro and which has been completed using the locked template file provided by the AER. 2. An actual and an estimate version with confidential information marked using the Mark selection CONFIDENTIAL macro and which has been completed using the locked template file provided by the AER. 3. A public version with confidential information either removed completely or aggregated in some form together with writtten consent to disclose the public version of the response. Use the drop down box on the Business and other details worksheet to identify the file as either confidential ('consolidated') or public.
B13: AMENDMENTS | C13: If an NSP wishes to correct data previously submitted to the AER it should resubmit that data using the original completed submission as the starting point. Please make any necessary changes to the data. Data that is not being amended should be left unchanged. NSPs must identify the reason for the amendments in the Amendment Reason box on the Business and other details worksheet. NSPs may provide further details regarding any amendments in the Amendments worksheet. .
C14: NSP may use Amended Data macro to highlight cells that contain amended data. NB: if data is also CONFIDENTIAL, re-apply the Confidentiality macro after applying the Amended macro
C15: Please resubmit two (2) files - a confidential version and a public version of the amended submission to the AER
B17: UNITS OF MEASURE | C17: All amounts are to be unrounded and reported on a one for one basis: that is 1000 is to be entered as '1000'. Applicable units of measure may be identified in the table column headings or row descriptors.
B19: INPUT / NON-INPUT CELLS
D20: Yellow = Input cell (mandatory)
D21: Darker yellow = input cell (mandatory)
D22: Orange = input cell (if data available)
D23: Grey = Not applicable/No inputs required
D24: PLEASE DO NOT ENTER TEXT into cells that are to contain numeric data.
B27: NAVIGATION | C27: Many tables in the worksheets have been "grouped" to allow for easy navigation. To ungroup or group data use the outline symbols in the left margin (for Row groupings) or above the columns (for column groupings).

Sheet CONTENTS
D1: =INDEX(dms_Worksheet_List,MATCH(dms_Model,dms_Model_List)) -> REGULATORY REPORTING STATEMENT
D2: =INDEX(dms_TradingNameFull_List,MATCH(dms_TradingName,dms_TradingName_List)) -> Queensland Electricity Transmission Corporation Limited trading as Powerlink Queensland
D3: =dms_Header_Span -> 2020-21 - 2026-27
E6: CONTENTS
E8: TEMPLATE DATE | F8: October 2020
E10: SUBMISSION | F10: Business & other details
F11: CPI series
E13: EXPENDITURE | F13: 2.1 Expenditure summary
F14: 2.2 Repex
F15: 2.3 Augex (a)
F16: 2.3 Augex (b)
F17: 2.5 Connections
F18: 2.6 Non-network
F19: 2.10 Overheads
F20: 2.11 Labour
F21: 2.14 Forecast price changes
F22: 2.16 Opex Summary
F23: 2.17 Step Changes
E25: ECONOMIC BENCHMARKING | F25: 3.1 Revenue
F26: 3.2 Operating expenditure
F27: 3.3 Assets (RAB)
F28: 3.4 Operational data
F29: 3.5 Physical assets
F30: 3.7 Operating environment
E32: NETWORK | F32: 5.4 MD & Utilisation - Spatial
E34: OTHER | F34: 7.1 Policies and Procedures
F35: 7.2 Contingent projects
F36: 7.3 Obligations
F37: 7.4 Shared Assets
F38: 7.9 STPIS
E40: CAPEX | F40: 8.2 Capex

Sheet Business & other details
V1: =INDEX(dms_Worksheet_List,MATCH(dms_Model,dms_Model_List)) -> REGULATORY REPORTING STATEMENT
V2: =INDEX(dms_TradingNameFull_List,MATCH(dms_TradingName,dms_TradingName_List)) -> Queensland Electricity Transmission Corporation Limited trading as Powerlink Queensland
V3: =dms_Header_Span -> 2020-21 - 2026-27
V4: BUSINESS & OTHER DETAILS
V6: INSTRUCTIONS
V7: Complete the following business details regulatory template before entering data or values in any other regulatory template. This regulatory template is linked to other cells within the spreadsheet and automatically generates column headings and conditional formatting to distinguish business specific input and non-input cells.
Q9: SUBMISSION PARTICULARS INPUT SHEET
V12: ENTITY DETAILS
V14: Business Name
V16: Short name | AL16: Powerlink
V17: ACN/ABN | AL17: =INDEX(dms_ABN_List,MATCH(dms_TradingName,dms_TradingName_List)) -> 82078849233
V21: Business Address | BQ21: Postal Address
V23: Address 1 | AL23: =INDEX(dms_Addr1_List,MATCH(dms_TradingName,dms_TradingName_List)) -> 33 Harold St | BI23: Address 1 | BQ23: =INDEX(dms_PAddr1_List,MATCH(dms_TradingName,dms_TradingName_List)) -> PO Box 1193
V24: Address 2 | AL24: =IF(ISBLANK(INDEX(dms_Addr2_List,MATCH(dms_TradingName,dms_TradingName_List))),"",(INDEX(dms_Addr2_List,MATCH(dms_TradingName,dms_TradingName_List)))) ->  | BI24: Address 2 | BQ24: =IF(ISBLANK(INDEX(dms_PAddr2_List,MATCH(dms_TradingName,dms_TradingName_List))),"",(INDEX(dms_PAddr2_List,MATCH(dms_TradingName,dms_TradingName_List)))) -> 
V25: Suburb | AL25: =INDEX(dms_Suburb_List,MATCH(dms_TradingName,dms_TradingName_List)) -> VIRGINIA | BI25: Suburb | BQ25: =INDEX(dms_PSuburb_List,MATCH(dms_TradingName,dms_TradingName_List)) -> VIRGINIA
V26: State | AL26: =INDEX(dms_State_List,MATCH(dms_TradingName,dms_TradingName_List)) -> Qld | AV26: Post code | BI26: State | BQ26: =INDEX(dms_PState_List,MATCH(dms_TradingName,dms_TradingName_List)) -> QLD | CA26: Post code
BA28: `
V30: Contact Names
V32: Name | AL32: Matthew Myers | BI32: Name | BQ32: -- enter name --
V33: Phone | AL33: 07 3860 2074 | BI33: Phone | BQ33: -- enter phone number --
V34: Email | AL34: mmyers@powerlink.com.au | BI34: Email | BQ34: -- enter email address --
Q39: REGULATORY CONTROL PERIODS
Z42: Forthcoming period | AL42: 2022-23 | AU42: =FRCP_y2 -> 2023-24 | BD42: =FRCP_y3 -> 2024-25 | BM42: =FRCP_y4 -> 2025-26 | BV42: =FRCP_y5 -> 2026-27
AL43: =FRCP_y6 -> 2027-28 | AU43: =FRCP_y7 -> 2028-29 | BD43: =FRCP_y8 -> 2029-30 | BM43: =FRCP_y9 -> 2030-31 | BV43: =FRCP_y10 -> 2031-32
AL44: =FRCP_y11 -> 2032-33 | AU44: =FRCP_y12 -> 2033-34 | BD44: =FRCP_y13 -> 2034-35 | BM44: =FRCP_y14 -> 2035-36 | BV44: =FRCP_y15 -> 2036-37
X46: RESETS | Z46: Current period | AL46: =CRCP_y1 -> 2017-18 | AU46: =CRCP_y2 -> 2018-19 | BD46: =CRCP_y3 -> 2019-20 | BM46: =CRCP_y4 -> 2020-21 | BV46: =CRCP_y5 -> 2021-22
AL47: =CRCP_y6 -> 2022-23 | AU47: =CRCP_y7 -> 2023-24 | BD47: =CRCP_y8 -> 2024-25 | BM47: =CRCP_y9 -> 2025-26 | BV47: =CRCP_y10 -> 2026-27
AL48: =CRCP_y11 -> 2027-28 | AU48: =CRCP_y12 -> 2028-29 | BD48: =CRCP_y13 -> 2029-30 | BM48: =CRCP_y14 -> 2030-31 | BV48: =CRCP_y15 -> 2031-32
Z50: Previous period | AL50: =PRCP_y1 -> 2012-13 | AU50: =PRCP_y2 -> 2013-14 | BD50: =PRCP_y3 -> 2014-15 | BM50: =PRCP_y4 -> 2015-16 | BV50: =PRCP_y5 -> 2016-17
AL51: =PRCP_y6 -> 2017-18 | AU51: =PRCP_y7 -> 2018-19 | BD51: =PRCP_y8 -> 2019-20 | BM51: =PRCP_y9 -> 2020-21 | BV51: =PRCP_y10 -> 2021-22
AL52: =PRCP_y11 -> 2022-23 | AU52: =PRCP_y12 -> 2023-24 | BD52: =PRCP_y13 -> 2024-25 | BM52: =PRCP_y14 -> 2025-26 | BV52: =PRCP_y15 -> 2026-27
Z54: Commencing year | AL54: 2022-23
X55: ANNUAL RINS
Z56: Final year | AL56: 2022-23
Q60: SUBMISSION DETAILS
Z62: RIN type | AL62: =INDIRECT(dms_Model) -> Regulatory Reporting (Reset)
Z64: Source | AL64: Regulatory proposal
X66: THIS FILE | Z66: Data Quality | AL66: Consolidated
Z68: Confidentiality Status | AL68: Public
Z70: Amended RIN Amendment Reason | AL70: .
Z74: Submission Date | AL74: 2021-01-28 | BD74: Please enter date this file submitted to AER

Sheet CPI series
B1: =(LOOKUP(dms_Model,dms_Model_List,dms_Worksheet_List)) -> REGULATORY REPORTING STATEMENT
B2: =INDEX(dms_TradingNameFull_List,MATCH(dms_TradingName,dms_TradingName_List)) -> Queensland Electricity Transmission Corporation Limited trading as Powerlink Queensland
B3: =IF(SUM(dms_SingleYear_Model)>0,CRY,CONCATENATE(FRCP_y1," to ",dms_MultiYear_FinalYear_Result)) -> 2022-23 to 2026-27
B4: CPI SERIES
B7: NOMINATED CPI SERIES
B9: Name of CPI series | C9: 2017/18 to 2019/20: All groups weighted average of 8 capital cities CPI movement from December to December. 2020/21 and 2021/22: Reserve Bank of Australia forecast per Statement on Monetary Policy, November 2020. 2022/23 to 2026/27: Forecast of inflation using methodology specified in the AER's 2019 PTRM (Version 4).
C11: =CRCP_y1 -> 2017-18 | D11: =CRCP_y2 -> 2018-19 | E11: =CRCP_y3 -> 2019-20 | F11: =CRCP_y4 -> 2020-21 | G11: =CRCP_y5 -> 2021-22 | H11: =FRCP_y1 -> 2022-23 | I11: =FRCP_y2 -> 2023-24 | J11: =FRCP_y3 -> 2024-25 | K11: =FRCP_y4 -> 2025-26 | L11: =FRCP_y5 -> 2026-27
B12: Series data | C12: 0.01909090909 | D12: 0.0178412132 | E12: 0.01840490798 | F12: 0.005 | G12: 0.01 | H12: 0.0224870915 | I12: 0.0224870915 | J12: 0.0224870915 | K12: 0.0224870915 | L12: 0.0224870915

Sheet 2.1 Expenditure summary
B1: =(LOOKUP(dms_Model,dms_Model_List,dms_Worksheet_List)) -> REGULATORY REPORTING STATEMENT
B2: =INDEX(dms_TradingNameFull_List,MATCH(dms_TradingName,dms_TradingName_List)) -> Queensland Electricity Transmission Corporation Limited trading as Powerlink Queensland
B3: =IF(SUM(dms_SingleYear_Model)>0,CRY,CONCATENATE(FRCP_y1," to ",dms_MultiYear_FinalYear_Result)) -> 2022-23 to 2026-27
B4: 2.1 - EXPENDITURE SUMMARY AND RECONCILIATION
B6: There are three tables on this worksheet. Each has been grouped for ease of navigation. See the Instructions sheet on how to group or ungroup tables.
B8: 2.1.1 - PRESCRIBED TRANSMISSION SERVICES CAPEX (as incurred)
C9: =CONCATENATE("Forecast ($0's. real ",dms_DollarReal,")") -> Forecast ($0's. real June 2022)
C10: =dms_y1 -> 2020-21 | D10: =dms_y2 -> 2021-22 | E10: =dms_y3 -> 2022-23 | F10: =dms_y4 -> 2023-24 | G10: =dms_y5 -> 2024-25 | H10: =dms_y6 -> 2025-26 | I10: =dms_y7 -> 2026-27
B11: Replacement expenditure | C11: 221368588.9 | D11: 120192099.2 | E11: 157930582.5 | F11: 154316088.3 | G11: 130917928.9 | H11: 62904650.65 | I11: 141822148.8
B12: Connections | C12: 0 | D12: 0 | E12: 0 | F12: 0 | G12: 0 | H12: 0 | I12: 0
B13: Augmentation Expenditure | C13: 0 | D13: 0 | E13: 0 | F13: 0 | G13: 16645342.6 | H13: 0 | I13: 0
B14: Non-network | C14: 21211386.04 | D14: 13758906.5 | E14: 21298871.97 | F14: 36987875.3 | G14: 23473140.81 | H14: 15202355.6 | I14: 12191428.62
B15: Capitalised network overheads
B16: Capitalised corporate overheads | C16: 19201237.92 | D16: 12488717.61 | E16: 17295962.8 | F16: 14879182.9 | G16: 13771575.55 | H16: 7660103.216 | I16: 14330140.93
B17: Total | C17: =SUM(C11:C16) -> 261781212.9 | D17: 146439723.3 | E17: 196525417.3 | F17: 206183146.5 | G17: 184807987.8 | H17: 85767109.47 | I17: 168343718.4
B19: 2.1.2 - PRESCRIBED TRANSMISSION SERVICES OPEX
C20: =CONCATENATE("Forecast ($0's. real ",dms_DollarReal,")") -> Forecast ($0's. real June 2022)
C21: =dms_y1 -> 2020-21 | D21: =dms_y2 -> 2021-22 | E21: =dms_y3 -> 2022-23 | F21: =dms_y4 -> 2023-24 | G21: =dms_y5 -> 2024-25 | H21: =dms_y6 -> 2025-26 | I21: =dms_y7 -> 2026-27
B22: Vegetation management
B23: Maintenance
B24: Non-network
B25: Network overheads
B26: Corporate overheads
B27: Total | C27: =SUM(C22:C26) -> 0 | D27: 0 | E27: 0 | F27: 0 | G27: 0 | H27: 0 | I27: 0
B30: 2.1.8 - PRESCRIBED TRANSMISSION SERVICES CAPITALISED OVERHEADS
C31: =CONCATENATE("Forecast ($0's. real ",dms_DollarReal,")") -> Forecast ($0's. real June 2022)
C32: =dms_y1 -> 2020-21 | D32: =dms_y2 -> 2021-22 | E32: =dms_y3 -> 2022-23 | F32: =dms_y4 -> 2023-24 | G32: =dms_y5 -> 2024-25 | H32: =dms_y6 -> 2025-26 | I32: =dms_y7 -> 2026-27
B33: Replacement expenditure | C33: 16915551.86 | D33: 10242708.86 | E33: 14637855.01 | F33: 11602881.5 | G33: 10276526.84 | H33: 5280149.138 | I33: 12194173.97
B34: Connections | C34: 0 | D34: 0 | E34: 0 | F34: 0 | G34: 0 | H34: 0 | I34: 0
B35: Augmentation Expenditure | C35: 0 | D35: 0 | E35: 0 | F35: 0 | G35: 866156.281 | H35: 0 | I35: 0
B36: Non-network | C36: 2285686.058 | D36: 2246008.755 | E36: 2658107.793 | F36: 3276301.397 | G36: 2628892.434 | H36: 2379954.078 | I36: 2135966.954
B37: Total | C37: =SUM(C33:C36) -> 19201237.92 | D37: 12488717.61 | E37: 17295962.8 | F37: 14879182.9 | G37: 13771575.55 | H37: 7660103.216 | I37: 14330140.93

Sheet 2.1 Unprotected Exp Summary
A1: =(LOOKUP(dms_Model,dms_Model_List,dms_Worksheet_List)) -> REGULATORY REPORTING STATEMENT
A2: =INDEX(dms_TradingNameFull_List,MATCH(dms_TradingName,dms_TradingName_List)) -> Queensland Electricity Transmission Corporation Limited trading as Powerlink Queensland
A3: =IF(SUM(dms_SingleYear_Model)>0,CRY,CONCATENATE(FRCP_y1," to ",dms_MultiYear_FinalYear_Result)) -> 2022-23 to 2026-27
A4: 2.1 - EXPENDITURE SUMMARY AND RECONCILIATION
A6: There are three tables on this worksheet. Each has been grouped for ease of navigation. See the Instructions sheet on how to group or ungroup tables.
A8: 2.1.1 - PRESCRIBED TRANSMISSION SERVICES CAPEX (as incurred)
B9: =CONCATENATE("Forecast ($0's. real ",dms_DollarReal,")") -> Forecast ($0's. real June 2022)
B10: =dms_y1 -> 2020-21 | C10: =dms_y2 -> 2021-22 | D10: =dms_y3 -> 2022-23 | E10: =dms_y4 -> 2023-24 | F10: =dms_y5 -> 2024-25 | G10: =dms_y6 -> 2025-26 | H10: =dms_y7 -> 2026-27
A11: Replacement expenditure | B11: 221368588.9 | C11: 120192099.2 | D11: 157930582.5 | E11: 154316088.3 | F11: 130917928.9 | G11: 62904650.65 | H11: 141822148.8
A12: Connections | B12: 0 | C12: 0 | D12: 0 | E12: 0 | F12: 0 | G12: 0 | H12: 0
A13: Augmentation Expenditure | B13: 0 | C13: 0 | D13: 0 | E13: 0 | F13: 16645342.6 | G13: 0 | H13: 0
A14: Non-network | B14: 21211386.04 | C14: 13758906.5 | D14: 21298871.97 | E14: 36987875.3 | F14: 23473140.81 | G14: 15202355.6 | H14: 12191428.62
A15: Capitalised network overheads | B15: 0 | C15: 0 | D15: 0 | E15: 0 | F15: 0 | G15: 0 | H15: 0
A16: Capitalised corporate overheads | B16: 19201237.92 | C16: 12488717.61 | D16: 17295962.8 | E16: 14879182.9 | F16: 13771575.55 | G16: 7660103.216 | H16: 14330140.93
A17: Balancing Item | B17: -82306498.59 | C17: 60683855.9 | D17: -4943224.514 | E17: 3770972.171 | F17: -15877309.06 | G17: 67445651.4 | H17: -13543650.99
A18: Total | B18: =SUM(B11:B17) -> 179474714.3 | C18: =SUM(C11:C17) -> 207123579.2 | D18: 191582192.8 | E18: 209954118.7 | F18: 168930678.8 | G18: 153212760.9 | H18: 154800067.4
A20: 2.1.2 - PRESCRIBED TRANSMISSION SERVICES OPEX
B21: =CONCATENATE("Forecast ($0's. real ",dms_DollarReal,")") -> Forecast ($0's. real June 2022)
B22: =dms_y1 -> 2020-21 | C22: =dms_y2 -> 2021-22 | D22: =dms_y3 -> 2022-23 | E22: =dms_y4 -> 2023-24 | F22: =dms_y5 -> 2024-25 | G22: =dms_y6 -> 2025-26 | H22: =dms_y7 -> 2026-27
A23: Vegetation management
A24: Maintenance
A25: Non-network
A26: Network overheads
A27: Corporate overheads
A28: Total | B28: =SUM(B23:B27) -> 0 | C28: 0 | D28: 0 | E28: 0 | F28: 0 | G28: 0 | H28: 0
A31: 2.1.8 - PRESCRIBED TRANSMISSION SERVICES CAPITALISED OVERHEADS
B32: =CONCATENATE("Forecast ($0's. real ",dms_DollarReal,")") -> Forecast ($0's. real June 2022)
B33: =dms_y1 -> 2020-21 | C33: =dms_y2 -> 2021-22 | D33: =dms_y3 -> 2022-23 | E33: =dms_y4 -> 2023-24 | F33: =dms_y5 -> 2024-25 | G33: =dms_y6 -> 2025-26 | H33: =dms_y7 -> 2026-27
A34: Replacement expenditure | B34: 16915551.86 | C34: 10242708.86 | D34: 14637855.01 | E34: 11602881.5 | F34: 10276526.84 | G34: 5280149.138 | H34: 12194173.97
A35: Connections | B35: 0 | C35: 0 | D35: 0 | E35: 0 | F35: 0 | G35: 0 | H35: 0
A36: Augmentation Expenditure | B36: 0 | C36: 0 | D36: 0 | E36: 0 | F36: 866156.281 | G36: 0 | H36: 0
A37: Non-network | B37: 2285686.058 | C37: 2246008.755 | D37: 2658107.793 | E37: 3276301.397 | F37: 2628892.434 | G37: 2379954.078 | H37: 2135966.954
A38: Total | B38: =SUM(B34:B37) -> 19201237.92 | C38: 12488717.61 | D38: 17295962.8 | E38: 14879182.9 | F38: 13771575.55 | G38: 7660103.216 | H38: 14330140.93

Sheet 2.1 Balancing Item
A1: RR23-27
A2: Reconciliation of Balancing Item from Template 2.1
A4: Reconciliation to Powerlink's Revenue Proposal
A5: Real June 2022
A6: Prescribed transmission services capex (as incurred) | B6: 2020-21 | C6: 2021-22 | D6: 2022-23 | E6: 2023-24 | F6: 2024-25 | G6: 2025-26 | H6: 2026-27
A8: Total Capex as per RIN Templates (as commissioned) | B8: 242579975 | C8: 133951005.7 | D8: 179229454.5 | E8: 191303963.6 | F8: 171036412.3 | G8: 78107006.25 | H8: 154013577.4
A10: Capitalised Corporate Overhead as per RIN Definition | B10: 19201237.92 | C10: 12488717.61 | D10: 17295962.8 | E10: 14879182.9 | F10: 13771575.55 | G10: 7660103.216 | H10: 14330140.93
A12: Balancing Items
A13: - Capex "As Incurred" Project Adjustment (Prior year as incurred cost and current year not commissioned) | B13: -82306498.59 | C13: 60683855.9 | D13: -4943224.514 | E13: 3770972.171 | F13: -15877309.06 | G13: 67445651.4 | H13: -13543650.99
A14: Total Balancing Item | B14: =SUM(B13:B13) -> -82306498.59 | C14: 60683855.9 | D14: -4943224.514 | E14: 3770972.171 | F14: -15877309.06 | G14: 67445651.4 | H14: -13543650.99
A16: Total Capex - Table 2.1.1 (as incurred) | B16: =+B8+B10+B14 -> 179474714.3 | C16: 207123579.2 | D16: 191582192.8 | E16: 209954118.7 | F16: 168930678.8 | G16: 153212760.9 | H16: 154800067.4
A18: Total Regulated Capex - Powerlink's Post-Tax Revenue Model / Revenue Forecast Model | B18: 179474714.3 | C18: 207123579.2 | D18: 191582192.8 | E18: 209954118.7 | F18: 168930678.8 | G18: 153212760.9 | H18: 154800067.4
B22: -82306498.59 | C22: 61667030.1 | D22: -4943224.514 | E22: 25611712.52 | F22: -15877309.06 | G22: 67445651.4 | H22: -13543650.99

Sheet 2.2 Repex
B1: =(LOOKUP(dms_Model,dms_Model_List,dms_Worksheet_List)) -> REGULATORY REPORTING STATEMENT
B2: =INDEX(dms_TradingNameFull_List,MATCH(dms_TradingName,dms_TradingName_List)) -> Queensland Electricity Transmission Corporation Limited trading as Powerlink Queensland
B3: =IF(SUM(dms_SingleYear_Model)>0,CRY,CONCATENATE(FRCP_y1," to ",dms_MultiYear_FinalYear_Result)) -> 2022-23 to 2026-27
B4: 2.2 REPEX
B6: There is ONE table (with three sub-tables) on this worksheet. See the Instructions sheet on how to group or ungroup tables.
B8: 2.2.1 - REPLACEMENT EXPENDITURE, VOLUMES AND ASSET FAILURES BY ASSET CATEGORY
B9: EXPENDITURE
D10: EXPENDITURE
D11: =CONCATENATE("($0's. real ",dms_DollarReal,")") -> ($0's. real June 2022)
B12: ASSET GROUP | C12: ASSET CATEGORY | D12: =dms_y1 -> 2020-21 | E12: =dms_y2 -> 2021-22 | F12: =dms_y3 -> 2022-23 | G12: =dms_y4 -> 2023-24 | H12: =dms_y5 -> 2024-25 | I12: =dms_y6 -> 2025-26 | J12: =dms_y7 -> 2026-27
B13: TRANSMISSION TOWERS Highest operating voltage; Circuit configuration | C13: < = 33 kV; Single Circuit
C14: > 33 kV & < = 66 kV ; Single Circuit
C15: > 66 kV & < = 132 kV ; Single Circuit
C16: > 132 kV & < = 275 kV ; Single Circuit
C17: > 275 kV & < = 330 kV ; Single Circuit
C18: > 330 kV & < = 500 kV ; Single Circuit
C19: > 500 kV ; Single Circuit
C20: < = 33 kV; Multiple Circuit
C21: > 33 kV & < = 66 kV ; Multiple Circuit
C22: > 66 kV & < = 132 kV ; Multiple Circuit
C23: > 132 kV & < = 275 kV ; Multiple Circuit
C24: > 275 kV & < = 330 kV ; Multiple Circuit
C25: > 330 kV & < = 500 kV ; Multiple Circuit
C26: > 500 kV ; Multiple Circuit
C27: Other
B28: TRANSMISSION TOWER SUPPORT STRUCTURES BY: Highest operating voltage; Circuit configuration | C28: < = 33 kV; Single Circuit | D28: 0 | E28: 0 | F28: 0 | G28: 0 | H28: 0 | I28: 0 | J28: 0
C29: > 33 kV & < = 66 kV ; Single Circuit | D29: 0 | E29: 0 | F29: 0 | G29: 0 | H29: 0 | I29: 0 | J29: 0
C30: > 66 kV & < = 132 kV ; Single Circuit | D30: 0 | E30: 0 | F30: 0 | G30: 0 | H30: 0 | I30: 0 | J30: 0
C31: > 132 kV & < = 275 kV ; Single Circuit | D31: 0 | E31: 0 | F31: 0 | G31: 0 | H31: 0 | I31: 0 | J31: 0
C32: > 275 kV & < = 330 kV ; Single Circuit | D32: 0 | E32: 0 | F32: 0 | G32: 0 | H32: 0 | I32: 0 | J32: 0
C33: > 330 kV & < = 500 kV ; Single Circuit | D33: 0 | E33: 0 | F33: 0 | G33: 0 | H33: 0 | I33: 0 | J33: 0
C34: > 500 kV ; Single Circuit | D34: 0 | E34: 0 | F34: 0 | G34: 0 | H34: 0 | I34: 0 | J34: 0
C35: < = 33 kV; Multiple Circuit | D35: 0 | E35: 0 | F35: 0 | G35: 0 | H35: 0 | I35: 0 | J35: 0
C36: > 33 kV & < = 66 kV ; Multiple Circuit | D36: 0 | E36: 0 | F36: 0 | G36: 0 | H36: 0 | I36: 0 | J36: 0
C37: > 66 kV & < = 132 kV ; Multiple Circuit | D37: 0 | E37: 0 | F37: 0 | G37: 0 | H37: 0 | I37: 0 | J37: 0
C38: > 132 kV & < = 275 kV ; Multiple Circuit | D38: 0 | E38: 0 | F38: 0 | G38: 0 | H38: 0 | I38: 0 | J38: 0
C39: > 275 kV & < = 330 kV ; Multiple Circuit | D39: 0 | E39: 0 | F39: 0 | G39: 0 | H39: 0 | I39: 0 | J39: 0
C40: > 330 kV & < = 500 kV ; Multiple Circuit | D40: 0 | E40: 0 | F40: 0 | G40: 0 | H40: 0 | I40: 0 | J40: 0
C41: > 500 kV ; Multiple Circuit | D41: 0 | E41: 0 | F41: 0 | G41: 0 | H41: 0 | I41: 0 | J41: 0
C42: Other | D42: 0 | E42: 0 | F42: 0 | G42: 0 | H42: 0 | I42: 0 | J42: 0
B43: CONDUCTORS BY: Voltage; Maximum continuous rating | C43: < = 33 kV ; < = 100 MVA
C44: < = 33 kV ; > 100 MVA & < = 400 MVA
C45: < = 33 kV ; > 400 MVA
C46: > 33 kV & < = 66 kV ; < = 100 MVA
C47: > 33 kV & < = 66 kV ; > 100 MVA & < = 400 MVA
C48: > 33 kV & < = 66 kV ; > 400 MVA
C49: > 66 kV & < = 132 kV ; < = 100 MVA
C50: > 66 kV & < = 132 kV ; > 100 MVA & < = 400 MVA
C51: > 66 kV & < = 132 kV ; > 400 MVA
C52: > 132 kV & < = 275 kV ; < = 200 MVA
C53: > 132 kV & < = 275 kV ; > 200 MVA & < = 600 MVA
C54: > 132 kV & < = 275 kV ; > 600 MVA
C55: > 275 kV & < = 330 kV ; < = 800 MVA
C56: > 275 kV & < = 330 kV ; > 800 MVA & < = 1200 MVA
C57: > 275 kV & < = 330 kV ; > 1200 MVA
C58: > 330 kV & < = 500 kV ; < = 1000 MVA
C59: > 330 kV & < = 500 kV ; > 1000 MVA & < = 1500 MVA
C60: > 330 kV & < = 500 kV ; > 1500 MVA
C61: > 500 kV ; < = 2000 MVA
C62: > 500 kV ; > 2000 MVA & < = 3000 MVA
C63: > 500 kV ; > 3000 MVA
C64: Other
B65: TRANSMISSION CABLES BY: Highest operating voltage; Insulation type | C65: < = 33 kV; Oil Filled
C66: > 33 kV & < = 66 kV ; Oil Filled
C67: > 66 kV & < = 132 kV ; Oil Filled
C68: > 132 kV & < = 275 kV ; Oil Filled
C69: > 275 kV & < = 330 kV ; Oil Filled
C70: > 330 kV & < = 500 kV ; Oil Filled
C71: > 500 kV ; Oil Filled
C72: < = 33 kV; XLPE Insulated
C73: > 33 kV & < = 66 kV ; XLPE Insulated
C74: > 66 kV & < = 132 kV ; XLPE Insulated
C75: > 132 kV & < = 275 kV ; XLPE Insulated
C76: > 275 kV & < = 330 kV ; XLPE Insulated
C77: > 330 kV & < = 500 kV ; XLPE Insulated
C78: > 500 kV ; XLPE Insulated
C79: < = 33 kV; Other Insulated
C80: > 33 kV & < = 66 kV ; Other Insulated
C81: > 66 kV & < = 132 kV ; Other Insulated
C82: > 132 kV & < = 275 kV ; Other Insulated
C83: > 275 kV & < = 330 kV ; Other Insulated
C84: > 330 kV & < = 500 kV ; Other Insulated
C85: > 500 kV ; Other Insulated
C86: Other
B87: SUBSTATION SWITCHBAYS BY: Highest operating voltage; Switch type | C87: < = 33 kV; Air Insulated circuit Breaker
C88: > 33 kV & < = 66 kV ; Air Insulated circuit Breaker
C89: > 66 kV & < = 132 kV ; Air Insulated circuit Breaker
C90: > 132 kV & < = 275 kV ; Air Insulated circuit Breaker
C91: > 275 kV & < = 330 kV ; Air Insulated circuit Breaker
C92: > 330 kV & < = 500 kV ; Air Insulated circuit Breaker
C93: > 500 kV ; Air Insulated circuit Breaker
C94: < = 33 kV; Air Insulated Isolators / Earth Switch
C95: > 33 kV & < = 66 kV ; Air Insulated Isolators / Earth Switch
C96: > 66 kV & < = 132 kV ; Air Insulated Isolators / Earth Switch
C97: > 132 kV & < = 275 kV ; Air Insulated Isolators / Earth Switch
C98: > 275 kV & < = 330 kV ; Air Insulated Isolators / Earth Switch
C99: > 330 kV & < = 500 kV ; Air Insulated Isolators / Earth Switch
C100: > 500 kV ; Air Insulated Isolators / Earth Switch
C101: < = 33 kV; VT
C102: > 33 kV & < = 66 kV ; VT
C103: > 66 kV & < = 132 kV ; VT
C104: > 132 kV & < = 275 kV ; VT
C105: > 275 kV & < = 330 kV ; VT
C106: > 330 kV & < = 500 kV ; VT
C107: > 500 kV ; VT
C108: < = 33 kV; CT
C109: > 33 kV & < = 66 kV ; CT
C110: > 66 kV & < = 132 kV ; CT
C111: > 132 kV & < = 275 kV ; CT
C112: > 275 kV & < = 330 kV ; CT
C113: > 330 kV & < = 500 kV ; CT
C114: > 500 kV ; CT
C115: < = 33 kV; GIS Module
C116: > 33 kV & < = 66 kV ; GIS Module
C117: > 66 kV & < = 132 kV ; GIS Module
C118: > 132 kV & < = 275 kV ; GIS Module
C119: > 275 kV & < = 330 kV ; GIS Module
C120: > 330 kV & < = 500 kV ; GIS Module
C121: > 500 kV ; GIS Module
C122: Other
B123: SUBSTATION POWER TRANSFORMERS BY: Highest operating voltage; Ampere rating | C123: < = 33 kV ; < = 10 MVA
C124: < = 33 kV ; > 10 MVA & < = 30 MVA
C125: < = 33 kV ; > 30 MVA
C126: > 33 kV & < = 66 kV ; < = 10 MVA
C127: > 33 kV & < = 66 kV ; > 10 MVA & < = 30 MVA
C128: > 33 kV & < = 66 kV ; > 30 MVA
C129: > 66 kV & < = 132 kV ; < = 30 MVA
C130: > 66 kV & < = 132 kV ; > 30 MVA & < = 60 MVA
C131: > 66 kV & < = 132 kV ; > 60 MVA
C132: > 132 kV & < = 220 kV ; < = 50 MVA
C133: > 132 kV & < = 220 kV ; > 50 MVA & < = 100 MVA
C134: > 132 kV & < = 220 kV ; > 100 MVA
C135: > 220 kV & < = 275 kV ; < = 50 MVA
C136: > 220 kV & < = 275 kV ; > 50 MVA & < = 100 MVA
C137: > 220 kV & < = 275 kV ; > 100 MVA
C138: > 275 kV & < = 330 kV ; < = 100 MVA
C139: > 275 kV & < = 330 kV ; > 100 MVA & < = 250 MVA
C140: > 275 kV & < = 330 kV ; > 250 MVA
C141: > 330 kV & < = 500 kV ; < = 150 MVA
C142: > 330 kV & < = 500 kV ; > 150 MVA & < = 300 MVA
C143: > 330 kV & < = 500 kV ; > 300 MVA
C144: > 500 kV ; < = 1000 MVA
C145: > 500 kV ; > 1000 MVA & < = 1500 MVA
C146: > 500 kV ; > 1500 MVA
C147: Other
B148: SUBSTATION REACTIVE PLANT BY: Highest operating voltage; Function | C148: < = 33 kV; SVCS | D148: 0 | E148: 0 | F148: 0 | G148: 0 | H148: 0 | I148: 0 | J148: 0
C149: > 33 kV & < = 66 kV ; SVCS | D149: 0 | E149: 0 | F149: 0 | G149: 0 | H149: 0 | I149: 0 | J149: 0
C150: > 66 kV & < = 132 kV ; SVCS | D150: 0 | E150: 0 | F150: 0 | G150: 0 | H150: 0 | I150: 0 | J150: 0
C151: > 132 kV & < = 275 kV ; SVCS | D151: 0 | E151: 0 | F151: 0 | G151: 0 | H151: 0 | I151: 0 | J151: 0
C152: > 275 kV & < = 330 kV ; SVCS | D152: 0 | E152: 0 | F152: 0 | G152: 0 | H152: 0 | I152: 0 | J152: 0
C153: > 330 kV & < = 500 kV ; SVCS | D153: 0 | E153: 0 | F153: 0 | G153: 0 | H153: 0 | I153: 0 | J153: 0
C154: > 500 kV ; SVCS | D154: 0 | E154: 0 | F154: 0 | G154: 0 | H154: 0 | I154: 0 | J154: 0
C155: < = 33 kV; Capacitors | D155: 0 | E155: 0 | F155: 0 | G155: 0 | H155: 0 | I155: 0 | J155: 0
C156: > 33 kV & < = 66 kV ; Capacitors | D156: 0 | E156: 0 | F156: 0 | G156: 0 | H156: 0 | I156: 0 | J156: 0
C157: > 66 kV & < = 132 kV ; Capacitors | D157: 0 | E157: 0 | F157: 0 | G157: 0 | H157: 0 | I157: 0 | J157: 0
C158: > 132 kV & < = 275 kV ; Capacitors | D158: 0 | E158: 0 | F158: 0 | G158: 0 | H158: 0 | I158: 0 | J158: 0
C159: > 275 kV & < = 330 kV ; Capacitors | D159: 0 | E159: 0 | F159: 0 | G159: 0 | H159: 0 | I159: 0 | J159: 0
C160: > 330 kV & < = 500 kV ; Capacitors | D160: 0 | E160: 0 | F160: 0 | G160: 0 | H160: 0 | I160: 0 | J160: 0
C161: > 500 kV ; Capacitors | D161: 0 | E161: 0 | F161: 0 | G161: 0 | H161: 0 | I161: 0 | J161: 0
C162: < = 33 kV; Oil Filled Reactors | D162: 0 | E162: 0 | F162: 0 | G162: 0 | H162: 0 | I162: 0 | J162: 0
C163: > 33 kV & < = 66 kV ; Oil Filled Reactors | D163: 0 | E163: 0 | F163: 0 | G163: 0 | H163: 0 | I163: 0 | J163: 0
C164: > 66 kV & < = 132 kV ; Oil Filled Reactors | D164: 0 | E164: 0 | F164: 0 | G164: 0 | H164: 0 | I164: 0 | J164: 0
C165: > 132 kV & < = 275 kV ; Oil Filled Reactors | D165: 0 | E165: 0 | F165: 0 | G165: 0 | H165: 0 | I165: 0 | J165: 0
C166: > 275 kV & < = 330 kV ; Oil Filled Reactors | D166: 0 | E166: 0 | F166: 0 | G166: 0 | H166: 0 | I166: 0 | J166: 0
C167: > 330 kV & < = 500 kV ; Oil Filled Reactors | D167: 0 | E167: 0 | F167: 0 | G167: 0 | H167: 0 | I167: 0 | J167: 0
C168: > 500 kV ; Oil Filled Reactors | D168: 0 | E168: 0 | F168: 0 | G168: 0 | H168: 0 | I168: 0 | J168: 0
C169: Other | D169: 0 | E169: 0 | F169: 0 | G169: 0 | H169: 0 | I169: 0 | J169: 0
B170: SCADA, NETWORK CONTROL AND PROTECTION SYSTEMS BY: Function | C170: Sec Sys - Bay Non Bay
C171: Sec Sys - Metering
C172: Sec Sys - Telecomms
C173: Sec Sys - OPGW
B176: OTHER BY: NSP defined | C176: Other - Buildings
C177: Other Repex | D177: 8608053.304 | E177: 3617865.264 | F177: 40969151.23 | G177: 0 | H177: 0 | I177: 0 | J177: 1229095.35
C178: Towers - > 66 kV & < = 132 kV ; Single Circuit - REFURBISHED
C179: Towers - > 132 kV & < = 275 kV ; Single Circuit - REFURBISHED
C180: Towers - > 275 kV & < = 330 kV ; Single Circuit - REFURBISHED
C181: Towers - > 66 kV & < = 132 kV ; Multiple Circuit - REFURBISHED
C182: Towers - > 132 kV & < = 275 kV ; Multiple Circuit - REFURBISHED
C183: Towers - > 275 kV & < = 330 kV ; Multiple Circuit - REFURBISHED
C184: Substation Power Transformers > 66 kV & < = 132 kV ; < = 30 MVA - REFURBISHED
C185: Substation Power Transformers > 66 kV & < = 132 kV ; > 30 MVA & < = 60 MVA - REFURBISHED
C186: Substation Power Transformers > 66 kV & < = 132 kV ; > 60 MVA - REFURBISHED
C187: Substation Power Transformers > 220 kV & < = 275 kV ; < = 50 MVA - REFURBISHED
C188: Substation Power Transformers > 220 kV & < = 275 kV ; > 50 MVA & < = 100 MVA - REFURBISHED
C189: Substation Power Transformers > 220 kV & < = 275 kV ; > 100 MVA - REFURBISHED
B204: ASSET REPLACEMENTS
D205: VOLUMES
D206: (0's)
B207: ASSET GROUP | C207: ASSET CATEGORY | D207: =dms_y1 -> 2020-21 | E207: =dms_y2 -> 2021-22 | F207: =dms_y3 -> 2022-23 | G207: =dms_y4 -> 2023-24 | H207: =dms_y5 -> 2024-25 | I207: =dms_y6 -> 2025-26 | J207: =dms_y7 -> 2026-27
B208: TRANSMISSION TOWERS Highest operating voltage; Circuit configuration | C208: < = 33 kV; Single Circuit | D208: 0 | E208: 0 | F208: 0 | G208: 0 | H208: 0 | I208: 0 | J208: 0
C209: > 33 kV & < = 66 kV ; Single Circuit | D209: 0 | E209: 0 | F209: 0 | G209: 0 | H209: 0 | I209: 0 | J209: 0
C210: > 66 kV & < = 132 kV ; Single Circuit | D210: 2 | E210: 0 | F210: 0 | G210: 0 | H210: 0 | I210: 0 | J210: 0
C211: > 132 kV & < = 275 kV ; Single Circuit | D211: 0 | E211: 0 | F211: 0 | G211: 0 | H211: 0 | I211: 0 | J211: 0
C212: > 275 kV & < = 330 kV ; Single Circuit | D212: 0 | E212: 0 | F212: 0 | G212: 0 | H212: 0 | I212: 0 | J212: 0
C213: > 330 kV & < = 500 kV ; Single Circuit | D213: 0 | E213: 0 | F213: 0 | G213: 0 | H213: 0 | I213: 0 | J213: 0
C214: > 500 kV ; Single Circuit | D214: 0 | E214: 0 | F214: 0 | G214: 0 | H214: 0 | I214: 0 | J214: 0
C215: < = 33 kV; Multiple Circuit | D215: 0 | E215: 0 | F215: 0 | G215: 0 | H215: 0 | I215: 0 | J215: 0
C216: > 33 kV & < = 66 kV ; Multiple Circuit | D216: 0 | E216: 0 | F216: 0 | G216: 0 | H216: 0 | I216: 0 | J216: 0
C217: > 66 kV & < = 132 kV ; Multiple Circuit | D217: 4 | E217: 0 | F217: 0 | G217: 0 | H217: 0 | I217: 0 | J217: 12
C218: > 132 kV & < = 275 kV ; Multiple Circuit | D218: 0 | E218: 0 | F218: 0 | G218: 30 | H218: 0 | I218: 0 | J218: 0
... 345 more rows

Sheet 2.3 Augex (a)
B1: =(LOOKUP(dms_Model,dms_Model_List,dms_Worksheet_List)) -> REGULATORY REPORTING STATEMENT
B2: =INDEX(dms_TradingNameFull_List,MATCH(dms_TradingName,dms_TradingName_List)) -> Queensland Electricity Transmission Corporation Limited trading as Powerlink Queensland
B3: =IF(SUM(dms_SingleYear_Model)>0,CRY,CONCATENATE(FRCP_y1," to ",dms_MultiYear_FinalYear_Result)) -> 2022-23 to 2026-27
B4: 2.3 AUGEX PROJECTS
B6: There are TWO tables on this worksheet - each has been 'grouped' for easy navigation. Both ROWS and COLUMNS have been grouped. See the Instructions sheet on how to group or ungroup tables.
B8: NOTE: TNSP MUST PROVIDE EXPENDITURE INFORMATION ON A PROJECT CLOSE BASIS.
B9: SUBSTATION AND PROJECT SUMMARY | L9: PLANT AND EQUIPMENT EXPENDITURE AND VOLUME | Y9: OTHER EXPENDITURE | AA9: TOTAL DIRECT EXPENDITURE ($0's) | AB9: YEARS INCURRED | AC9: RELATED PARTY CONTRACTS | AE9: ALL NON RELATED PARTYCONTRACTS | AF9: LAND AND EASEMENTS
B10: SUBSTATION ID | C10: SUBSTATION TYPE | D10: PROJECT ID | E10: PROJECT TYPE | F10: PROJECT TRIGGER | G10: VOLTAGE (KV) | H10: SUBSTATION RATING NORMAL CYCLIC (MVA) | J10: SUBSTATION RATING N-1 EMERGENCY (MVA) | L10: TRANSFORMERS | P10: SWITCHGEAR | S10: REACTIVE PLANT | V10: OTHER PLANT ITEM | W10: INSTALLATION (LABOUR) | Y10: CIVIL WORKS | Z10: OTHER DIRECT | AC10: RELATED PARTY MARGINS | AD10: TOTAL | AF10: LAND PURCHASES | AG10: EASEMENTS | AH10: Comments
H11: PRE | I11: POST | J11: PRE | K11: POST | L11: Units Added | M11: MVA Added | N11: OLTC INCLUDED? | O11: Expenditure ($0's) | P11: Insulation | Q11: Units Added | R11: Expenditure ($0's) | S11: Plant Type | T11: Units Added | U11: Expenditure ($0's) | V11: Expenditure ($0's) | W11: Volume | X11: Expenditure ($0's) | Y11: Expenditure ($0's) | AC11: Expenditure ($0's) | AF11: Expenditure ($0's)
A12: AUG231_1 | B12: <Enter substation ID>
A13: AUG231_2
A14: AUG231_3
A15: AUG231_4
A16: AUG231_5
A17: AUG231_6
B18: Project Totals | L18: =SUM(L12:L17) -> 0 | M18: =SUM(M12:M17) -> 0 | O18: =SUM(O12:O17) -> 0 | Q18: =SUM(Q12:Q17) -> 0 | R18: =SUM(R12:R17) -> 0 | T18: =SUM(T12:T17) -> 0 | U18: 0 | V18: 0 | W18: 0 | X18: 0 | Y18: 0 | Z18: 0 | AA18: =O17+R17+U17+V17+SUM(X17:Z17) -> 0 | AC18: =SUM(AC12:AC17) -> 0 | AD18: =SUM(AD12:AD17) -> 0 | AE18: =SUM(AE12:AE17) -> 0 | AF18: =SUM(AF12:AF17) -> 0 | AG18: =SUM(AG12:AG17) -> 0
A19: AUG231_8 | B19: <Enter substation ID>
A20: AUG231_9
A21: AUG231_10
A22: AUG231_11
A23: AUG231_12
A24: AUG231_13
B25: Project Totals | L25: =SUM(L19:L24) -> 0 | M25: =SUM(M19:M24) -> 0 | O25: =SUM(O19:O24) -> 0 | Q25: =SUM(Q19:Q24) -> 0 | R25: =SUM(R19:R24) -> 0 | T25: =SUM(T19:T24) -> 0 | U25: 0 | V25: 0 | W25: 0 | X25: 0 | Y25: 0 | Z25: 0 | AA25: =O24+R24+U24+V24+SUM(X24:Z24) -> 0 | AC25: =SUM(AC19:AC24) -> 0 | AD25: =SUM(AD19:AD24) -> 0 | AE25: =SUM(AE19:AE24) -> 0 | AF25: =SUM(AF19:AF24) -> 0 | AG25: =SUM(AG19:AG24) -> 0
A26: AUG231_15 | B26: <Enter substation ID>
A27: AUG231_16
A28: AUG231_17
A29: AUG231_18
A30: AUG231_19
A31: AUG231_20
B32: Project Totals | L32: =SUM(L26:L31) -> 0 | M32: =SUM(M26:M31) -> 0 | O32: =SUM(O26:O31) -> 0 | Q32: =SUM(Q26:Q31) -> 0 | R32: =SUM(R26:R31) -> 0 | T32: =SUM(T26:T31) -> 0 | U32: 0 | V32: 0 | W32: 0 | X32: 0 | Y32: 0 | Z32: 0 | AA32: =O31+R31+U31+V31+SUM(X31:Z31) -> 0 | AC32: =SUM(AC26:AC31) -> 0 | AD32: =SUM(AD26:AD31) -> 0 | AE32: =SUM(AE26:AE31) -> 0 | AF32: =SUM(AF26:AF31) -> 0 | AG32: =SUM(AG26:AG31) -> 0
A33: AUG231_22 | B33: <Enter substation ID>
A34: AUG231_23
A35: AUG231_24
A36: AUG231_25
A37: AUG231_26
A38: AUG231_27
B39: Project Totals | L39: =SUM(L33:L38) -> 0 | M39: =SUM(M33:M38) -> 0 | O39: =SUM(O33:O38) -> 0 | Q39: =SUM(Q33:Q38) -> 0 | R39: =SUM(R33:R38) -> 0 | T39: =SUM(T33:T38) -> 0 | U39: 0 | V39: 0 | W39: 0 | X39: 0 | Y39: 0 | Z39: 0 | AA39: =O38+R38+U38+V38+SUM(X38:Z38) -> 0 | AC39: =SUM(AC33:AC38) -> 0 | AD39: =SUM(AD33:AD38) -> 0 | AE39: =SUM(AE33:AE38) -> 0 | AF39: =SUM(AF33:AF38) -> 0 | AG39: =SUM(AG33:AG38) -> 0
A40: AUG231_29 | B40: <Enter substation ID>
A41: AUG231_30
A42: AUG231_31
A43: AUG231_32
A44: AUG231_33
A45: AUG231_34
B46: Project Totals | L46: =SUM(L40:L45) -> 0 | M46: =SUM(M40:M45) -> 0 | O46: =SUM(O40:O45) -> 0 | Q46: =SUM(Q40:Q45) -> 0 | R46: =SUM(R40:R45) -> 0 | T46: =SUM(T40:T45) -> 0 | U46: 0 | V46: 0 | W46: 0 | X46: 0 | Y46: 0 | Z46: 0 | AA46: =O45+R45+U45+V45+SUM(X45:Z45) -> 0 | AC46: =SUM(AC40:AC45) -> 0 | AD46: =SUM(AD40:AD45) -> 0 | AE46: =SUM(AE40:AE45) -> 0 | AF46: =SUM(AF40:AF45) -> 0 | AG46: =SUM(AG40:AG45) -> 0
A47: AUG231_36 | B47: <Enter substation ID>
A48: AUG231_37
A49: AUG231_38
A50: AUG231_39
A51: AUG231_40
A52: AUG231_41
B53: Project Totals | L53: =SUM(L47:L52) -> 0 | M53: =SUM(M47:M52) -> 0 | O53: =SUM(O47:O52) -> 0 | Q53: =SUM(Q47:Q52) -> 0 | R53: =SUM(R47:R52) -> 0 | T53: =SUM(T47:T52) -> 0 | U53: 0 | V53: 0 | W53: 0 | X53: 0 | Y53: 0 | Z53: 0 | AA53: =O52+R52+U52+V52+SUM(X52:Z52) -> 0 | AC53: =SUM(AC47:AC52) -> 0 | AD53: =SUM(AD47:AD52) -> 0 | AE53: =SUM(AE47:AE52) -> 0 | AF53: =SUM(AF47:AF52) -> 0 | AG53: =SUM(AG47:AG52) -> 0
A54: AUG231_43 | B54: <Enter substation ID>
A55: AUG231_44
A56: AUG231_45
A57: AUG231_46
A58: AUG231_47
A59: AUG231_48
B60: Project Totals | L60: =SUM(L54:L59) -> 0 | M60: =SUM(M54:M59) -> 0 | O60: =SUM(O54:O59) -> 0 | Q60: =SUM(Q54:Q59) -> 0 | R60: =SUM(R54:R59) -> 0 | T60: =SUM(T54:T59) -> 0 | U60: 0 | V60: 0 | W60: 0 | X60: 0 | Y60: 0 | Z60: 0 | AA60: =O59+R59+U59+V59+SUM(X59:Z59) -> 0 | AC60: =SUM(AC54:AC59) -> 0 | AD60: =SUM(AD54:AD59) -> 0 | AE60: =SUM(AE54:AE59) -> 0 | AF60: =SUM(AF54:AF59) -> 0 | AG60: =SUM(AG54:AG59) -> 0
A61: AUG231_50 | B61: <Enter substation ID>
A62: AUG231_51
A63: AUG231_52
A64: AUG231_53
A65: AUG231_54
A66: AUG231_55
B67: Project Totals | L67: =SUM(L61:L66) -> 0 | M67: =SUM(M61:M66) -> 0 | O67: =SUM(O61:O66) -> 0 | Q67: =SUM(Q61:Q66) -> 0 | R67: =SUM(R61:R66) -> 0 | T67: =SUM(T61:T66) -> 0 | U67: 0 | V67: 0 | W67: 0 | X67: 0 | Y67: 0 | Z67: 0 | AA67: =O66+R66+U66+V66+SUM(X66:Z66) -> 0 | AC67: =SUM(AC61:AC66) -> 0 | AD67: =SUM(AD61:AD66) -> 0 | AE67: =SUM(AE61:AE66) -> 0 | AF67: =SUM(AF61:AF66) -> 0 | AG67: =SUM(AG61:AG66) -> 0
A68: AUG231_57 | B68: <Enter substation ID>
A69: AUG231_58
A70: AUG231_59
A71: AUG231_60
A72: AUG231_61
A73: AUG231_62
B74: Project Totals | L74: =SUM(L68:L73) -> 0 | M74: =SUM(M68:M73) -> 0 | O74: =SUM(O68:O73) -> 0 | Q74: =SUM(Q68:Q73) -> 0 | R74: =SUM(R68:R73) -> 0 | T74: =SUM(T68:T73) -> 0 | U74: 0 | V74: 0 | W74: 0 | X74: 0 | Y74: 0 | Z74: 0 | AA74: =O73+R73+U73+V73+SUM(X73:Z73) -> 0 | AC74: =SUM(AC68:AC73) -> 0 | AD74: =SUM(AD68:AD73) -> 0 | AE74: =SUM(AE68:AE73) -> 0 | AF74: =SUM(AF68:AF73) -> 0 | AG74: =SUM(AG68:AG73) -> 0
A75: AUG231_64 | B75: <Enter substation ID>
A76: AUG231_65
A77: AUG231_66
A78: AUG231_67
A79: AUG231_68
A80: AUG231_69
B81: Project Totals | L81: =SUM(L75:L80) -> 0 | M81: =SUM(M75:M80) -> 0 | O81: =SUM(O75:O80) -> 0 | Q81: =SUM(Q75:Q80) -> 0 | R81: =SUM(R75:R80) -> 0 | T81: =SUM(T75:T80) -> 0 | U81: 0 | V81: 0 | W81: 0 | X81: 0 | Y81: 0 | Z81: 0 | AA81: =O80+R80+U80+V80+SUM(X80:Z80) -> 0 | AC81: =SUM(AC75:AC80) -> 0 | AD81: =SUM(AD75:AD80) -> 0 | AE81: =SUM(AE75:AE80) -> 0 | AF81: =SUM(AF75:AF80) -> 0 | AG81: =SUM(AG75:AG80) -> 0
A82: AUG231_71 | B82: <Enter substation ID>
A83: AUG231_72
A84: AUG231_73
A85: AUG231_74
A86: AUG231_75
A87: AUG231_76
B88: Project Totals | L88: =SUM(L82:L87) -> 0 | M88: =SUM(M82:M87) -> 0 | O88: =SUM(O82:O87) -> 0 | Q88: =SUM(Q82:Q87) -> 0 | R88: =SUM(R82:R87) -> 0 | T88: =SUM(T82:T87) -> 0 | U88: 0 | V88: 0 | W88: 0 | X88: 0 | Y88: 0 | Z88: 0 | AA88: =O87+R87+U87+V87+SUM(X87:Z87) -> 0 | AC88: =SUM(AC82:AC87) -> 0 | AD88: =SUM(AD82:AD87) -> 0 | AE88: =SUM(AE82:AE87) -> 0 | AF88: =SUM(AF82:AF87) -> 0 | AG88: =SUM(AG82:AG87) -> 0
A89: AUG231_78 | B89: <Enter substation ID>
A90: AUG231_79
A91: AUG231_80
A92: AUG231_81
A93: AUG231_82
A94: AUG231_83
B95: Project Totals | L95: =SUM(L89:L94) -> 0 | M95: =SUM(M89:M94) -> 0 | O95: =SUM(O89:O94) -> 0 | Q95: =SUM(Q89:Q94) -> 0 | R95: =SUM(R89:R94) -> 0 | T95: =SUM(T89:T94) -> 0 | U95: 0 | V95: 0 | W95: 0 | X95: 0 | Y95: 0 | Z95: 0 | AA95: =O94+R94+U94+V94+SUM(X94:Z94) -> 0 | AC95: =SUM(AC89:AC94) -> 0 | AD95: =SUM(AD89:AD94) -> 0 | AE95: =SUM(AE89:AE94) -> 0 | AF95: =SUM(AF89:AF94) -> 0 | AG95: =SUM(AG89:AG94) -> 0
A96: AUG231_85 | B96: <Enter substation ID>
A97: AUG231_86
A98: AUG231_87
A99: AUG231_88
A100: AUG231_89
A101: AUG231_90
B102: Project Totals | L102: =SUM(L96:L101) -> 0 | M102: =SUM(M96:M101) -> 0 | O102: =SUM(O96:O101) -> 0 | Q102: =SUM(Q96:Q101) -> 0 | R102: =SUM(R96:R101) -> 0 | T102: =SUM(T96:T101) -> 0 | U102: 0 | V102: 0 | W102: 0 | X102: 0 | Y102: 0 | Z102: 0 | AA102: =O101+R101+U101+V101+SUM(X101:Z101) -> 0 | AC102: =SUM(AC96:AC101) -> 0 | AD102: =SUM(AD96:AD101) -> 0 | AE102: =SUM(AE96:AE101) -> 0 | AF102: =SUM(AF96:AF101) -> 0 | AG102: =SUM(AG96:AG101) -> 0
A103: AUG231_92 | B103: <Enter substation ID>
A104: AUG231_93
A105: AUG231_94
A106: AUG231_95
A107: AUG231_96
A108: AUG231_97
B109: Project Totals | L109: =SUM(L103:L108) -> 0 | M109: =SUM(M103:M108) -> 0 | O109: =SUM(O103:O108) -> 0 | Q109: =SUM(Q103:Q108) -> 0 | R109: =SUM(R103:R108) -> 0 | T109: =SUM(T103:T108) -> 0 | U109: 0 | V109: 0 | W109: 0 | X109: 0 | Y109: 0 | Z109: 0 | AA109: =O108+R108+U108+V108+SUM(X108:Z108) -> 0 | AC109: =SUM(AC103:AC108) -> 0 | AD109: =SUM(AD103:AD108) -> 0 | AE109: =SUM(AE103:AE108) -> 0 | AF109: =SUM(AF103:AF108) -> 0 | AG109: =SUM(AG103:AG108) -> 0
A110: AUG231_99 | B110: <Enter substation ID>
A111: AUG231_100
A112: AUG231_101
A113: AUG231_102
A114: AUG231_103
A115: AUG231_104
B116: Project Totals | L116: =SUM(L110:L115) -> 0 | M116: =SUM(M110:M115) -> 0 | O116: =SUM(O110:O115) -> 0 | Q116: =SUM(Q110:Q115) -> 0 | R116: =SUM(R110:R115) -> 0 | T116: =SUM(T110:T115) -> 0 | U116: 0 | V116: 0 | W116: 0 | X116: 0 | Y116: 0 | Z116: 0 | AA116: =O115+R115+U115+V115+SUM(X115:Z115) -> 0 | AC116: =SUM(AC110:AC115) -> 0 | AD116: =SUM(AD110:AD115) -> 0 | AE116: =SUM(AE110:AE115) -> 0 | AF116: =SUM(AF110:AF115) -> 0 | AG116: =SUM(AG110:AG115) -> 0
A117: AUG231_1000 | D117: Non material projects | AB117: 2021, 2022 | AF117: 0 | AG117: 0 | AH117: CP.02759 - T053 Kamerunga Transformer Ratings
A118: AUG231_1001 | D118: Non material projects
D119: Non material projects
B122: 2.3.2 - AUGEX ASSET DATA - LINES
B123: NOTE: TNSP MUST PROVIDE EXPENDITURE INFORMATION ON A PROJECT CLOSE BASIS.
A124: AUG232 | I124: ET_AUG232_00001 | J124: ET_AUG232_00002 | K124: ET_AUG232_00003 | M124: ET_AUG232_00004 | N124: ET_AUG232_00005 | O124: ET_AUG232_00006 | P124: ET_AUG232_00007 | Q124: ET_AUG232_00008 | R124: ET_AUG232_00009 | S124: ET_AUG232_00010 | T124: ET_AUG232_00011 | U124: ET_AUG232_00012 | V124: ET_AUG232_00013 | W124: ET_AUG232_00014 | X124: ET_AUG232_00015 | Y124: ET_AUG232_00016 | Z124: ET_AUG232_00017 | AA124: ET_AUG232_00018 | AB124: ET_AUG232_00019 | AC124: ET_AUG232_00020 | AD124: ET_AUG232_00021
B125: LINE AND PROJECT SUMMARY | H125: PLANT AND EQUIPMENT EXPENDITURE AND VOLUME | V125: OTHER EXPENDITURE | X125: TOTAL DIRECT EXPENDITURE ($0's) | Y125: YEARS INCURRED | Z125: ALL RELATED PARTY CONTRACTS | AB125: ALL NON RELATED PARTYCONTRACTS | AC125: LAND AND EASEMENTS
B126: LINE ID | C126: PROJECT ID | D126: PROJECT TYPE | E126: PROJECT TRIGGER | F126: VOLTAGE (KV) | G126: ROUTE LINE LENGTH ADDED | H126: TOWERS/POLES (INCLUDING STRUCTURES, AND CIVIL WORKS) | L126: LINES AND CABLES | S126: OTHER PLANT ITEM Expenditure ($0's) | T126: INSTALLATION (LABOUR) | V126: CIVIL WORKS | W126: OTHER DIRECT | Z126: RELATED PARTY MARGINS | AA126: TOTAL | AC126: LAND PURCHASES | AD126: EASEMENTS
L127: Type | M127: Rating (MVA) | O127: N-1 Emergency Rating (MVA) | Q127: Circuit KM Added | R127: Expenditure ($0's)
A128: AUG232_1 | G128: KM ADDED | H128: Configuration | I128: Towers/Poles Added | J128: Towers/Poles Upgraded | K128: Expenditure ($0's) | M128: PRE | N128: POST | O128: PRE | P128: POST | T128: Volume | U128: Expenditure ($0's) | V128: Expenditure ($0's) | Z128: Expenditure ($0's) | AC128: Expenditure ($0's)
A129: AUG232_2 | B129: <Enter line ID>
A130: AUG232_3
A131: AUG232_4
A132: AUG232_5
A133: AUG232_6
A134: AUG232_7
A136: AUG232_8 | B136: Project Totals | I136: =SUM(I129:I135) -> 0 | J136: =SUM(J129:J135) -> 0 | K136: =SUM(K129:K135) -> 0 | Q136: =SUM(Q129:Q135) -> 0 | R136: =SUM(R129:R135) -> 0 | S136: =SUM(S129:S134) -> 0 | T136: =SUM(T129:T134) -> 0 | U136: =SUM(U129:U135) -> 0 | V136: =SUM(V129:V135) -> 0 | W136: =SUM(W129:W135) -> 0 | X136: =K81+R81+S81+SUM(U81:W81) -> 0 | Z136: =SUM(Z129:Z135) -> 0 | AA136: =SUM(AA129:AA135) -> 0 | AB136: =SUM(AB129:AB135) -> 0 | AC136: =SUM(AC129:AC135) -> 0 | AD136: =SUM(AD129:AD135) -> 0
A137: AUG232_9 | B137: <Enter line ID>
A138: AUG232_10
A139: AUG232_11
A140: AUG232_12
A141: AUG232_13
A142: AUG232_14
A144: AUG232_15 | B144: Project Totals | I144: =SUM(I137:I143) -> 0 | J144: =SUM(J137:J143) -> 0 | K144: =SUM(K137:K143) -> 0 | Q144: =SUM(Q137:Q143) -> 0 | R144: =SUM(R137:R143) -> 0 | S144: =SUM(S137:S142) -> 0 | T144: =SUM(T137:T142) -> 0 | U144: =SUM(U137:U143) -> 0 | V144: =SUM(V137:V143) -> 0 | W144: =SUM(W137:W143) -> 0 | X144: =K74+R74+S74+SUM(U74:W74) -> 0 | Z144: =SUM(Z137:Z143) -> 0 | AA144: =SUM(AA137:AA143) -> 0 | AB144: =SUM(AB137:AB143) -> 0 | AC144: =SUM(AC137:AC143) -> 0 | AD144: =SUM(AD137:AD143) -> 0
A145: AUG232_16 | B145: <Enter line ID>
A146: AUG232_17
A147: AUG232_18
A148: AUG232_19
A149: AUG232_20
A150: AUG232_21
A152: AUG232_22 | B152: Project Totals | I152: =SUM(I145:I151) -> 0 | J152: =SUM(J145:J151) -> 0 | K152: =SUM(K145:K151) -> 0 | Q152: =SUM(Q145:Q151) -> 0 | R152: =SUM(R145:R151) -> 0 | S152: =SUM(S145:S150) -> 0 | T152: =SUM(T145:T150) -> 0 | U152: =SUM(U145:U151) -> 0 | V152: =SUM(V145:V151) -> 0 | W152: =SUM(W145:W151) -> 0 | X152: =K81+R81+S81+SUM(U81:W81) -> 0 | Z152: =SUM(Z145:Z151) -> 0 | AA152: =SUM(AA145:AA151) -> 0 | AB152: =SUM(AB145:AB151) -> 0 | AC152: =SUM(AC145:AC151) -> 0 | AD152: =SUM(AD145:AD151) -> 0
A153: AUG232_23 | B153: <Enter line ID>
A154: AUG232_24
A155: AUG232_25
A156: AUG232_26
A157: AUG232_27
A158: AUG232_28
A160: AUG232_29 | B160: Project Totals | I160: =SUM(I153:I159) -> 0 | J160: =SUM(J153:J159) -> 0 | K160: =SUM(K153:K159) -> 0 | Q160: =SUM(Q153:Q159) -> 0 | R160: =SUM(R153:R159) -> 0 | S160: =SUM(S153:S158) -> 0 | T160: =SUM(T153:T158) -> 0 | U160: =SUM(U153:U159) -> 0 | V160: =SUM(V153:V159) -> 0 | W160: =SUM(W153:W159) -> 0 | X160: =K88+R88+S88+SUM(U88:W88) -> 0 | Z160: =SUM(Z153:Z159) -> 0 | AA160: =SUM(AA153:AA159) -> 0 | AB160: =SUM(AB153:AB159) -> 0 | AC160: =SUM(AC153:AC159) -> 0 | AD160: =SUM(AD153:AD159) -> 0
A161: AUG232_30 | B161: <Enter line ID>
A162: AUG232_31
A163: AUG232_32
A164: AUG232_33
A165: AUG232_34
A166: AUG232_35
A168: AUG232_36 | B168: Project Totals | I168: =SUM(I161:I167) -> 0 | J168: =SUM(J161:J167) -> 0 | K168: =SUM(K161:K167) -> 0 | Q168: =SUM(Q161:Q167) -> 0 | R168: =SUM(R161:R167) -> 0 | S168: =SUM(S161:S166) -> 0 | T168: =SUM(T161:T166) -> 0 | U168: =SUM(U161:U167) -> 0 | V168: =SUM(V161:V167) -> 0 | W168: =SUM(W161:W167) -> 0 | X168: =K95+R95+S95+SUM(U95:W95) -> 0 | Z168: =SUM(Z161:Z167) -> 0 | AA168: =SUM(AA161:AA167) -> 0 | AB168: =SUM(AB161:AB167) -> 0 | AC168: =SUM(AC161:AC167) -> 0 | AD168: =SUM(AD161:AD167) -> 0
A169: AUG232_37 | B169: <Enter line ID>
A170: AUG232_38
A171: AUG232_39
A172: AUG232_40
A173: AUG232_41
A174: AUG232_42
A176: AUG232_43 | B176: Project Totals | I176: =SUM(I169:I175) -> 0 | J176: =SUM(J169:J175) -> 0 | K176: =SUM(K169:K175) -> 0 | Q176: =SUM(Q169:Q175) -> 0 | R176: =SUM(R169:R175) -> 0 | S176: =SUM(S169:S174) -> 0 | T176: =SUM(T169:T174) -> 0 | U176: =SUM(U169:U175) -> 0 | V176: =SUM(V169:V175) -> 0 | W176: =SUM(W169:W175) -> 0 | X176: =K102+R102+S102+SUM(U102:W102) -> 0 | Z176: =SUM(Z169:Z175) -> 0 | AA176: =SUM(AA169:AA175) -> 0 | AB176: =SUM(AB169:AB175) -> 0 | AC176: =SUM(AC169:AC175) -> 0 | AD176: =SUM(AD169:AD175) -> 0
A177: AUG232_44 | B177: <Enter line ID>
A178: AUG232_45
A179: AUG232_46
A180: AUG232_47
A181: AUG232_48
A182: AUG232_49
A184: AUG232_1000 | B184: Project Totals | I184: =SUM(I177:I183) -> 0 | J184: =SUM(J177:J183) -> 0 | K184: =SUM(K177:K183) -> 0 | Q184: =SUM(Q177:Q183) -> 0 | R184: =SUM(R177:R183) -> 0 | S184: =SUM(S177:S182) -> 0 | T184: =SUM(T177:T182) -> 0 | U184: =SUM(U177:U183) -> 0 | V184: =SUM(V177:V183) -> 0 | W184: =SUM(W177:W183) -> 0 | X184: =K109+R109+S109+SUM(U109:W109) -> 0 | Z184: =SUM(Z177:Z183) -> 0 | AA184: =SUM(AA177:AA183) -> 0 | AB184: =SUM(AB177:AB183) -> 0 | AC184: =SUM(AC177:AC183) -> 0 | AD184: =SUM(AD177:AD183) -> 0
A185: AUG232_1001 | C185: Non material projects | Y185: 2021 | AE185: CP.02741 - Real Time Rating of Loaded Feeders (2019 -2021)
A186: AUG232_1002 | C186: Non material projects | Y186: 2026 | AE186: Ground Clearance Rectification - various (2020 - 2026)
C187: Non material projects

Sheet 2.3 Augex (b)
B1: =(LOOKUP(dms_Model,dms_Model_List,dms_Worksheet_List)) -> REGULATORY REPORTING STATEMENT
B2: =INDEX(dms_TradingNameFull_List,MATCH(dms_TradingName,dms_TradingName_List)) -> Queensland Electricity Transmission Corporation Limited trading as Powerlink Queensland
B3: =IF(SUM(dms_SingleYear_Model)>0,CRY,CONCATENATE(FRCP_y1," to ",dms_MultiYear_FinalYear_Result)) -> 2022-23 to 2026-27
B4: 2.3 AUGEX PROJECTS
B6: There are THREE tables on this worksheet - each has been 'grouped' for easy navigation. See the Instructions sheet on how to group or ungroup tables.
B8: 2.3.4 - AUGEX - TOTAL EXPENDITURE
C9: =CONCATENATE("EXPENDITURE Forecast ($0's. real ",dms_DollarReal,")") -> EXPENDITURE Forecast ($0's. real June 2022)
B10: As incurred | C10: =dms_y1 -> 2020-21 | D10: =dms_y2 -> 2021-22 | E10: =dms_y3 -> 2022-23 | F10: =dms_y4 -> 2023-24 | G10: =dms_y5 -> 2024-25 | H10: =dms_y6 -> 2025-26 | I10: =dms_y7 -> 2026-27
B11: Substations | C11: 381954.5708 | D11: 189556.2018 | E11: 0 | F11: 0 | G11: 0 | H11: 0 | I11: 0
B12: Lines | C12: 5443380.718 | D12: 3893078.902 | E12: 3219430.192 | F12: 2009296.415 | G12: 1061680.453 | H12: 77666.00682 | I12: 0
B13: Other assets | C13: 0 | D13: 0 | E13: 0 | F13: 0 | G13: 0 | H13: 0 | I13: 0
B14: Total | C14: =SUM(C11:C13) -> 5825335.289 | D14: 4082635.104 | E14: 3219430.192 | F14: 2009296.415 | G14: 1061680.453 | H14: 77666.00682 | I14: 0

Sheet 2.5 Connections
B1: =(LOOKUP(dms_Model,dms_Model_List,dms_Worksheet_List)) -> REGULATORY REPORTING STATEMENT
B2: =INDEX(dms_TradingNameFull_List,MATCH(dms_TradingName,dms_TradingName_List)) -> Queensland Electricity Transmission Corporation Limited trading as Powerlink Queensland
B3: =IF(SUM(dms_SingleYear_Model)>0,CRY,CONCATENATE(FRCP_y1," to ",dms_MultiYear_FinalYear_Result)) -> 2022-23 to 2026-27
B4: 2.5 CONNECTIONS EXPENDITURE
B6: There are TWO tables on this worksheet. Each has been grouped (or sub-grouped). See the Instructions sheet on how to group or ungroup data.
B8: 2.5.1 - EXPENDITURE ON CONNECTION PROJECTS
C9: =CONCATENATE("EXPENDITURE Forecast ($0's. real ",dms_DollarReal,")") -> EXPENDITURE Forecast ($0's. real June 2022)
C10: =dms_y1 -> 2020-21 | D10: =dms_y2 -> 2021-22 | E10: =dms_y3 -> 2022-23 | F10: =dms_y4 -> 2023-24 | G10: =dms_y5 -> 2024-25 | H10: =dms_y6 -> 2025-26 | I10: =dms_y7 -> 2026-27
B11: DIRECT MATERIALS EXPENDITURE
B12: H038 - Goodna, T6
B37: DIRECT LABOUR EXPENDITURE
B38: =IF(ISBLANK(B12),"",B12) -> H038 - Goodna, T6
B66: 2.5.2 - DESCRIPTION OF CONNECTION PROJECTS
C67: CONNECTION RATING (MVA) | D67: CONNECTION VOLTAGE (KV) | E67: UNDERGROUND / OVERHEAD (drop down) | F67: YEAR CONNECTION PROJECT COMPLETED
B68: =IF(ISBLANK(B12),"",B12) -> H038 - Goodna, T6 | C68: 100 | D68: 110 | E68: Overhead | F68: 2028

Sheet 2.6 Non-network
B1: =(LOOKUP(dms_Model,dms_Model_List,dms_Worksheet_List)) -> REGULATORY REPORTING STATEMENT
B2: =INDEX(dms_TradingNameFull_List,MATCH(dms_TradingName,dms_TradingName_List)) -> Queensland Electricity Transmission Corporation Limited trading as Powerlink Queensland
B3: =IF(SUM(dms_SingleYear_Model)>0,CRY,CONCATENATE(FRCP_y1," to ",dms_MultiYear_FinalYear_Result)) -> 2022-23 to 2026-27
B4: 2.6 NON NETWORK EXPENDITURE
B6: There are THREE tables on this worksheet - each has been 'grouped' for easy navigation. See the Instructions sheet on how to group or ungroup tables.
B8: 2.6.1 - NON-NETWORK EXPENDITURE
E9: =CONCATENATE("EXPENDITURE Forecast ($0's. real ",dms_DollarReal,")") -> EXPENDITURE Forecast ($0's. real June 2022)
B10: SERVICE SUBCATEGORY | C10: ASSET CATEGORY | E10: =dms_y1 -> 2020-21 | F10: =dms_y2 -> 2021-22 | G10: =dms_y3 -> 2022-23 | H10: =dms_y4 -> 2023-24 | I10: =dms_y5 -> 2024-25 | J10: =dms_y6 -> 2025-26 | K10: =dms_y7 -> 2026-27
B11: OPEX
B12: IT & COMMUNICATIONS | C12: Total IT and communications | E12: 23982348.99 | F12: 23828779.31 | G12: 23675209.64 | H12: 23964455.82 | I12: 23896199.75 | J12: 23985208.95 | K12: 24027522.61
B13: MOTOR VEHICLES | C13: Car | E13: 265531.9429 | F13: 265325.3498 | G13: 265118.7567 | H13: 268357.7813 | I13: 267593.4391 | J13: 268590.1782 | K13: 269064.0133
C14: Light commercial vehicle | E14: 1740190.505 | F14: 1738836.577 | G14: 1737482.648 | H14: 1758709.924 | I14: 1753700.73 | J14: 1760232.96 | K14: 1763338.287
C15: Elevated work platform (LCV) | E15: 0 | F15: 0 | G15: 0 | H15: 0 | I15: 0 | J15: 0 | K15: 0
C16: Elevated work platform (HCV) | E16: 0 | F16: 0 | G16: 0 | H16: 0 | I16: 0 | J16: 0 | K16: 0
C17: Heavy commercial vehicle | E17: 144815.5647 | F17: 144702.8932 | G17: 144590.2216 | H17: 146356.7179 | I17: 145939.8616 | J17: 146483.4622 | K17: 146741.882
B18: BUILDINGS AND PROPERTY | C18: Total buildings and property expenditure | E18: 5705911.953 | F18: 5664799.556 | G18: 5623687.16 | H18: 5692393.205 | I18: 5676180.012 | J18: 5697322.797 | K18: 5707373.766
B19: OTHER | C19: Other expenditure
B20: OTHER - TNSP nominated | C20: Motor Vehicle - Other | E20: 223849.5854 | F20: 223675.4226 | G20: 223501.2598 | H20: 226231.8327 | I20: 225587.4745 | J20: 226427.7486 | K20: 226827.2026
B31: CAPEX
B32: IT & COMMUNICATIONS | C32: Total IT and communications | E32: 16600321.57 | F32: 8933020.534 | G32: 14828841.6 | H32: 12820018.31 | I32: 8878388.627 | J32: 10771073.55 | K32: 8329036.931
B33: MOTOR VEHICLES | C33: Car | E33: 472339.5647 | F33: 85613.80517 | G33: 445396.9482 | H33: 118180.9664 | I33: 431613.5309 | J33: 128591.8171 | K33: 340348.5394
C34: Light commercial vehicle | E34: 3783667.815 | F34: 2049502.372 | G34: 2055463.927 | H34: 1916003.222 | I34: 2140183.961 | J34: 3316532.215 | K34: 3274795.484
C35: Elevated work platform (LCV) | E35: 0 | F35: 0 | G35: 0 | H35: 0 | I35: 0 | J35: 0 | K35: 0
C36: Elevated work platform (HCV) | E36: 0 | F36: 0 | G36: 0 | H36: 0 | I36: 0 | J36: 0 | K36: 0
C37: Heavy commercial vehicle | E37: 0 | F37: 605744.1397 | G37: 0 | H37: 0 | I37: 0 | J37: 488605.1836 | K37: 113286.0702
B38: BUILDINGS AND PROPERTY | C38: Total buildings and property expenditure | E38: 36824.43764 | F38: 1610304.066 | G38: 3586687.078 | H38: 22057655.26 | I38: 11651507.46 | J38: 476655.3724 | K38: 39501.16854
B39: OTHER | C39: Other expenditure | E39: 0 | F39: 0 | G39: 0 | H39: 0 | I39: 0 | J39: 0 | K39: 0
B40: OTHER - TNSP nominated | C40: Motor Vehicle - Other | E40: 203664.4297 | F40: 411260.2792 | G40: 382482.4199 | H40: 76017.54102 | I40: 371447.2346 | J40: 20897.46119 | K40: 94460.42894
B54: 2.6.3 - ANNUAL DESCRIPTOR METRICS
B55: IT & COMMUNICATIONS
E56: VOLUMES (0's)
E57: =dms_y1 -> 2020-21 | F57: =dms_y2 -> 2021-22 | G57: =dms_y3 -> 2022-23 | H57: =dms_y4 -> 2023-24 | I57: =dms_y5 -> 2024-25 | J57: =dms_y6 -> 2025-26 | K57: =dms_y7 -> 2026-27
B58: Employee numbers | E58: 930 | F58: 930 | G58: 930 | H58: 930 | I58: 930 | J58: 930 | K58: 930
B59: User numbers | E59: 1650 | F59: 1650 | G59: 1650 | H59: 1650 | I59: 1650 | J59: 1650 | K59: 1650
B60: Number of devices | E60: 2374 | F60: 2405 | G60: 2300 | H60: 2300 | I60: 2300 | J60: 2300 | K60: 2300
B63: MOTOR VEHICLES
E64: VOLUMES (0's or %)
D65: Units | E65: =dms_y1 -> 2020-21 | F65: =dms_y2 -> 2021-22 | G65: =dms_y3 -> 2022-23 | H65: =dms_y4 -> 2023-24 | I65: =dms_y5 -> 2024-25 | J65: =dms_y6 -> 2025-26 | K65: =dms_y7 -> 2026-27
B66: CAR | C66: Average kilometres travelled | D66: 0's | E66: 14638.20368 | F66: 14638.20368 | G66: 14638.20368 | H66: 14638.20368 | I66: 14638.20368 | J66: 14638.20368 | K66: 14638.20368
C67: Number purchased | D67: 0's | E67: 10 | F67: 2 | G67: 8 | H67: 2 | I67: 8 | J67: 3 | K67: 6
C68: Number leased | D68: 0's | E68: 0 | F68: 0 | G68: 0 | H68: 0 | I68: 0 | J68: 0 | K68: 0
C69: Number in fleet | D69: 0's | E69: 47 | F69: 47 | G69: 47 | H69: 47 | I69: 47 | J69: 47 | K69: 47
C70: Proportion of total fleet expenditure allocated as regulatory expenditure | D70: % | E70: 0.851 | F70: 0.851 | G70: 0.851 | H70: 0.851 | I70: 0.851 | J70: 0.851 | K70: 0.851
B71: LIGHT COMMERCIAL VEHICLE | C71: Average kilometres travelled | D71: 0's | E71: 23945.81951 | F71: 23945.81951 | G71: 23945.81951 | H71: 23945.81951 | I71: 23945.81951 | J71: 23945.81951 | K71: 23945.81951
C72: Number purchased | D72: 0's | E72: 46 | F72: 23 | G72: 25 | H72: 20 | I72: 24 | J72: 41 | K72: 39
C73: Number leased | D73: 0's | E73: 0 | F73: 0 | G73: 0 | H73: 0 | I73: 0 | J73: 0 | K73: 0
C74: Number in fleet | D74: 0's | E74: 173 | F74: 177 | G74: 177 | H74: 177 | I74: 177 | J74: 177 | K74: 177
C75: Proportion of total fleet expenditure allocated as regulatory expenditure | D75: % | E75: 0.851 | F75: 0.851 | G75: 0.851 | H75: 0.851 | I75: 0.851 | J75: 0.851 | K75: 0.851
B76: ELEVATED WORK PLATFORM (LCV) | C76: Average kilometres travelled | D76: 0's
C77: Number purchased | D77: 0's
C78: Number leased | D78: 0's
C79: Number in fleet | D79: 0's
C80: Proportion of total fleet expenditure allocated as regulatory expenditure | D80: %
B81: ELEVATED WORK PLATFORM (HCV) | C81: Average kilometres travelled | D81: 0's
C82: Number purchased | D82: 0's
C83: Number leased | D83: 0's
C84: Number in fleet | D84: 0's
C85: Proportion of total fleet expenditure allocated as regulatory expenditure | D85: %
B86: HEAVY COMMERCIAL VEHICLE | C86: Average kilometres travelled | D86: 0's | E86: 14505.78152 | F86: 14505.78152 | G86: 14505.78152 | H86: 14505.78152 | I86: 14505.78152 | J86: 14505.78152 | K86: 14505.78152
C87: Number purchased | D87: 0's | E87: 0 | F87: 2 | G87: 0 | H87: 0 | I87: 0 | J87: 2 | K87: 1
C88: Number leased | D88: 0's | E88: 0 | F88: 0 | G88: 0 | H88: 0 | I88: 0 | J88: 0 | K88: 0
C89: Number in fleet | D89: 0's | E89: 8 | F89: 8 | G89: 8 | H89: 8 | I89: 8 | J89: 8 | K89: 8
C90: Proportion of total fleet expenditure allocated as regulatory expenditure | D90: % | E90: 0.851 | F90: 0.851 | G90: 0.851 | H90: 0.851 | I90: 0.851 | J90: 0.851 | K90: 0.851
B94: 2.6.4 - INFORMATION & COMMUNICATIONS TECHNOLOGY - CAPEX BY PURPOSE
E95: =CONCATENATE("EXPENDITURE Forecast ($0's. real ",dms_DollarReal,")") -> EXPENDITURE Forecast ($0's. real June 2022)
E96: =dms_y1 -> 2020-21 | F96: =dms_y2 -> 2021-22 | G96: =dms_y3 -> 2022-23 | H96: =dms_y4 -> 2023-24 | I96: =dms_y5 -> 2024-25 | J96: =dms_y6 -> 2025-26 | K96: =dms_y7 -> 2026-27
B97: RECURRENT
B98: Recurrent IT and Communications | E98: 2203919.721 | F98: 1098432.913 | G98: 8975262.83 | H98: 5040633.933 | I98: 3866738.543 | J98: 4118760.38 | K98: 5637522.49
B108: NON-RECURRENT
B109: Maintaining existing services, functionalities, capability and/or market benefits | E109: 13903749.31 | F109: 7834587.621 | G109: 4569327.785 | H109: 6875671.461 | I109: 4694338.905 | J109: 6652313.172 | K109: 2691514.441
B110: Complying with new / altered regulatory obligations / requirements | E110: 492652.5385 | F110: 0 | G110: 1284250.986 | H110: 903712.9156 | I110: 317311.1785 | J110: 0 | K110: 0
B111: New or expanded ICT capability, functions and services | E111: 0 | F111: 0 | G111: 0 | H111: 0 | I111: 0 | J111: 0 | K111: 0

Sheet 2.10 Overheads
B1: =(LOOKUP(dms_Model,dms_Model_List,dms_Worksheet_List)) -> REGULATORY REPORTING STATEMENT
B2: =INDEX(dms_TradingNameFull_List,MATCH(dms_TradingName,dms_TradingName_List)) -> Queensland Electricity Transmission Corporation Limited trading as Powerlink Queensland
B3: =IF(SUM(dms_SingleYear_Model)>0,CRY,CONCATENATE(FRCP_y1," to ",dms_MultiYear_FinalYear_Result)) -> 2022-23 to 2026-27
B4: 2.10 OVERHEADS
B6: There are TWO tables on this worksheet. Each has been grouped (and sub-grouped) for ease of navigation. See the Instructions sheet on how to group or ungroup tables.
B8: 2.10.1 - NETWORK OVERHEADS EXPENDITURE
D9: =CONCATENATE("EXPENDITURE Forecast ($0's. real ",dms_DollarReal,")") -> EXPENDITURE Forecast ($0's. real June 2022)
D10: =dms_y1 -> 2020-21 | E10: =dms_y2 -> 2021-22 | F10: =dms_y3 -> 2022-23 | G10: =dms_y4 -> 2023-24 | H10: =dms_y5 -> 2024-25 | I10: =dms_y6 -> 2025-26 | J10: =dms_y7 -> 2026-27
B11: OPEX
B12: Prescribed Transmission Services | C12: Total | D12: 47562351.67 | E12: 50019418.17 | F12: 50186290.06 | G12: 50799484.04 | H12: 50654789.06 | I12: 50843475.46 | J12: 50933118.39
B13: CAPEX
B14: Prescribed Transmission Services | C14: Total
B15: OTHER TRANSMISSION SERVICES
B16: Negotiated Services | C16: Total
B17: Unregulated Services | C17: Total
B21: 2.10.2 - CORPORATE OVERHEADS EXPENDITURE
D22: =CONCATENATE("EXPENDITURE Forecast ($0's. real ",dms_DollarReal,")") -> EXPENDITURE Forecast ($0's. real June 2022)
D23: =dms_y1 -> 2020-21 | E23: =dms_y2 -> 2021-22 | F23: =dms_y3 -> 2022-23 | G23: =dms_y4 -> 2023-24 | H23: =dms_y5 -> 2024-25 | I23: =dms_y6 -> 2025-26 | J23: =dms_y7 -> 2026-27
B24: OPEX
B25: Prescribed Transmission Services | C25: Total | D25: 80552177.43 | E25: 74606292.38 | F25: 68075408.93 | G25: 68742004.93 | H25: 68530353.77 | I25: 68680343.07 | J25: 68712192.69
B26: CAPEX
B27: Prescribed Transmission Services | C27: Total | D27: 19201237.92 | E27: 12488717.61 | F27: 17295962.8 | G27: 14879182.9 | H27: 13771575.55 | I27: 7660103.216 | J27: 14330140.93
B28: OTHER TRANSMISSION SERVICES
B29: Negotiated Services | C29: Total
B30: Unregulated Services | C30: Total

Sheet 2.11 Labour
B1: =(LOOKUP(dms_Model,dms_Model_List,dms_Worksheet_List)) -> REGULATORY REPORTING STATEMENT
B2: =INDEX(dms_TradingNameFull_List,MATCH(dms_TradingName,dms_TradingName_List)) -> Queensland Electricity Transmission Corporation Limited trading as Powerlink Queensland
B3: =IF(SUM(dms_SingleYear_Model)>0,CRY,CONCATENATE(FRCP_y1," to ",dms_MultiYear_FinalYear_Result)) -> 2022-23 to 2026-27
B4: 2.11 LABOUR
B6: There is ONE table on this worksheet. The table has been 'grouped' (and sub-grouped) for easy navigation. See the Instructions sheet on how to group or ungroup data.
B8: Table numbering in this template starts at 2.11.3. Tables 2.11.1 & 2.11.2 appear in the Category Analysis RIN and are not required for this RIN.
B10: 2.11.3 - LABOUR / NON-LABOUR EXPENDITURE SPLIT
B11: OPEX
C12: EXPENDITURE
C13: ($0's, nominal) | H13: =CONCATENATE("($0's, real ", dms_DollarReal,")") -> ($0's, real June 2022)
C14: =PRCP_y4 -> 2015-16 | D14: =PRCP_y5 -> 2016-17 | E14: =CRCP_y1 -> 2017-18 | F14: =CRCP_y2 -> 2018-19 | G14: =CRCP_y3 -> 2019-20 | H14: =dms_y1 -> 2020-21 | I14: =dms_y2 -> 2021-22 | J14: =dms_y3 -> 2022-23 | K14: =dms_y4 -> 2023-24 | L14: =dms_y5 -> 2024-25 | M14: =dms_y6 -> 2025-26 | N14: =dms_y7 -> 2026-27
B15: In-house labour expenditure
B16: Labour expenditure outsourced to related parties
B17: Labour expenditure outsourced to unrelated parties
B18: Controllable non-labour expenditure
B19: Uncontrollable non-labour expenditure
B20: Total | C20: =SUM(C15:C19) -> 0 | D20: 0 | E20: 0 | F20: 0 | G20: 0 | H20: 0 | I20: 0 | J20: 0 | K20: 0 | L20: 0 | M20: 0 | N20: 0
B22: CAPEX
C23: EXPENDITURE
C24: ($0's, nominal) | H24: =CONCATENATE("($0's, real ", dms_DollarReal,")") -> ($0's, real June 2022)
C25: =PRCP_y4 -> 2015-16 | D25: =PRCP_y5 -> 2016-17 | E25: =CRCP_y1 -> 2017-18 | F25: =CRCP_y2 -> 2018-19 | G25: =CRCP_y3 -> 2019-20 | H25: =dms_y1 -> 2020-21 | I25: =dms_y2 -> 2021-22 | J25: =dms_y3 -> 2022-23 | K25: =dms_y4 -> 2023-24 | L25: =dms_y5 -> 2024-25 | M25: =dms_y6 -> 2025-26 | N25: =dms_y7 -> 2026-27
B26: In-house labour expenditure
B27: Labour expenditure outsourced to related parties
B28: Labour expenditure outsourced to unrelated parties
B29: Controllable non-labour expenditure
B30: Uncontrollable non-labour expenditure
B31: Total | C31: =SUM(C26:C30) -> 0 | D31: 0 | E31: 0 | F31: 0 | G31: 0 | H31: 0 | I31: 0 | J31: 0 | K31: 0 | L31: 0 | M31: 0 | N31: 0

Sheet 2.14 Forecast price changes
B1: =(LOOKUP(dms_Model,dms_Model_List,dms_Worksheet_List)) -> REGULATORY REPORTING STATEMENT
B2: =INDEX(dms_TradingNameFull_List,MATCH(dms_TradingName,dms_TradingName_List)) -> Queensland Electricity Transmission Corporation Limited trading as Powerlink Queensland
B3: =IF(SUM(dms_SingleYear_Model)>0,CRY,CONCATENATE(FRCP_y1," to ",dms_MultiYear_FinalYear_Result)) -> 2022-23 to 2026-27
B4: 2.14 FORECAST PRICE CHANGES
B6: 2.14.2 - FORECAST CAPEX AND OPEX PRICE CHANGES
C7: Price changes (% YoY real) Current regulatory period | E7: Price changes (%YoY real) Forthcoming regulatory period
C8: Forecast
C9: =CRCP_y4 -> 2020-21 | D9: =CRCP_y5 -> 2021-22 | E9: =FRCP_y1 -> 2022-23 | F9: =FRCP_y2 -> 2023-24 | G9: =FRCP_y3 -> 2024-25 | H9: =FRCP_y4 -> 2025-26 | I9: =FRCP_y5 -> 2026-27
B10: OPEX
B11: Internal labour | C11: 0.004815408333 | D11: 0.006271508486 | E11: 0.003793852401 | F11: 0.005128940984 | G11: 0.008504989918 | H11: 0.01139630337 | I11: 0.006830847002
B12: Materials | C12: 0 | D12: 0 | E12: 0 | F12: 0 | G12: 0 | H12: 0 | I12: 0
B14: CAPEX
B15: Internal labour | C15: 0.004815408333 | D15: 0.006271508486 | E15: 0.003793852401 | F15: 0.005128940984 | G15: 0.008504989918 | H15: 0.01139630337 | I15: 0.006830847002
B16: External labour | C16: -0.005020609032 | D16: 0.0035999548 | E16: 0.003202625027 | F16: 0.004621692255 | G16: 0.008465768786 | H16: 0.0115009442 | I16: 0.005904909416
B17: Materials | C17: 0 | D17: 0 | E17: 0 | F17: 0 | G17: 0 | H17: 0 | I17: 0

Sheet 2.16 Opex Summary
B1: =(LOOKUP(dms_Model,dms_Model_List,dms_Worksheet_List)) -> REGULATORY REPORTING STATEMENT
B2: =INDEX(dms_TradingNameFull_List,MATCH(dms_TradingName,dms_TradingName_List)) -> Queensland Electricity Transmission Corporation Limited trading as Powerlink Queensland
B3: =IF(SUM(dms_SingleYear_Model)>0,CRY,CONCATENATE(FRCP_y1," to ",dms_MultiYear_FinalYear_Result)) -> 2022-23 to 2026-27
B4: 2.16 OPEX SUMMARY
B6: Instructions | K6: IMPORTANT!
B7: =CONCATENATE("Complete the tables below in accordance with the regulatory information notice. ",dms_TradingName, "'s total forecast opex must reconcile to Table 2.16.1. If ",dms_TradingName," did not forecast its total opex using a Base Year approach, total forecast opex must reconcile to Table 2.16.2") -> Complete the tables below in accordance with the regulatory information notice. Powerlink's total forecast opex must reconcile to Table 2.16.1. If Powerlink did not forecast its total opex using a Base Year approach, total forecast opex must reconcile to Table 2.16.2 | K7: =CONCATENATE("Has ",dms_TradingName," used a base-step-trend model to derive its opex forecast? ") -> Has Powerlink used a base-step-trend model to derive its opex forecast? | M7: Yes
B8: The total step changes and category specific forecasts in Table 2.16.1 must reconcile (in each year) to the total step changes and category secific forecasts for each year in Tables 2.17.1 and 2.17.5 of worksheet 2.17 Step Changes.") | K8: Yes / No
K9: Please nominate the base year. | M9: 2018-19
B11: 2.16.1 - PRESCRIBED TRANSMISSION SERVICES - OPEX BY DRIVER
C12: =CONCATENATE("Forecast ($0's, real ", dms_DollarReal, ")") -> Forecast ($0's, real June 2022)
C13: =CRCP_y1 -> 2017-18 | D13: =CRCP_y2 -> 2018-19 | E13: =CRCP_y3 -> 2019-20 | F13: =CRCP_y4 -> 2020-21 | G13: =CRCP_y5 -> 2021-22 | H13: =FRCP_y1 -> 2022-23 | I13: =FRCP_y2 -> 2023-24 | J13: =FRCP_y3 -> 2024-25 | K13: =FRCP_y4 -> 2025-26 | L13: =FRCP_y5 -> 2026-27
B14: Base year total opex, excluding category specific | D14: 199680735.3 | E14: 199680735.3 | F14: 199680735.3 | G14: 199680735.3 | H14: 199680735.3 | I14: 199680735.3 | J14: 199680735.3 | K14: 199680735.3 | L14: 199680735.3
B15: Increment from base year to final year | G15: -1741811.344 | H15: -1741811.344 | I15: -1741811.344 | J15: -1741811.344 | K15: -1741811.344 | L15: -1741811.344
B16: Price growth | H16: 485062.0357 | I16: 1238052.661 | J16: 2420730.832 | K16: 4014475.426 | L16: 4974740.275
B17: Output growth | H17: 460115.0565 | I17: 3184942.205 | J17: 2416035.015 | K17: 2556067.091 | L17: 2942088.308
B18: Productivity growth | H18: -903025.5067 | I18: -1961839.964 | J18: -2946421.541 | K18: -3935844.821 | L18: -4928496.389
B19: Step changes | H19: 0 | I19: 0 | J19: 0 | K19: 0 | L19: 0
B20: Category specific | D20: 6338267.664 | E20: 6338267.664 | F20: 6338267.664 | G20: 6338267.664 | H20: 9448284.585 | I20: 9398553.494 | J20: 9355933.561 | K20: 9285501.296 | L20: 9212630.94
B21: Total opex | C21: =SUM(C14:C20) -> 0 | D21: 206019003 | E21: 206019003 | F21: 206019003 | G21: 204277191.7 | H21: 207429360.2 | I21: 209798632.4 | J21: 209185201.9 | K21: 209859123 | L21: 210139887.1
B25: 2.16.2 - PRESCRIBED TRANSMISSION SERVICES - OPEX BY CATEGORY
C26: =CONCATENATE("Forecast ($0's, real ", dms_DollarReal, ")") -> Forecast ($0's, real June 2022)
C27: =CRCP_y1 -> 2017-18 | D27: =CRCP_y2 -> 2018-19 | E27: =CRCP_y3 -> 2019-20 | F27: =CRCP_y4 -> 2020-21 | G27: =CRCP_y5 -> 2021-22 | H27: =FRCP_y1 -> 2022-23 | I27: =FRCP_y2 -> 2023-24 | J27: =FRCP_y3 -> 2024-25 | K27: =FRCP_y4 -> 2025-26 | L27: =FRCP_y5 -> 2026-27
B58: Total opex | C58: =SUM(C28:C57) -> 0 | D58: 0 | E58: 0 | F58: 0 | G58: 0 | H58: 0 | I58: 0 | J58: 0 | K58: 0 | L58: 0

Sheet 2.17 Step Changes
B1: =(LOOKUP(dms_Model,dms_Model_List,dms_Worksheet_List)) -> REGULATORY REPORTING STATEMENT
B2: =INDEX(dms_TradingNameFull_List,MATCH(dms_TradingName,dms_TradingName_List)) -> Queensland Electricity Transmission Corporation Limited trading as Powerlink Queensland
B3: =IF(SUM(dms_SingleYear_Model)>0,CRY,CONCATENATE(FRCP_y1," to ",dms_MultiYear_FinalYear_Result)) -> 2022-23 to 2026-27
B4: 2.17 STEP CHANGES
B6: 2.17.1 - STEP CHANGES FOR PRESCRIBED TRANSMISSION SERVICES - FORECAST OPEX
F7: EXPENDITURE
F8: =CONCATENATE("Forecast ($0's, real ", dms_DollarReal, ")") -> Forecast ($0's, real June 2022)
B9: Step change | C9: Description | D9: =CRCP_y1 -> 2017-18 | E9: =CRCP_y2 -> 2018-19 | F9: =CRCP_y4 -> 2020-21 | G9: =CRCP_y5 -> 2021-22 | H9: =FRCP_y1 -> 2022-23 | I9: =FRCP_y2 -> 2023-24 | J9: =FRCP_y3 -> 2024-25 | K9: =FRCP_y4 -> 2025-26 | L9: =FRCP_y5 -> 2026-27
B24: Total | D24: =SUM(D17:D23) -> 0 | E24: 0 | F24: 0 | G24: 0 | H24: 0 | I24: 0 | J24: 0 | K24: 0 | L24: 0
B25: Check | H25: =IF(ROUND(H$24,0)-ROUND('2.16 Opex Summary'!C$19,0)=0,"OK","Error") -> OK | I25: =IF(ROUND(I$24,0)-ROUND('2.16 Opex Summary'!D$19,0)=0,"OK","Error") -> OK | J25: =IF(ROUND(J$24,0)-ROUND('2.16 Opex Summary'!E$19,0)=0,"OK","Error") -> OK | K25: =IF(ROUND(K$24,0)-ROUND('2.16 Opex Summary'!F$19,0)=0,"OK","Error") -> OK | L25: =IF(ROUND(L$24,0)-ROUND('2.16 Opex Summary'!G$19,0)=0,"OK","Error") -> OK
B28: 2.17.2 - STEP CHANGES FOR PRESCRIBED TRANSMISSION SERVICES - FORECAST CAPEX
F29: EXPENDITURE
F30: =CONCATENATE("Forecast ($0's, real ", dms_DollarReal, ")") -> Forecast ($0's, real June 2022)
B31: Step change | C31: Description | D31: =CRCP_y1 -> 2017-18 | E31: =CRCP_y2 -> 2018-19 | F31: =CRCP_y4 -> 2020-21 | G31: =CRCP_y5 -> 2021-22 | H31: =FRCP_y1 -> 2022-23 | I31: =FRCP_y2 -> 2023-24 | J31: =FRCP_y3 -> 2024-25 | K31: =FRCP_y4 -> 2025-26 | L31: =FRCP_y5 -> 2026-27
B47: Total | D47: =SUM(D32:D46) -> 0 | E47: 0 | F47: 0 | G47: 0 | H47: 0 | I47: 0 | J47: 0 | K47: 0 | L47: 0
B50: 2.17.5 - CATEGORY SPECIFIC OPEX FOR PRESCRIBED TRANSMISSION SERVICES
F51: EXPENDITURE
F52: =CONCATENATE("Forecast ($0's, real ", dms_DollarReal, ")") -> Forecast ($0's, real June 2022)
B53: Category | C53: Description | D53: =CRCP_y1 -> 2017-18 | E53: =CRCP_y2 -> 2018-19 | F53: =CRCP_y4 -> 2020-21 | G53: =CRCP_y5 -> 2021-22 | H53: =FRCP_y1 -> 2022-23 | I53: =FRCP_y2 -> 2023-24 | J53: =FRCP_y3 -> 2024-25 | K53: =FRCP_y4 -> 2025-26 | L53: =FRCP_y5 -> 2026-27
B61: AEMC Levy | F61: 5751878.941 | G61: 5924846.71 | H61: 5916796.31 | I61: 5931325.913 | J61: 5945642.774 | K61: 5960179.797 | L61: 5974752.364
B62: Network Support | F62: 3092589.014 | G62: 0 | H62: 0 | I62: 0 | J62: 0 | K62: 0 | L62: 0
B63: Debt Raising Costs | F63: 563104.995 | G63: 553426.8244 | H63: 3531488.275 | I63: 3467227.581 | J63: 3410290.787 | K63: 3325321.499 | L63: 3237878.576
B68: Total | D68: =SUM(D61:D67) -> 0 | E68: 0 | F68: 9407572.95 | G68: 6478273.535 | H68: 9448284.585 | I68: 9398553.494 | J68: 9355933.561 | K68: 9285501.296 | L68: 9212630.94
B69: Check | H69: =IF(ROUND(H$68,0)-ROUND('2.16 Opex Summary'!C$20,0)=0,"OK","Error") -> Error | I69: =IF(ROUND(I$68,0)-ROUND('2.16 Opex Summary'!D$20,0)=0,"OK","Error") -> Error | J69: =IF(ROUND(J$68,0)-ROUND('2.16 Opex Summary'!E$20,0)=0,"OK","Error") -> Error | K69: =IF(ROUND(K$68,0)-ROUND('2.16 Opex Summary'!F$20,0)=0,"OK","Error") -> Error | L69: =IF(ROUND(L$68,0)-ROUND('2.16 Opex Summary'!G$20,0)=0,"OK","Error") -> Error

Sheet 3.1 Revenue
B1: =(LOOKUP(dms_Model,dms_Model_List,dms_Worksheet_List)) -> REGULATORY REPORTING STATEMENT
B2: =INDEX(dms_TradingNameFull_List,MATCH(dms_TradingName,dms_TradingName_List)) -> Queensland Electricity Transmission Corporation Limited trading as Powerlink Queensland
B3: =IF(SUM(dms_SingleYear_Model)>0,CRY,CONCATENATE(FRCP_y1," to ",dms_MultiYear_FinalYear_Result)) -> 2022-23 to 2026-27
B4: 3.1 REVENUE
B7: 3.1.1 - REVENUE GROUPING BY CHARGEABLE QUANTITY
C8: REVENUE
C9: =CONCATENATE("Forecast ($0's, real ",dms_DollarReal,")") -> Forecast ($0's, real June 2022)
C10: =dms_y1 -> 2020-21 | D10: =dms_y2 -> 2021-22 | E10: =dms_y3 -> 2022-23 | F10: =dms_y4 -> 2023-24 | G10: =dms_y5 -> 2024-25 | H10: =dms_y6 -> 2025-26 | I10: =dms_y7 -> 2026-27
A11: TREV0101 | B11: From Fixed Customer (Exit Point) Charges | C11: 96089891.66 | D11: 100531818.4 | E11: 86652147.46 | F11: 84746377.5 | G11: 84220168.48 | H11: 83696958.86 | I11: 83176731.53
A12: TREV0102 | B12: From Variable Customer (Exit Point) Charges | C12: 0 | D12: 0 | E12: 0 | F12: 0 | G12: 0 | H12: 0 | I12: 0
A13: TREV0103 | B13: From Fixed Generator (Entry Point) Charges | C13: 6345231.439 | D13: 6638551.088 | E13: 5722016.342 | F13: 5596170.103 | G13: 5561422.244 | H13: 5526872.448 | I13: 5492519.585
A14: TREV0104 | B14: From Variable Generator (Entry Point) Charges | C14: 0 | D14: 0 | E14: 0 | F14: 0 | G14: 0 | H14: 0 | I14: 0
A15: TREV0105 | B15: From Fixed Energy Usage Charges (Charge per day basis) | C15: 150909135.3 | D15: 157885179.4 | E15: 136087161.9 | F15: 133094151 | G15: 132267739.9 | H15: 131446039.4 | I15: 130629022.6
A16: TREV0106 | B16: From Variable Energy Usage charges (Charge per kWh basis) | C16: 65650632.12 | D16: 68685449.78 | E16: 59202567.07 | F16: 57900505.01 | G16: 57540987.96 | H16: 57183520.15 | I16: 56828089.91
A17: TREV0107 | B17: From Energy based Common Service and General Charges | C17: 318055221.9 | D17: 332757892.3 | E17: 286816516.5 | F17: 280508463.9 | G17: 278766724.7 | H17: 277034913.5 | I17: 275312973.6
A18: TREV0108 | B18: From Fixed Demand based Usage Charges | C18: 52444457.75 | D18: 54868796.42 | E18: 47293474.97 | F18: 46253333.6 | G18: 45966136.41 | H18: 45680576.25 | I18: 45396643.78
A19: TREV0109 | B19: From Variable Demand based Usage Charges | C19: 8556975.315 | D19: 8952536.774 | E19: 7716527.452 | F19: 7546815.256 | G19: 7499955.41 | H19: 7453362.665 | I19: 7407035.498
A20: TREV0110 | B20: Revenue from other Sources | C20: 88603917.58 | D20: 50481646.67 | E20: 45000000 | F20: 55000000 | G20: 55000000 | H20: 55000000 | I20: 55000000
A21: TREV01 | B21: Total | C21: =SUM(C11:C20) -> 786655463.1 | D21: 780801870.9 | E21: 674490411.7 | F21: 670645816.3 | G21: 666823135.2 | H21: 663022243.3 | I21: 659243016.5
B24: 3.1.2 - REVENUE GROUPING BY TYPE OF CONNECTED EQUIPMENT
C25: REVENUE
C26: =CONCATENATE("Forecast ($0's, real ",dms_DollarReal,")") -> Forecast ($0's, real June 2022)
C27: =dms_y1 -> 2020-21 | D27: =dms_y2 -> 2021-22 | E27: =dms_y3 -> 2022-23 | F27: =dms_y4 -> 2023-24 | G27: =dms_y5 -> 2024-25 | H27: =dms_y6 -> 2025-26 | I27: =dms_y7 -> 2026-27
A28: TREV0201 | B28: From Other connected transmission networks | C28: 14453682.16 | D28: 15121829.42 | E28: 13034072.33 | F28: 12747409.57 | G28: 12668258.08 | H28: 12589557.76 | I28: 12511306.03
A29: TREV0202 | B29: From Distribution networks | C29: 575862440.4 | D29: 602482709.6 | E29: 519302459.8 | F29: 507881265.3 | G29: 504727718.1 | H29: 501592146.2 | I29: 498474446.9
A30: TREV0203 | B30: From Directly connected end–users | C30: 101390191.5 | D30: 106077134.1 | E30: 91431863.17 | F30: 89420971.3 | G30: 88865736.7 | H30: 88313666.93 | I30: 87764743.96
A31: TREV0204 | B31: From Generators | C31: 6345231.439 | D31: 6638551.088 | E31: 5722016.342 | F31: 5596170.103 | G31: 5561422.244 | H31: 5526872.448 | I31: 5492519.585
A32: TREV0205 | B32: Other revenue | C32: 88603917.58 | D32: 50481646.67 | E32: 45000000 | F32: 55000000 | G32: 55000000 | H32: 55000000 | I32: 55000000
A33: TREV02 | B33: Total | C33: =SUM(C28:C32) -> 786655463.1 | D33: 780801870.9 | E33: 674490411.7 | F33: 670645816.3 | G33: 666823135.2 | H33: 663022243.3 | I33: 659243016.5
B36: 3.1.3 - REVENUE (penalties) ALLOWED (deducted) THROUGH INCENTIVE SCHEMES
C37: =CONCATENATE("Forecast ($0's, real ",dms_DollarReal,")") -> Forecast ($0's, real June 2022)
C38: =dms_y1 -> 2020-21 | D38: =dms_y2 -> 2021-22 | E38: =dms_y3 -> 2022-23 | F38: =dms_y4 -> 2023-24 | G38: =dms_y5 -> 2024-25 | H38: =dms_y6 -> 2025-26 | I38: =dms_y7 -> 2026-27
A39: TREV0301 | B39: EBSS | C39: 2586714.938 | D39: 0 | E39: 8311310.1 | F39: -7611012.791 | G39: 0 | H39: 1644432.925 | I39: 6094934.201
A40: TREV0302 | B40: STPIS | C40: -2081541 | D40: 442047.2976
A41: TREV0303 | B41: Other | C41: 0 | D41: 0 | E41: -739498.4257 | F41: -739498.4257 | G41: -739498.4257 | H41: -739498.4257 | I41: -739498.4257
A42: TREV03 | B42: Total | C42: =SUM(C39:C41) -> 505173.9383 | D42: 442047.2976 | E42: 7571811.674 | F42: -8350511.217 | G42: -739498.4257 | H42: 904934.4995 | I42: 5355435.776

Sheet 3.2 Operating expenditure
B1: =(LOOKUP(dms_Model,dms_Model_List,dms_Worksheet_List)) -> REGULATORY REPORTING STATEMENT
B2: =INDEX(dms_TradingNameFull_List,MATCH(dms_TradingName,dms_TradingName_List)) -> Queensland Electricity Transmission Corporation Limited trading as Powerlink Queensland
B3: =IF(SUM(dms_SingleYear_Model)>0,CRY,CONCATENATE(FRCP_y1," to ",dms_MultiYear_FinalYear_Result)) -> 2022-23 to 2026-27
B4: 3.2 OPERATING EXPENDITURE
B7: 3.2.1 - OPEX CATEGORIES
C8: EXPENDITURE
C9: =CONCATENATE("Forecast ($0's, real ",dms_DollarReal,")") -> Forecast ($0's, real June 2022)
C10: =dms_y1 -> 2020-21 | D10: =dms_y2 -> 2021-22 | E10: =dms_y3 -> 2022-23 | F10: =dms_y4 -> 2023-24 | G10: =dms_y5 -> 2024-25 | H10: =dms_y6 -> 2025-26 | I10: =dms_y7 -> 2026-27
B11: OPEX CATEGORIES AND COST ALLOCATIONS - approved CAM
B12: Field Maintenance - Routine | C12: 22193503.59 | D12: 22432024.44 | E12: 22282078.99 | F12: 22554329.37 | G12: 22490086.63 | H12: 22573861.01 | I12: 22613661.34
B13: Field Maintenance - Condition-based | C13: 28756236.35 | D13: 28724698.78 | E13: 27523532 | F13: 27859824.32 | G13: 27780469.65 | H13: 27883950.42 | I13: 27933113.05
B14: Field Maintenance - Corrective | C14: 17981655.38 | D14: 15135818 | E14: 17350073.14 | F14: 17562062.51 | G14: 17512039.52 | H14: 17577270.94 | I14: 17608261.7
B15: Operational Refurbishment | C15: 37856013.07 | D15: 38448070.84 | E15: 38439243.32 | F15: 38908907.69 | G15: 38798081.3 | H15: 38942602.09 | I15: 39011262.4
B16: Maintenance Support | C16: 13410089.5 | D16: 14626479.31 | E16: 14260376.59 | F16: 14434614.96 | G16: 14393500.05 | H16: 14447115.07 | I16: 14472587
B17: Network Operations | C17: 15651247.38 | D17: 16099689.44 | E17: 16137012.05 | F17: 16334179.81 | G17: 16287654.27 | H17: 16348324.91 | I17: 16377148.9
B18: Asset Management Support | C18: 24553425.43 | D18: 25658327.02 | E18: 26175213.82 | F18: 26495031.9 | G18: 26419564.64 | H18: 26517976.12 | I18: 26564730.38
B19: Corporate Support | C19: 32801377.87 | D19: 30438475.34 | E19: 27194950.06 | F19: 27527227.65 | G19: 27448820.33 | H19: 27551065.72 | I19: 27599641.44
B20: Self Insurance | C20: 1593897.012 | D20: 1588040.665 | E20: 1574982.901 | F20: 1594226.603 | G20: 1589685.679 | H20: 1595607.174 | I20: 1598420.414
B21: Insurance Premiums | C21: 9232573.256 | D21: 10566962.41 | E21: 7043612.711 | F21: 7129674.08 | G21: 7109366.236 | H21: 7135848.247 | I21: 7148429.573
B22: AEMC Levy | C22: 5751878.941 | D22: 5924846.71 | E22: 5916796.31 | F22: 5931325.913 | G22: 5945642.774 | H22: 5960179.797 | I22: 5974752.364
B23: Network Support | C23: 3092589.014 | D23: 0 | E23: 0 | F23: 0 | G23: 0 | H23: 0 | I23: 0
B24: Debt Raising Costs | C24: 563104.995 | D24: 553426.8244 | E24: 3531488.275 | F24: 3467227.581 | G24: 3410290.787 | H24: 3325321.499 | I24: 3237878.576
B46: Total | C46: =SUM(C12:C45) -> 213437591.8 | D46: 210196859.8 | E46: 207429360.2 | F46: 209798632.4 | G46: 209185201.9 | H46: 209859123 | I46: 210139887.1
B50: Instructions Table 3.2.3 must be completed if there are any proposed changes to the CAM reported in response to Schedule 1, paragraph 1.3.
B52: 3.2.3 - OPEX CATEGORIES - Revised CAM
C53: EXPENDITURE
C54: =CONCATENATE("Forecast ($0's, real ",dms_DollarReal,")") -> Forecast ($0's, real June 2022)
C55: =dms_y1 -> 2020-21 | D55: =dms_y2 -> 2021-22 | E55: =dms_y3 -> 2022-23 | F55: =dms_y4 -> 2023-24 | G55: =dms_y5 -> 2024-25 | H55: =dms_y6 -> 2025-26 | I55: =dms_y7 -> 2026-27
B56: OPEX CATEGORIES AND COST ALLOCATIONS - revised CAM
B91: Total | C91: =SUM(C57:C90) -> 0 | D91: 0 | E91: 0 | F91: 0 | G91: 0 | H91: 0 | I91: 0

Sheet 3.3 Assets (RAB)
B1: =(LOOKUP(dms_Model,dms_Model_List,dms_Worksheet_List)) -> REGULATORY REPORTING STATEMENT
B2: =INDEX(dms_TradingNameFull_List,MATCH(dms_TradingName,dms_TradingName_List)) -> Queensland Electricity Transmission Corporation Limited trading as Powerlink Queensland
B3: =IF(SUM(dms_SingleYear_Model)>0,CRY,CONCATENATE(FRCP_y1," to ",dms_MultiYear_FinalYear_Result)) -> 2022-23 to 2026-27
B4: 3.3 ASSETS
B6: There are FOUR tables on this worksheet. Each table has been grouped (and sub-grouped) for ease of navigation. See the Instructions sheet on how to group or ungroup tables.
B8: 3.3.1 - REGULATORY ASSET BASE VALUES
C9: =CONCATENATE("Forecast ($0's, real ",dms_DollarReal,")") -> Forecast ($0's, real June 2022)
C10: =dms_y1 -> 2020-21 | D10: =dms_y2 -> 2021-22 | E10: =dms_y3 -> 2022-23 | F10: =dms_y4 -> 2023-24 | G10: =dms_y5 -> 2024-25 | H10: =dms_y6 -> 2025-26 | I10: =dms_y7 -> 2026-27
B11: For total asset base:
A12: TRAB0101 | B12: Opening value | C12: 7104197526 | D12: =C17 -> 7003709947 | E12: 6958401180 | F12: 6831762431 | G12: 6719588309 | H12: 6552188891 | I12: 6379915170
A13: TRAB0102 | B13: Inflation addition | C13: 35871173.13 | D13: 70037099.47 | E13: 0 | F13: 0 | G13: 0 | H13: 0 | I13: 0
A14: TRAB0103 | B14: Straight line depreciation | C14: -317613648.7 | D14: -316560976.1 | E14: -318552908.8 | F14: -322712068.1 | G14: -325122357.7 | H14: -324971497.9 | I14: -325400527.1
A15: TRAB0105 | B15: Actual additions (recognised in RAB) | C15: 182156912.5 | D15: 210071679.2 | E15: 192606430 | F15: 211056012.9 | G15: 169523189.4 | H15: 153569193.5 | I15: 155083531.3
A16: TRAB0106 | B16: Disposals | C16: -902015.4888 | D16: -5086543.201 | E16: -692270.0385 | F16: -518066.6791 | G16: -11800249.84 | H16: -871416.4547 | I16: -809243.403
A17: TRAB0107 | B17: Closing value | C17: =SUM(C12:C16) -> 7003709947 | D17: 6962171206 | E17: 6831762431 | F17: 6719588309 | G17: 6552188891 | H17: 6379915170 | I17: 6208788931
B20: 3.3.2 - ASSET VALUE ROLL FORWARD
C21: =CONCATENATE("Forecast ($0's, real ",dms_DollarReal,")") -> Forecast ($0's, real June 2022)
C22: =dms_y1 -> 2020-21 | D22: =dms_y2 -> 2021-22 | E22: =dms_y3 -> 2022-23 | F22: =dms_y4 -> 2023-24 | G22: =dms_y5 -> 2024-25 | H22: =dms_y6 -> 2025-26 | I22: =dms_y7 -> 2026-27
B23: For overhead assets:
A24: TRAB0201 | B24: Opening value | C24: 3557387635 | D24: =C29 -> 3490517075 | E24: 3458604139 | F24: 3385018140 | G24: 3309917498 | H24: 3223928603 | I24: 3135444960
A25: TRAB0202 | B25: Inflation addition | C25: 17961464.03 | D25: 34905170.75 | E25: 0 | F25: 0 | G25: 0 | H25: 0 | I25: 0
A26: TRAB0203 | B26: Straight line depreciation | C26: -120599864.7 | D26: -121282138.4 | E26: -121490798.1 | F26: -121514465 | G26: -122871693.6 | H26: -124576587.9 | I26: -124913345.5
A27: TRAB0205 | B27: Actual additions (recognised in RAB) | C27: 35767840.54 | D27: 34581070.71 | E27: 47904798.68 | F27: 46413822.99 | G27: 36882798.88 | H27: 36092944.85 | I27: 43513243.89
A28: TRAB0206 | B28: Disposals
A29: TRAB0207 | B29: Closing value | C29: =SUM(C24:C28) -> 3490517075 | D29: 3438721178 | E29: 3385018140 | F29: 3309917498 | G29: 3223928603 | H29: 3135444960 | I29: 3054044859
B30: For underground assets:
A31: TRAB0301 | B31: Opening value | C31: 49143505.73 | D31: =+C36 -> 46910977.24 | E31: 45432671.88 | F31: =E36 -> 43639278.91 | G31: 56065036.03 | H31: 71528654.01 | I31: 75644743.34
A32: TRAB0302 | B32: Inflation addition | C32: 248063.0775 | D32: 469109.7724 | E32: 0 | F32: 0 | G32: 0 | H32: 0 | I32: 0
A33: TRAB0303 | B33: Straight line depreciation | C33: -2629081.211 | D33: -2616065.958 | E33: -2580113.443 | F33: -2580113.443 | G33: -2580113.443 | H33: -2657273.219 | I33: -2676419.17
A34: TRAB0305 | B34: Actual additions (recognised in RAB) | C34: 148489.6457 | D34: 693355.6652 | E34: 786720.4722 | F34: 15005870.56 | G34: 18043731.43 | H34: 6773362.547 | I34: 0
A35: TRAB0306 | B35: Disposals
A36: TRAB0307 | B36: Closing value | C36: =SUM(C31:C35) -> 46910977.24 | D36: 45457376.72 | E36: 43639278.91 | F36: 56065036.03 | G36: 71528654.01 | H36: 75644743.34 | I36: 72968324.17
B37: For switchyards, substations
A38: TRAB0401 | B38: Opening value | C38: 2526252485 | D38: =C43 -> 2473405205 | E38: 2438225960 | F38: 2394850997 | G38: 2335390594 | H38: 2248519266 | I38: 2160503132
A39: TRAB0402 | B39: Inflation addition | C39: 12754932.69 | D39: 24734052.05 | E39: 0 | F39: 0 | G39: 0 | H39: 0 | I39: 0
A40: TRAB0403 | B40: Straight line depreciation | C40: -156709027.9 | D40: -160430234.7 | E40: -143314432.3 | F40: -148863295.2 | G40: -154185962.5 | H40: -157731665.4 | I40: -159466873
A41: TRAB0405 | B41: Actual additions (recognised in RAB) | C41: 91106814.82 | D41: 124301758.6 | E41: 99939469.59 | F41: 89402891.46 | G41: 67314635.16 | H41: 69715531.59 | I41: 76651083.45
A42: TRAB0406 | B42: Disposals | D42: -4073807.517
A43: TRAB0407 | B43: Closing value | C43: =SUM(C38:C42) -> 2473405205 | D43: 2457936973 | E43: 2394850997 | F43: 2335390594 | G43: 2248519266 | H43: 2160503132 | I43: 2077687343
B44: For easements:
A45: TRAB0501 | B45: Opening value | C45: 688763000.4 | D45: =C50 -> 694766336.9 | E45: 701524808.5 | F45: 703564605.2 | G45: 706063839.9 | H45: 709459119.9 | I45: 714550195.2
A46: TRAB0502 | B46: Inflation addition | C46: 3478553.319 | D46: 6947663.369 | E46: 0 | F46: 0 | G46: 0 | H46: 0 | I46: 0
A47: TRAB0503 | B47: Straight line depreciation | C47: 0 | D47: 0 | E47: 0 | F47: 0 | G47: 0 | H47: 0 | I47: 0
A48: TRAB0505 | B48: Actual additions (recognised in RAB) | C48: 2524783.218 | D48: 277127.6006 | E48: 2039796.621 | F48: 2499234.748 | G48: 3395279.999 | H48: 5091075.308 | I48: 8176589.049
A49: TRAB0506 | B49: Disposals | D49: -292638.915
A50: TRAB0507 | B50: Closing value | C50: =SUM(C45:C49) -> 694766336.9 | D50: 701698488.9 | E50: 703564605.2 | F50: 706063839.9 | G50: 709459119.9 | H50: 714550195.2 | I50: 722726784.3
B51: For “other” assets with long lives:
A52: TRAB0601 | B52: Opening value | C52: 204213142.3 | D52: =C57 -> 217847711 | E52: 228336984.2 | F52: 234799045.5 | G52: 255251290.8 | H52: 254851759.6 | I52: 254409824.4
A53: TRAB0602 | B53: Inflation addition | C53: 1031958.097 | D53: 2178477.11 | E53: 0 | F53: 0 | G53: 0 | H53: 0 | I53: 0
A54: TRAB0603 | B54: Straight line depreciation | C54: -16219823.51 | D54: -17569297.09 | E54: -13146514.4 | F54: -17073412.19 | G54: -18044451.77 | H54: -18284121.76 | I54: -19478427.74
A55: TRAB0605 | B55: Actual additions (recognised in RAB) | C55: 28822434.15 | D55: 35690257.94 | E55: 19608575.65 | F55: 37525657.54 | G55: 28749775.02 | H55: 17842186.6 | I55: 11025133.44
A56: TRAB0606 | B56: Disposals | G56: -11104854.46
A57: TRAB0607 | B57: Closing value | C57: =SUM(C52:C56) -> 217847711 | D57: 238147148.9 | E57: 234799045.5 | F57: 255251290.8 | G57: 254851759.6 | H57: 254409824.4 | I57: 245956530.1
B58: For “other” assets with short lives:
A59: TRAB0701 | B59: Opening value | C59: 78437757.51 | D59: =C64 -> 80262642.76 | E59: 86276615.94 | F59: 69890364.37 | G59: 56900051.09 | H59: 43901488.27 | I59: 39362314.73
A60: TRAB0702 | B60: Inflation addition | C60: 396201.9197 | D60: 802626.4276 | E60: 0 | F60: 0 | G60: 0 | H60: 0 | I60: 0
A61: TRAB0703 | B61: Straight line depreciation | C61: -21455851.32 | D61: -14663239.91 | E61: -38021050.53 | F61: -32680782.24 | G61: -27440136.34 | H61: -21721849.7 | I61: -18865461.69
A62: TRAB0705 | B62: Actual additions (recognised in RAB) | C62: 23786550.14 | D62: 14528108.68 | E62: 22327069 | F62: 20208535.63 | G62: 15136968.91 | H62: 18054092.62 | I62: 15717481.49
A63: TRAB0706 | B63: Disposals | C63: -902015.4888 | D63: -720096.7684 | E63: -692270.0385 | F63: -518066.6791 | G63: -695395.3872 | H63: -871416.4547 | I63: -809243.403
A64: TRAB0707 | B64: Closing value | C64: =SUM(C59:C63) -> 80262642.76 | D64: 80210041.18 | E64: 69890364.37 | F64: 56900051.09 | G64: 43901488.27 | H64: 39362314.73 | I64: 35405091.12
B68: 3.3.3 - TOTAL DISAGGREGATED RAB ASSET VALUES
C69: =CONCATENATE("Forecast ($0's, real ",dms_DollarReal,")") -> Forecast ($0's, real June 2022)
C70: =dms_y1 -> 2020-21 | D70: =dms_y2 -> 2021-22 | E70: =dms_y3 -> 2022-23 | F70: =dms_y4 -> 2023-24 | G70: =dms_y5 -> 2024-25 | H70: =dms_y6 -> 2025-26 | I70: =dms_y7 -> 2026-27
A71: TRAB0801 | B71: Overhead transmission assets (wires and towers/poles etc) | C71: 3523952355 | D71: 3474560607 | E71: 3421811140 | F71: 3347467819 | G71: 3266923051 | H71: 3179686782 | I71: 3094744909
A72: TRAB0802 | B72: Underground transmission assets (cables, ducts etc) | C72: 48027241.49 | D72: 46171824.56 | E72: 44535975.39 | F72: 49852157.47 | G72: 63796845.02 | H72: 73586698.68 | I72: 74306533.76
A73: TRAB0803 | B73: Substations, switchyards, transformers etc with transmission function | C73: 2499828845 | D73: 2455815582 | E73: 2416538479 | F73: 2365120795 | G73: 2291954930 | H73: 2204511199 | I73: 2119095238
A74: TRAB0804 | B74: Easements | C74: 691764668.6 | D74: 698145572.7 | E74: 702544706.9 | F74: 704814222.5 | G74: 707761479.9 | H74: 712004657.6 | I74: 718638489.7
A75: TRAB0805 | B75: Other assets with long lives (please specify) | C75: 211030426.6 | D75: 223092347.6 | E75: 231568014.8 | F75: 245025168.1 | G75: 255051525.2 | H75: 254630792 | I75: 250183177.3
A76: TRAB0806 | B76: Other assets with short lives (please specify) | C76: 79350200.13 | D76: 83269629.35 | E76: 78083490.15 | F76: 63395207.73 | G76: 50400769.68 | H76: 41631901.5 | I76: 37383702.92
B79: 3.3.4 - ASSET LIVES
C80: Asset Life
C81: =dms_y1 -> 2020-21 | D81: =dms_y2 -> 2021-22 | E81: =dms_y3 -> 2022-23 | F81: =dms_y4 -> 2023-24 | G81: =dms_y5 -> 2024-25 | H81: =dms_y6 -> 2025-26 | I81: =dms_y7 -> 2026-27
B82: ESTIMATED SERVICE LIFE OF NEW ASSETS
A83: TRAB0901 | B83: Overhead transmission assets (wires and towers/poles etc) | C83: 49.56873834 | D83: 48.97535641 | E83: 48.95195202 | F83: 48.95236225 | G83: 48.90526851 | H83: 48.67678409 | I83: 48.68387779
A84: TRAB0902 | B84: Underground transmission assets (cables, ducts etc) | C84: 45 | D84: 45 | E84: 45 | F84: 45 | G84: 45 | H84: 45 | I84: 45
A85: TRAB0903 | B85: Substations, switchyards, transformers etc with transmission function | C85: 35.00336546 | D85: 35.13369198 | E85: 35.30540271 | F85: 35.04241831 | G85: 34.82727594 | H85: 34.77568076 | I85: 34.67371393
A86: TRAB0904 | B86: Other assets with long lives | C86: 30.38754647 | D86: 29.48014485 | E86: 28.79347231 | F86: 24.90870246 | G86: 25.89991776 | H86: 25.81300257 | I86: 25.07556758
A87: TRAB0905 | B87: Other assets with short lives | C87: 5.371690591 | D87: 5.358519539 | E87: 5.364231503 | F87: 5.367762363 | G87: 5.368544951 | H87: 5.386786183 | I87: 5.405853127
B88: ESTIMATED RESIDUAL SERVICE LIFE
A89: TRAB1001 | B89: Overhead transmission assets (wires and towers/poles etc) | C89: 26.38735872 | D89: 25.41475005 | E89: 24.43035704 | F89: 23.93098472 | G89: 23.2425085 | H89: 22.44273551 | I89: 21.59966607
A90: TRAB1002 | B90: Underground transmission assets (cables, ducts etc) | C90: 15.94617848 | D90: 14.9508072 | E90: 13.95610301 | F90: 12.96222133 | G90: 15.37397208 | H90: 15.4119276 | I90: 31.6553284
A91: TRAB1003 | B91: Substations, switchyards, transformers etc with transmission function | C91: 21.37542465 | D91: 21.01568141 | E91: 20.97328444 | F91: 20.99217117 | G91: 21.05300616 | H91: 20.75797464 | I91: 20.31876425
A92: TRAB1004 | B92: Other assets with long lives | C92: 18.25079836 | D92: 17.60152332 | E92: 16.37185092 | F92: 18.2088149 | G92: 17.92834401 | H92: 17.45071869 | I92: 16.84045983
A93: TRAB1005 | B93: Other assets with short lives | C93: 3.987373838 | D93: 3.676864737 | E93: 3.798341632 | F93: 3.85250091 | G93: 3.884544172 | H93: 4.009534267 | I93: 4.039869378

Sheet 3.3 Unprotected Assets (RAB)
A1: =(LOOKUP(dms_Model,dms_Model_List,dms_Worksheet_List)) -> REGULATORY REPORTING STATEMENT
A2: =INDEX(dms_TradingNameFull_List,MATCH(dms_TradingName,dms_TradingName_List)) -> Queensland Electricity Transmission Corporation Limited trading as Powerlink Queensland
A3: =IF(SUM(dms_SingleYear_Model)>0,CRY,CONCATENATE(FRCP_y1," to ",dms_MultiYear_FinalYear_Result)) -> 2022-23 to 2026-27
A4: 3.3 ASSETS
A6: There are FOUR tables on this worksheet. Each table has been grouped (and sub-grouped) for ease of navigation. See the Instructions sheet on how to group or ungroup tables.
A8: 3.3.1 - REGULATORY ASSET BASE VALUES
B9: =CONCATENATE("Forecast ($0's, real ",dms_DollarReal,")") -> Forecast ($0's, real June 2022)
B10: =dms_y1 -> 2020-21 | C10: =dms_y2 -> 2021-22 | D10: =dms_y3 -> 2022-23 | E10: =dms_y4 -> 2023-24 | F10: =dms_y5 -> 2024-25 | G10: =dms_y6 -> 2025-26 | H10: =dms_y7 -> 2026-27
A11: For total asset base:
A12: Opening value | B12: 7104197526 | C12: =B18 -> 7003709947 | D12: 6958401180 | E12: 6831762431 | F12: 6719588309 | G12: 6552188891 | H12: 6379915170
A13: Inflation addition | B13: 35871173.13 | C13: 70037099.47 | D13: 0 | E13: 0 | F13: 0 | G13: 0 | H13: 0
A14: Straight line depreciation | B14: -317613648.7 | C14: -316560976.1 | D14: -318552908.8 | E14: -322712068.1 | F14: -325122357.7 | G14: -324971497.9 | H14: -325400527.1
A15: Actual additions (recognised in RAB) | B15: 182156912.5 | C15: 210071679.2 | D15: 192606430 | E15: 211056012.9 | F15: 169523189.4 | G15: 153569193.5 | H15: 155083531.3
A16: RFM True-up / adjustments | B16: 0 | C16: -3770026.317 | D16: 0 | E16: 0 | F16: 0 | G16: 0 | H16: 0
A17: Disposals | B17: -902015.4888 | C17: -5086543.201 | D17: -692270.0385 | E17: -518066.6791 | F17: -11800249.84 | G17: -871416.4547 | H17: -809243.403
A18: Closing value | B18: =SUM(B12:B17) -> 7003709947 | C18: 6958401180 | D18: 6831762431 | E18: 6719588309 | F18: 6552188891 | G18: 6379915170 | H18: 6208788931
A21: 3.3.2 - ASSET VALUE ROLL FORWARD
B22: =CONCATENATE("Forecast ($0's, real ",dms_DollarReal,")") -> Forecast ($0's, real June 2022)
B23: =dms_y1 -> 2020-21 | C23: =dms_y2 -> 2021-22 | D23: =dms_y3 -> 2022-23 | E23: =dms_y4 -> 2023-24 | F23: =dms_y5 -> 2024-25 | G23: =dms_y6 -> 2025-26 | H23: =dms_y7 -> 2026-27
A24: For overhead assets:
A25: Opening value | B25: 3557387635 | C25: =B31 -> 3490517075 | D25: 3458604139 | E25: 3385018140 | F25: 3309917498 | G25: 3223928603 | H25: 3135444960
A26: Inflation addition | B26: 17961464.03 | C26: 34905170.75 | D26: 0 | E26: 0 | F26: 0 | G26: 0 | H26: 0
A27: Straight line depreciation | B27: -120599864.7 | C27: -121282138.4 | D27: -121490798.1 | E27: -121514465 | F27: -122871693.6 | G27: -124576587.9 | H27: -124913345.5
A28: Actual additions (recognised in RAB) | B28: 35767840.54 | C28: 34581070.71 | D28: 47904798.68 | E28: 46413822.99 | F28: 36882798.88 | G28: 36092944.85 | H28: 43513243.89
A29: RFM True-up / adjustments | B29: 0 | C29: 19882961.86 | D29: 0 | E29: 0 | F29: 0 | G29: 0 | H29: 0
A30: Disposals | B30: 0 | C30: 0 | D30: 0 | E30: 0 | F30: 0 | G30: 0 | H30: 0
A31: Closing value | B31: =SUM(B25:B30) -> 3490517075 | C31: 3458604139 | D31: 3385018140 | E31: 3309917498 | F31: 3223928603 | G31: 3135444960 | H31: 3054044859
A32: For underground assets:
A33: Opening value | B33: 49143505.73 | C33: =B39 -> 46910977.24 | D33: 45432671.88 | E33: 43639278.91 | F33: 56065036.03 | G33: 71528654.01 | H33: 75644743.34
A34: Inflation addition | B34: 248063.0775 | C34: 469109.7724 | D34: 0 | E34: 0 | F34: 0 | G34: 0 | H34: 0
A35: Straight line depreciation | B35: -2629081.211 | C35: -2616065.958 | D35: -2580113.443 | E35: -2580113.443 | F35: -2580113.443 | G35: -2657273.219 | H35: -2676419.17
A36: Actual additions (recognised in RAB) | B36: 148489.6457 | C36: 693355.6652 | D36: 786720.4722 | E36: 15005870.56 | F36: 18043731.43 | G36: 6773362.547 | H36: 0
A37: RFM True-up / adjustments | B37: 0 | C37: -24704.84603 | D37: 0 | E37: 0 | F37: 0 | G37: 0 | H37: 0
A38: Disposals | B38: 0 | C38: 0 | D38: 0 | E38: 0 | F38: 0 | G38: 0 | H38: 0
A39: Closing value | B39: =SUM(B33:B38) -> 46910977.24 | C39: 45432671.88 | D39: 43639278.91 | E39: 56065036.03 | F39: 71528654.01 | G39: 75644743.34 | H39: 72968324.17
A40: For switchyards, substations
A41: Opening value | B41: 2526252485 | C41: =B47 -> 2473405205 | D41: 2438225960 | E41: 2394850997 | F41: 2335390594 | G41: 2248519266 | H41: 2160503132
A42: Inflation addition | B42: 12754932.69 | C42: 24734052.05 | D42: 0 | E42: 0 | F42: 0 | G42: 0 | H42: 0
A43: Straight line depreciation | B43: -156709027.9 | C43: -160430234.7 | D43: -143314432.3 | E43: -148863295.2 | F43: -154185962.5 | G43: -157731665.4 | H43: -159466873
A44: Actual additions (recognised in RAB) | B44: 91106814.82 | C44: 124301758.6 | D44: 99939469.59 | E44: 89402891.46 | F44: 67314635.16 | G44: 69715531.59 | H44: 76651083.45
A45: RFM True-up / adjustments | B45: 0 | C45: -19711012.95 | D45: 0 | E45: 0 | F45: 0 | G45: 0 | H45: 0
A46: Disposals | B46: 0 | C46: -4073807.517 | D46: 0 | E46: 0 | F46: 0 | G46: 0 | H46: 0
A47: Closing value | B47: =SUM(B41:B46) -> 2473405205 | C47: 2438225960 | D47: 2394850997 | E47: 2335390594 | F47: 2248519266 | G47: 2160503132 | H47: 2077687343
A48: For easements:
A49: Opening value | B49: 688763000.4 | C49: =B55 -> 694766336.9 | D49: 701524808.5 | E49: 703564605.2 | F49: 706063839.9 | G49: 709459119.9 | H49: 714550195.2
A50: Inflation addition | B50: 3478553.319 | C50: 6947663.369 | D50: 0 | E50: 0 | F50: 0 | G50: 0 | H50: 0
A51: Straight line depreciation | B51: 0 | C51: 0 | D51: 0 | E51: 0 | F51: 0 | G51: 0 | H51: 0
A52: Actual additions (recognised in RAB) | B52: 2524783.218 | C52: 277127.6006 | D52: 2039796.621 | E52: 2499234.748 | F52: 3395279.999 | G52: 5091075.308 | H52: 8176589.049
A53: RFM True-up / adjustments | B53: 0 | C53: -173680.402 | D53: 0 | E53: 0 | F53: 0 | G53: 0 | H53: 0
A54: Disposals | B54: 0 | C54: -292638.915 | D54: 0 | E54: 0 | F54: 0 | G54: 0 | H54: 0
A55: Closing value | B55: =SUM(B49:B54) -> 694766336.9 | C55: 701524808.5 | D55: 703564605.2 | E55: 706063839.9 | F55: 709459119.9 | G55: 714550195.2 | H55: 722726784.3
A56: For “other” assets with long lives:
A57: Opening value | B57: 204213142.3 | C57: =B63 -> 217847711 | D57: 228336984.2 | E57: 234799045.5 | F57: 255251290.8 | G57: 254851759.6 | H57: 254409824.4
A58: Inflation addition | B58: 1031958.097 | C58: 2178477.11 | D58: 0 | E58: 0 | F58: 0 | G58: 0 | H58: 0
A59: Straight line depreciation | B59: -16219823.51 | C59: -17569297.09 | D59: -13146514.4 | E59: -17073412.19 | F59: -18044451.77 | G59: -18284121.76 | H59: -19478427.74
A60: Actual additions (recognised in RAB) | B60: 28822434.15 | C60: 35690257.94 | D60: 19608575.65 | E60: 37525657.54 | F60: 28749775.02 | G60: 17842186.6 | H60: 11025133.44
A61: RFM True-up / adjustments | B61: 0 | C61: -9810164.742 | D61: 0 | E61: 0 | F61: 0 | G61: 0 | H61: 0
A62: Disposals | B62: 0 | C62: 0 | D62: 0 | E62: 0 | F62: -11104854.46 | G62: 0 | H62: 0
A63: Closing value | B63: =SUM(B57:B62) -> 217847711 | C63: 228336984.2 | D63: 234799045.5 | E63: 255251290.8 | F63: 254851759.6 | G63: 254409824.4 | H63: 245956530.1
A64: For “other” assets with short lives:
A65: Opening value | B65: 78437757.51 | C65: =B71 -> 80262642.76 | D65: 86276615.94 | E65: 69890364.37 | F65: 56900051.09 | G65: 43901488.27 | H65: 39362314.73
A66: Inflation addition | B66: 396201.9197 | C66: 802626.4276 | D66: 0 | E66: 0 | F66: 0 | G66: 0 | H66: 0
A67: Straight line depreciation | B67: -21455851.32 | C67: -14663239.91 | D67: -38021050.53 | E67: -32680782.24 | F67: -27440136.34 | G67: -21721849.7 | H67: -18865461.69
A68: Actual additions (recognised in RAB) | B68: 23786550.14 | C68: 14528108.68 | D68: 22327069 | E68: 20208535.63 | F68: 15136968.91 | G68: 18054092.62 | H68: 15717481.49
A69: RFM True-up / adjustments | B69: 0 | C69: 6066574.759 | D69: 0 | E69: 0 | F69: 0 | G69: 0 | H69: 0
A70: Disposals | B70: -902015.4888 | C70: -720096.7684 | D70: -692270.0385 | E70: -518066.6791 | F70: -695395.3872 | G70: -871416.4547 | H70: -809243.403
A71: Closing value | B71: =SUM(B65:B70) -> 80262642.76 | C71: 86276615.94 | D71: 69890364.37 | E71: 56900051.09 | F71: 43901488.27 | G71: 39362314.73 | H71: 35405091.12
A75: 3.3.3 - TOTAL DISAGGREGATED RAB ASSET VALUES
B76: =CONCATENATE("Forecast ($0's, real ",dms_DollarReal,")") -> Forecast ($0's, real June 2022)
B77: =dms_y1 -> 2020-21 | C77: =dms_y2 -> 2021-22 | D77: =dms_y3 -> 2022-23 | E77: =dms_y4 -> 2023-24 | F77: =dms_y5 -> 2024-25 | G77: =dms_y6 -> 2025-26 | H77: =dms_y7 -> 2026-27
A78: Overhead transmission assets (wires and towers/poles etc) | B78: =AVERAGE(B25,B31) -> 3523952355 | C78: =AVERAGE(C25,C31) -> 3474560607 | D78: 3421811140 | E78: 3347467819 | F78: 3266923051 | G78: 3179686782 | H78: 3094744909
A79: Underground transmission assets (cables, ducts etc) | B79: =AVERAGE(B33,B39) -> 48027241.49 | C79: =AVERAGE(C33,C39) -> 46171824.56 | D79: 44535975.39 | E79: 49852157.47 | F79: 63796845.02 | G79: 73586698.68 | H79: 74306533.76
A80: Substations, switchyards, transformers etc with transmission function | B80: =AVERAGE(B41,B47) -> 2499828845 | C80: =AVERAGE(C41,C47) -> 2455815582 | D80: 2416538479 | E80: 2365120795 | F80: 2291954930 | G80: 2204511199 | H80: 2119095238
A81: Easements | B81: =AVERAGE(B49,B55) -> 691764668.6 | C81: =AVERAGE(C49,C55) -> 698145572.7 | D81: 702544706.9 | E81: 704814222.5 | F81: 707761479.9 | G81: 712004657.6 | H81: 718638489.7
A82: Other assets with long lives (please specify) | B82: =AVERAGE(B57,B63) -> 211030426.6 | C82: =AVERAGE(C57,C63) -> 223092347.6 | D82: 231568014.8 | E82: 245025168.1 | F82: 255051525.2 | G82: 254630792 | H82: 250183177.3
A83: Other assets with short lives (please specify) | B83: =AVERAGE(B65,B71) -> 79350200.13 | C83: =AVERAGE(C65,C71) -> 83269629.35 | D83: 78083490.15 | E83: 63395207.73 | F83: 50400769.68 | G83: 41631901.5 | H83: 37383702.92
A86: 3.3.4 - ASSET LIVES
B87: Asset Life
B88: =dms_y1 -> 2020-21 | C88: =dms_y2 -> 2021-22 | D88: =dms_y3 -> 2022-23 | E88: =dms_y4 -> 2023-24 | F88: =dms_y5 -> 2024-25 | G88: =dms_y6 -> 2025-26 | H88: =dms_y7 -> 2026-27
A89: ESTIMATED SERVICE LIFE OF NEW ASSETS
A90: Overhead transmission assets (wires and towers/poles etc) | B90: 49.56873834 | C90: 48.97535641 | D90: 48.95195202 | E90: 48.95236225 | F90: 48.90526851 | G90: 48.67678409 | H90: 48.68387779
A91: Underground transmission assets (cables, ducts etc) | B91: 45 | C91: 45 | D91: 45 | E91: 45 | F91: 45 | G91: 45 | H91: 45
A92: Substations, switchyards, transformers etc with transmission function | B92: 35.00336546 | C92: 35.13369198 | D92: 35.30540271 | E92: 35.04241831 | F92: 34.82727594 | G92: 34.77568076 | H92: 34.67371393
A93: Other assets with long lives | B93: 30.38754647 | C93: 29.48014485 | D93: 28.79347231 | E93: 24.90870246 | F93: 25.89991776 | G93: 25.81300257 | H93: 25.07556758
A94: Other assets with short lives | B94: 5.371690591 | C94: 5.358519539 | D94: 5.364231503 | E94: 5.367762363 | F94: 5.368544951 | G94: 5.386786183 | H94: 5.405853127
A95: ESTIMATED RESIDUAL SERVICE LIFE
A96: Overhead transmission assets (wires and towers/poles etc) | B96: 26.38735872 | C96: 25.41475005 | D96: 24.43035704 | E96: 23.93098472 | F96: 23.2425085 | G96: 22.44273551 | H96: 21.59966607
A97: Underground transmission assets (cables, ducts etc) | B97: 15.94617848 | C97: 14.9508072 | D97: 13.95610301 | E97: 12.96222133 | F97: 15.37397208 | G97: 15.4119276 | H97: 31.6553284
A98: Substations, switchyards, transformers etc with transmission function | B98: 21.37542465 | C98: 21.01568141 | D98: 20.97328444 | E98: 20.99217117 | F98: 21.05300616 | G98: 20.75797464 | H98: 20.31876425
A99: Other assets with long lives | B99: 18.25079836 | C99: 17.60152332 | D99: 16.37185092 | E99: 18.2088149 | F99: 17.92834401 | G99: 17.45071869 | H99: 16.84045983
A100: Other assets with short lives | B100: 3.987373838 | C100: 3.676864737 | D100: 3.798341632 | E100: 3.85250091 | F100: 3.884544172 | G100: 4.009534267 | H100: 4.039869378

Sheet 3.4 Operational data
B1: =(LOOKUP(dms_Model,dms_Model_List,dms_Worksheet_List)) -> REGULATORY REPORTING STATEMENT
B2: =INDEX(dms_TradingNameFull_List,MATCH(dms_TradingName,dms_TradingName_List)) -> Queensland Electricity Transmission Corporation Limited trading as Powerlink Queensland
B3: =IF(SUM(dms_SingleYear_Model)>0,CRY,CONCATENATE(FRCP_y1," to ",dms_MultiYear_FinalYear_Result)) -> 2022-23 to 2026-27
B4: 3.4 OPERATIONAL DATA
B6: There are THREE tables on this worksheet. Each table has been grouped for ease of navigation. See the Instructions sheet on how to group or ungroup tables.
B8: 3.4.1 - ENERGY DELIVERY
D9: Forecast (0's)
C10: Units | D10: =dms_y1 -> 2020-21 | E10: =dms_y2 -> 2021-22 | F10: =dms_y3 -> 2022-23 | G10: =dms_y4 -> 2023-24 | H10: =dms_y5 -> 2024-25 | I10: =dms_y6 -> 2025-26 | J10: =dms_y7 -> 2026-27
B11: Energy grouping by downstream connection type
A12: TOPED0101 | B12: To Other connected transmission networks | C12: GWh | D12: 5285 | E12: 5700 | F12: 6841 | G12: 9942 | H12: 7935 | I12: 8067 | J12: 8759
A13: TOPED0102 | B13: To Distribution networks | C13: GWh | D13: 28736.1 | E13: 29118 | F13: 29389.4 | G13: 29624 | H13: 29245.2 | I13: 28786.6 | J13: 28340.1
A14: TOPED0103 | B14: To Directly connected end–users (330 kV) | C14: GWh | D14: 0 | E14: 0 | F14: 0 | G14: 0 | H14: 0 | I14: 0 | J14: 0
A15: TOPED0104 | B15: To Directly connected end–users (275 kV) | C15: GWh | D15: 7304.3 | E15: 7357.8 | F15: 7378.6 | G15: 7375.3 | H15: 7388.4 | I15: 7394.1 | J15: 7376.6
A16: TOPED0105 | B16: To Directly connected end–users (220 kV) | C16: GWh | D16: 0 | E16: 0 | F16: 0 | G16: 0 | H16: 0 | I16: 0 | J16: 0
A17: TOPED0106 | B17: To Directly connected end–users (132 kV) | C17: GWh | D17: 9263.3 | E17: 9602.1 | F17: 9614.4 | G17: 9611.9 | H17: 9624 | I17: 9630.7 | J17: 9618.1
A18: TOPED0107 | B18: To Directly connected end–users (110 kV) | C18: GWh | D18: 0 | E18: 0 | F18: 0 | G18: 0 | H18: 0 | I18: 0 | J18: 0
A19: TOPED0108 | B19: To Directly connected end–users (44 kV) | C19: GWh | D19: 0 | E19: 0 | F19: 0 | G19: 0 | H19: 0 | I19: 0 | J19: 0
A20: TOPED0109 | B20: To Directly connected end–users (33 kV) | C20: GWh | D20: 0 | E20: 0 | F20: 0 | G20: 0 | H20: 0 | I20: 0 | J20: 0
A21: TOPED0110 | B21: To Directly connected end–users (22 kV) | C21: GWh | D21: 0 | E21: 0 | F21: 0 | G21: 0 | H21: 0 | I21: 0 | J21: 0
A22: TOPED0111 | B22: To Directly connected end–users (11 kV) | C22: GWh | D22: 0 | E22: 0 | F22: 0 | G22: 0 | H22: 0 | I22: 0 | J22: 0
A23: TOPED0112 | B23: To Directly connected end–users (6.6 kV) | C23: GWh | D23: 0 | E23: 0 | F23: 0 | G23: 0 | H23: 0 | I23: 0 | J23: 0
A24: TOPED0113 | B24: Pumping and Power Station Auxillaries | C24: GWh | D24: 325 | E24: 325 | F24: 325 | G24: 325 | H24: 325 | I24: 325 | J24: 325
A25: TOPED01 | B25: Total energy transported | C25: GWh | D25: =SUM(D12:D24) -> 50913.7 | E25: 52102.9 | F25: 53548.4 | G25: 56878.2 | H25: 54517.6 | I25: 54203.4 | J25: 54418.8
B28: 3.4.2 - CONNECTION POINTS
D29: Forecast (0's)
C30: Units | D30: =dms_y1 -> 2020-21 | E30: =dms_y2 -> 2021-22 | F30: =dms_y3 -> 2022-23 | G30: =dms_y4 -> 2023-24 | H30: =dms_y5 -> 2024-25 | I30: =dms_y6 -> 2025-26 | J30: =dms_y7 -> 2026-27
B31: Number of entry points at each transmission voltage level
A32: TOPCP0101 | B32: 500kV | C32: number | D32: 0 | E32: 0 | F32: 0 | G32: 0 | H32: 0 | I32: 0 | J32: 0
A33: TOPCP0102 | B33: 330kV | C33: number | D33: 1 | E33: 1 | F33: 1 | G33: 1 | H33: 1 | I33: 1 | J33: 1
A34: TOPCP0103 | B34: 275kV | C34: number | D34: 16.5 | E34: 17 | F34: 17 | G34: 17.5 | H34: 18 | I34: 18 | J34: 18
A35: TOPCP0104 | B35: 220kV | C35: number | D35: 0 | E35: 0 | F35: 0 | G35: 0 | H35: 0 | I35: 0 | J35: 0
A36: TOPCP0105 | B36: 132 kV | C36: number | D36: 13.5 | E36: 16.5 | F36: 18 | G36: 18 | H36: 18 | I36: 18 | J36: 18
A37: TOPCP0106 | B37: 110kV | C37: number | D37: 1 | E37: 1 | F37: 1 | G37: 1 | H37: 1 | I37: 1 | J37: 1
A38: TOPCP0107 | B38: 66 kV | C38: number | D38: 0 | E38: 0 | F38: 0 | G38: 0 | H38: 0 | I38: 0 | J38: 0
A39: TOPCP0108 | B39: 33 kV | C39: number | D39: 5 | E39: 5 | F39: 5 | G39: 5 | H39: 5 | I39: 5 | J39: 5
A40: TOPCP0109 | B40: 22 kV | C40: number | D40: 0 | E40: 0 | F40: 0 | G40: 0 | H40: 0 | I40: 0 | J40: 0
A41: TOPCP0110 | B41: 11 kV | C41: number | D41: 0 | E41: 0 | F41: 0 | G41: 0 | H41: 0 | I41: 0 | J41: 0
A42: TOPCP0111 | B42: 6.6 kV | C42: number | D42: 0 | E42: 0 | F42: 0 | G42: 0 | H42: 0 | I42: 0 | J42: 0
B43: Number of exit points at each transmission voltage level
A44: TOPCP0201 | B44: 500kV | C44: number | D44: 0 | E44: 0 | F44: 0 | G44: 0 | H44: 0 | I44: 0 | J44: 0
A45: TOPCP0202 | B45: 330kV | C45: number | D45: 1 | E45: 1 | F45: 1 | G45: 1 | H45: 1 | I45: 1 | J45: 1
A46: TOPCP0203 | B46: 275kV | C46: number | D46: 5 | E46: 5 | F46: 5 | G46: 5 | H46: 5 | I46: 5 | J46: 5
A47: TOPCP0204 | B47: 220kV | C47: number | D47: 0 | E47: 0 | F47: 0 | G47: 0 | H47: 0 | I47: 0 | J47: 0
A48: TOPCP0205 | B48: 132 kV | C48: number | D48: 48 | E48: 48 | F48: 48 | G48: 48 | H48: 48 | I48: 48 | J48: 48
A49: TOPCP0206 | B49: 110kV | C49: number | D49: 17 | E49: 17 | F49: 17 | G49: 17 | H49: 17 | I49: 17 | J49: 17
A50: TOPCP0207 | B50: 66 kV | C50: number | D50: 23 | E50: 23 | F50: 23 | G50: 23 | H50: 23 | I50: 23 | J50: 23
A51: TOPCP0208 | B51: 44 kV | C51: number | D51: 0 | E51: 0 | F51: 0 | G51: 0 | H51: 0 | I51: 0 | J51: 0
A52: TOPCP0209 | B52: 33kV | C52: number | D52: 14 | E52: 14 | F52: 14 | G52: 14 | H52: 14 | I52: 14 | J52: 14
A53: TOPCP0210 | B53: 22kV | C53: number | D53: 7 | E53: 7 | F53: 7 | G53: 7 | H53: 7 | I53: 7 | J53: 7
A54: TOPCP0211 | B54: 11kV | C54: number | D54: 3.5 | E54: 3.5 | F54: 3.5 | G54: 3.5 | H54: 3.5 | I54: 3.5 | J54: 3.5
A55: TOPCP0212 | B55: 6.6kV | C55: number | D55: 0 | E55: 0 | F55: 0 | G55: 0 | H55: 0 | I55: 0 | J55: 0
B59: 3.4.3 - SYSTEM DEMAND
D60: Forecast (0's)
C61: Units | D61: =dms_y1 -> 2020-21 | E61: =dms_y2 -> 2021-22 | F61: =dms_y3 -> 2022-23 | G61: =dms_y4 -> 2023-24 | H61: =dms_y5 -> 2024-25 | I61: =dms_y6 -> 2025-26 | J61: =dms_y7 -> 2026-27
B62: Annual system maximum demand characteristics – MW measure
A63: TOPSD0101 | B63: Transmission System coincident maximum demand | C63: MW
A64: TOPSD0102 | B64: Transmission System coincident weather adjusted maximum demand 10% POE | C64: MW | D64: 9644.9 | E64: 9971.6 | F64: 10062.1 | G64: 10182.8 | H64: 10256.2 | I64: 10317.7 | J64: 10366.9
A65: TOPSD0103 | B65: Transmission System coincident weather adjusted maximum demand 50% POE | C65: MW | D65: 9251.8 | E65: 9563.8 | F65: 9650.2 | G65: 9764.8 | H65: 9835.4 | I65: 9894.1 | J65: 9940.9
A66: TOPSD0104 | B66: Transmission System non-coincident summated maximum demand | C66: MW
A67: TOPSD0105 | B67: Transmission System non-coincident weather adjusted summated maximum demand 10% POE | C67: MW | D67: 12665.4 | E67: 12817.5 | F67: 12970.8 | G67: 13218.7 | H67: 13279.9 | I67: 13326.4 | J67: 13353.7
A68: TOPSD0106 | B68: Transmission System non-coincident weather adjusted summated maximum demand 50% POE | C68: MW | D68: 11819 | E68: 11965.8 | F68: 12111.7 | G68: 12356.1 | H68: 12415.7 | I68: 12457.3 | J68: 12478.2
B69: Annual system maximum demand characteristics – MVA measure
A70: TOPSD0201 | B70: Transmission System coincident maximum demand | C70: MVA
A71: TOPSD0202 | B71: Transmission System coincident weather adjusted maximum demand 10% POE | C71: MVA | D71: 10102.3 | E71: 10416.7 | F71: 10508.1 | G71: 10633.2 | H71: 10707.5 | I71: 10771.6 | J71: 10821.2
A72: TOPSD0203 | B72: Transmission System coincident weather adjusted maximum demand 50% POE | C72: MVA | D72: 9680.6 | E72: 9978.6 | F72: 10066.1 | G72: 10183.9 | H72: 10255.3 | I72: 10316 | J72: 10363.5
A73: TOPSD0204 | B73: Transmission System non-coincident summated maximum demand | C73: MVA
A74: TOPSD0205 | B74: Transmission System non-coincident weather adjusted summated maximum demand 10% POE | C74: MVA | D74: 13072.1 | E74: 13234.4 | F74: 13443 | G74: 13637 | H74: 13695.4 | I74: 13737.7 | J74: 13765.6
A75: TOPSD0206 | B75: Transmission System non-coincident weather adjusted summated maximum demand 50% POE | C75: MVA | D75: 12225.9 | E75: 12383.8 | F75: 12583.5 | G75: 12774.7 | H75: 12828.8 | I75: 12865.4 | J75: 12889.8
B76: Power factor
B77: Power factor conversion between MVA and MW
A78: TOPSD0301 | B78: Average overall network power factor conversion between MVA and MW | C78: Factor | D78: 0.956 | E78: 0.958 | F78: 0.959 | G78: 0.959 | H78: 0.959 | I78: 0.959 | J78: 0.959
A79: TOPSD0302 | B79: Average power factor conversion for 500 kV lines | C79: Factor
A80: TOPSD0303 | B80: Average power factor conversion for 330 kV lines | C80: Factor | D80: 0.894 | E80: 0.894 | F80: 0.894 | G80: 0.894 | H80: 0.894 | I80: 0.894 | J80: 0.894
A81: TOPSD0304 | B81: Average power factor conversion for 275 kV lines | C81: Factor | D81: 0.912 | E81: 0.941 | F81: 0.941 | G81: 0.941 | H81: 0.942 | I81: 0.942 | J81: 0.941
A82: TOPSD0305 | B82: Average power factor conversion for 220 kV lines | C82: Factor
A83: TOPSD0306 | B83: Average power factor conversion for 132 kV lines | C83: Factor | D83: 0.968 | E83: 0.975 | F83: 0.975 | G83: 0.975 | H83: 0.975 | I83: 0.975 | J83: 0.975
A84: TOPSD0307 | B84: Average power factor conversion for 110 kV lines | C84: Factor | D84: 0.977 | E84: 0.976 | F84: 0.976 | G84: 0.976 | H84: 0.977 | I84: 0.977 | J84: 0.977
A85: TOPSD0308 | B85: Average power factor conversion for 88 kV lines | C85: Factor
A86: TOPSD0309 | B86: Average power factor conversion for 66 kV lines | C86: Factor | D86: 0.973 | E86: 0.973 | F86: 0.973 | G86: 0.973 | H86: 0.973 | I86: 0.974 | J86: 0.974
A87: TOPSD0310 | B87: Average power factor conversion for 33 kV lines | C87: Factor | D87: 0.977 | E87: 0.976 | F87: 0.977 | G87: 0.976 | H87: 0.975 | I87: 0.975 | J87: 0.975
A88: TOPSD0311 | B88: Average power factor conversion for 22 kV lines | C88: Factor | D88: 0.986 | E88: 0.986 | F88: 0.987 | G88: 0.987 | H88: 0.987 | I88: 0.987 | J88: 0.987
A89: TOPSD0311 | B89: Average power factor conversion for 11 kV lines | C89: Factor | D89: 0.993 | E89: 0.993 | F89: 0.993 | G89: 0.993 | H89: 0.993 | I89: 0.993 | J89: 0.993
A90: TOPSD0312 | B90: Average power factor conversion for 6.6 kV lines | C90: Factor

Sheet 3.5 Physical assets
B1: =(LOOKUP(dms_Model,dms_Model_List,dms_Worksheet_List)) -> REGULATORY REPORTING STATEMENT
B2: =INDEX(dms_TradingNameFull_List,MATCH(dms_TradingName,dms_TradingName_List)) -> Queensland Electricity Transmission Corporation Limited trading as Powerlink Queensland
B3: =IF(SUM(dms_SingleYear_Model)>0,CRY,CONCATENATE(FRCP_y1," to ",dms_MultiYear_FinalYear_Result)) -> 2022-23 to 2026-27
B4: 3.5 PHYSICAL ASSETS
B6: There is ONE table on this worksheet. It has been sub-grouped for ease of navigation. See the Instructions sheet on how to group or ungroup tables.
B8: 3.5.1 - TRANSMISSION SYSTEM CAPACITIES
D9: Forecast (0's)
C10: Units | D10: =dms_y1 -> 2020-21 | E10: =dms_y2 -> 2021-22 | F10: =dms_y3 -> 2022-23 | G10: =dms_y4 -> 2023-24 | H10: =dms_y5 -> 2024-25 | I10: =dms_y6 -> 2025-26 | J10: =dms_y7 -> 2026-27
B11: Overhead network length of circuit at each voltage
A12: TPA0101 | B12: 500 kV | C12: km | D12: 0 | E12: 0 | F12: 0 | G12: 0 | H12: 0 | I12: 0 | J12: 0
A13: TPA0102 | B13: 330 kV | C13: km | D13: 603 | E13: 603 | F13: 603 | G13: 603 | H13: 603 | I13: 603 | J13: 603
A14: TPA0103 | B14: 275 kV | C14: km | D14: 9381 | E14: 9381 | F14: 9381 | G14: 9378.4 | H14: 9393.4 | I14: 9393.4 | J14: 9393.4
A15: TPA0104 | B15: 220 kV | C15: km | D15: 0 | E15: 0 | F15: 0 | G15: 0 | H15: 0 | I15: 0 | J15: 0
A16: TPA0105 | B16: 132 kV | C16: km | D16: 4125 | E16: 4125 | F16: 4055.9 | G16: 4055.9 | H16: 4055.9 | I16: 4055.9 | J16: 4045.9
A17: TPA0106 | B17: 110 kV | C17: km | D17: 397 | E17: 397 | F17: 397 | G17: 397 | H17: 397 | I17: 397 | J17: 397
A18: TPA0107 | B18: 88 kV | C18: km | D18: 0 | E18: 0 | F18: 0 | G18: 0 | H18: 0 | I18: 0 | J18: 0
A19: TPA0108 | B19: 66 kV | C19: km | D19: 2 | E19: 2 | F19: 2 | G19: 2 | H19: 2 | I19: 2 | J19: 2
A20: TPA0109 | B20: 33 kV | C20: km | D20: 0 | E20: 0 | F20: 0 | G20: 0 | H20: 0 | I20: 0 | J20: 0
A21: TPA0109 | B21: 22 kV | C21: km | D21: 0 | E21: 0 | F21: 0 | G21: 0 | H21: 0 | I21: 0 | J21: 0
A22: TPA0109 | B22: 11 kV | C22: km | D22: 0 | E22: 0 | F22: 0 | G22: 0 | H22: 0 | I22: 0 | J22: 0
A23: TPA01 | B23: Total | D23: =SUM(D12:D22) -> 14508 | E23: 14508 | F23: 14438.9 | G23: 14436.3 | H23: 14451.3 | I23: 14451.3 | J23: 14441.3
B25: Underground cable circuit length at each voltage
A26: TPA0201 | B26: 500 kV | C26: km | D26: 0 | E26: 0 | F26: 0 | G26: 0 | H26: 0 | I26: 0 | J26: 0
A27: TPA0202 | B27: 330 kV | C27: km | D27: 0 | E27: 0 | F27: 0 | G27: 0 | H27: 0 | I27: 0 | J27: 0
A28: TPA0203 | B28: 275 kV | C28: km | D28: 9.4 | E28: 9.4 | F28: 9.4 | G28: 9.4 | H28: 9.4 | I28: 9.4 | J28: 9.4
A29: TPA0204 | B29: 220 kV | C29: km | D29: 0 | E29: 0 | F29: 0 | G29: 0 | H29: 0 | I29: 0 | J29: 0
A30: TPA0205 | B30: 132 kV | C30: km | D30: 3.2 | E30: 3.2 | F30: 3.2 | G30: 3.2 | H30: 3.2 | I30: 3.2 | J30: 13.2
A31: TPA0206 | B31: 110 kV | C31: km | D31: 7.6 | E31: 7.6 | F31: 7.6 | G31: 7.6 | H31: 7.6 | I31: 7.6 | J31: 7.6
A32: TPA0207 | B32: 88 kV | C32: km | D32: 0 | E32: 0 | F32: 0 | G32: 0 | H32: 0 | I32: 0 | J32: 0
A33: TPA0208 | B33: 66 kV | C33: km | D33: 0 | E33: 0 | F33: 0 | G33: 0 | H33: 0 | I33: 0 | J33: 0
A34: TPA0209 | B34: 33 kV | C34: km | D34: 0 | E34: 0 | F34: 0 | G34: 0 | H34: 0 | I34: 0 | J34: 0
A35: TPA0210 | B35: 22 kV | C35: km | D35: 0 | E35: 0 | F35: 0 | G35: 0 | H35: 0 | I35: 0 | J35: 0
A36: TPA0211 | B36: 11 kV | C36: km | D36: 0 | E36: 0 | F36: 0 | G36: 0 | H36: 0 | I36: 0 | J36: 0
A37: TPA02 | B37: Total | D37: =SUM(D26:D36) -> 20.2 | E37: 20.2 | F37: 20.2 | G37: 20.2 | H37: 20.2 | I37: 20.2 | J37: 30.2
B39: Estimated overhead network weighted average MVA capacity by voltage class
A40: TPA0301 | B40: 500 kV | C40: MVA | D40: 0 | E40: 0 | F40: 0 | G40: 0 | H40: 0 | I40: 0 | J40: 0
A41: TPA0302 | B41: 330 kV | C41: MVA | D41: 1241.7 | E41: 1241.7 | F41: 1241.7 | G41: 1241.7 | H41: 1241.7 | I41: 1241.7 | J41: 1241.7
A42: TPA0303 | B42: 275 kV | C42: MVA | D42: 750.3 | E42: 711.3 | F42: 711.3 | G42: 711 | H42: 711 | I42: 711 | J42: 711
A43: TPA0304 | B43: 220 kV | C43: MVA | D43: 0 | E43: 0 | F43: 0 | G43: 0 | H43: 0 | I43: 0 | J43: 0
A44: TPA0305 | B44: 132 kV | C44: MVA | D44: 141 | E44: 141 | F44: 139.4 | G44: 139 | H44: 139 | I44: 139 | J44: 139
A45: TPA0306 | B45: 110 kV | C45: MVA | D45: 177 | E45: 177 | F45: 177 | G45: 177 | H45: 177 | I45: 177 | J45: 177
A46: TPA0307 | B46: 88 kV | C46: MVA | D46: 0 | E46: 0 | F46: 0 | G46: 0 | H46: 0 | I46: 0 | J46: 0
A47: TPA0308 | B47: 66 kV | C47: MVA | D47: 37.2 | E47: 37.2 | F47: 37.2 | G47: 37.2 | H47: 37.2 | I47: 37.2 | J47: 37.2
A48: TPA0309 | B48: 33 kV | C48: MVA | D48: 0 | E48: 0 | F48: 0 | G48: 0 | H48: 0 | I48: 0 | J48: 0
A49: TPA0310 | B49: 22 kV | C49: MVA | D49: 0 | E49: 0 | F49: 0 | G49: 0 | H49: 0 | I49: 0 | J49: 0
A50: TPA0311 | B50: 11 kV | C50: MVA | D50: 0 | E50: 0 | F50: 0 | G50: 0 | H50: 0 | I50: 0 | J50: 0
B52: Estimated underground network weighted average MVA capacity by voltage class
A53: TPA0401 | B53: 500 kV | C53: MVA | D53: 0 | E53: 0 | F53: 0 | G53: 0 | H53: 0 | I53: 0 | J53: 0
A54: TPA0402 | B54: 330 kV | C54: MVA | D54: 0 | E54: 0 | F54: 0 | G54: 0 | H54: 0 | I54: 0 | J54: 0
A55: TPA0403 | B55: 275 kV | C55: MVA | D55: 572 | E55: 572 | F55: 572 | G55: 572 | H55: 572 | I55: 572 | J55: 572
A56: TPA0404 | B56: 220 kV | C56: MVA | D56: 0 | E56: 0 | F56: 0 | G56: 0 | H56: 0 | I56: 0 | J56: 0
A57: TPA0405 | B57: 132 kV | C57: MVA | D57: 161 | E57: 161 | F57: 161 | G57: 161 | H57: 161 | I57: 161 | J57: 134.6
A58: TPA0406 | B58: 110 kV | C58: MVA | D58: 205.3 | E58: 205.3 | F58: 205.3 | G58: 205.3 | H58: 205.3 | I58: 205.3 | J58: 205.3
A59: TPA0407 | B59: 88 kV | C59: MVA | D59: 0 | E59: 0 | F59: 0 | G59: 0 | H59: 0 | I59: 0 | J59: 0
A60: TPA0408 | B60: 66 kV | C60: MVA | D60: 0 | E60: 0 | F60: 0 | G60: 0 | H60: 0 | I60: 0 | J60: 0
A61: TPA0409 | B61: 33 kV | C61: MVA | D61: 0 | E61: 0 | F61: 0 | G61: 0 | H61: 0 | I61: 0 | J61: 0
A62: TPA0410 | B62: 22 kV | C62: MVA | D62: 0 | E62: 0 | F62: 0 | G62: 0 | H62: 0 | I62: 0 | J62: 0
A63: TPA0411 | B63: 11 kV | C63: MVA | D63: 0 | E63: 0 | F63: 0 | G63: 0 | H63: 0 | I63: 0 | J63: 0
B65: Installed transmission system transformer capacity
A66: TPA0501 | B66: Transmission substations (eg 500 kV to 330 kV) | C66: MVA | D66: 11424 | E66: 10910 | F66: 10865 | G66: 11151 | H66: 11151 | I66: 11151 | J66: 11151
A67: TPA0502 | B67: Terminal points to DNSP systems | C67: MVA | D67: 19931 | E67: 19796 | F67: 19611 | G67: 19719 | H67: 19726 | I67: 19726 | J67: 19726
A68: TPA0503 | B68: Transformer capacity for directly connected end–users owned by the TNSP | C68: MVA | D68: 2172 | E68: 2172 | F68: 2172 | G68: 2172 | H68: 2172 | I68: 2172 | J68: 2172
A69: TPA0504 | B69: Transformer capacity for directly connected end–users owned by the end–user | C69: MVA | D69: 4832 | E69: 4832 | F69: 4832 | G69: 4832 | H69: 4832 | I69: 4832 | J69: 4832
A70: TPA0505 | B70: Interconnector capacity | C70: MVA | D70: 3750 | E70: 3750 | F70: 3750 | G70: 3750 | H70: 3750 | I70: 3750 | J70: 3750
A71: TPA0506 | B71: Other | C71: MVA | D71: 3197 | E71: 3197 | F71: 3197 | G71: 3197 | H71: 3197 | I71: 3197 | J71: 3197
B73: Cold spare capacity
A74: TPA06 | B74: Cold spare capacity included in 3.5.1.5 | C74: MVA | D74: 3335 | E74: 3135 | F74: 3135 | G74: 3135 | H74: 3135 | I74: 3135 | J74: 3135

Sheet 3.7 Operating environment
B1: =(LOOKUP(dms_Model,dms_Model_List,dms_Worksheet_List)) -> REGULATORY REPORTING STATEMENT
B2: =INDEX(dms_TradingNameFull_List,MATCH(dms_TradingName,dms_TradingName_List)) -> Queensland Electricity Transmission Corporation Limited trading as Powerlink Queensland
B3: =IF(SUM(dms_SingleYear_Model)>0,CRY,CONCATENATE(FRCP_y1," to ",dms_MultiYear_FinalYear_Result)) -> 2022-23 to 2026-27
B4: 3.7 OPERATING ENVIRONMENT FACTORS
A7: TEF01 | B7: 3.7.1 - TERRAIN FACTORS
D8: Forecast (0's)
C9: Units | D9: =dms_y1 -> 2020-21 | E9: =dms_y2 -> 2021-22 | F9: =dms_y3 -> 2022-23 | G9: =dms_y4 -> 2023-24 | H9: =dms_y5 -> 2024-25 | I9: =dms_y6 -> 2025-26 | J9: =dms_y7 -> 2026-27
A10: TEF0101 | B10: Total number of vegetation maintenance spans | C10: Number of spans | D10: 6007
A11: TEF0102 | B11: Average vegetation maintenance span cycle | C11: Years | D11: 2.664
A12: TEF0103 | B12: Average number of trees per vegetation maintenance span | C12: Trees | D12: 900
A13: TEF0104 | B13: Average number of defects per vegetation maintenance span | C13: Defects | D13: 0.02
A14: TEF0105 | B14: Tropical proportion | C14: Number of spans | D14: 4805
A15: TEF0106 | B15: Standard vehicle access | C15: km | D15: 7918
A16: TEF0107 | B16: Altitude | C16: km | D16: 432.8
A17: TEF0108 | B17: Bushfire risk | C17: Number of spans | D17: 962
A19: TEF02 | B19: 3.7.2 - NETWORK CHARACTERISTICS
D20: Forecast (0's)
C21: Units | D21: =dms_y1 -> 2020-21 | E21: =dms_y2 -> 2021-22 | F21: =dms_y3 -> 2022-23 | G21: =dms_y4 -> 2023-24 | H21: =dms_y5 -> 2024-25 | I21: =dms_y6 -> 2025-26 | J21: =dms_y7 -> 2026-27
A22: TEF0201 | B22: Route line length | C22: km | D22: 9634 | E22: 9634 | F22: 9564.9 | G22: 9562.3 | H22: 9562.3 | I22: 9562.3 | J22: 9562.3
A23: TEF0202 | B23: Variability of dispatch | C23: % | D23: 0.11 | E23: 0.13 | F23: 0.13 | G23: 0.12 | H23: 0.16 | I23: 0.2 | J23: 0.24
A24: TEF0203 | B24: Concentrated load distance | C24: km | D24: 565.4 | E24: 565.4 | F24: 565.4 | G24: 565.4 | H24: 565.4 | I24: 565.4 | J24: 565.4
A25: TEF0204 | B25: Total number of spans | C25: number | D25: 23716 | E25: 23716 | F25: 23486 | G25: 23478 | H25: 23478 | I25: 23478 | J25: 23448

Sheet 5.4 MD & Utilisation - Spatial
B1: =(LOOKUP(dms_Model,dms_Model_List,dms_Worksheet_List)) -> REGULATORY REPORTING STATEMENT
B2: =INDEX(dms_TradingNameFull_List,MATCH(dms_TradingName,dms_TradingName_List)) -> Queensland Electricity Transmission Corporation Limited trading as Powerlink Queensland
B3: =IF(SUM(dms_SingleYear_Model)>0,CRY,CONCATENATE(FRCP_y1," to ",dms_MultiYear_FinalYear_Result)) -> 2022-23 to 2026-27
B4: 5.4 MAXIMUM DEMAND AND UTILISATION AT SPATIAL LEVEL
B6: There is ONE table on this worksheet. It has been sub-grouped into blocks of approximately 500 rows for ease of navigation. See the Instructions sheet on how to group or ungroup data.
B8: 5.4.1 - NON-COINCIDENT & COINCIDENT MAXIMUM DEMAND
B9: CONNECTION POINT | C9: FORECASTING ELEMENTS | D9: UNIT | E9: MAX DEMAND | G9: TNSP NAME | H9: SERVICE | I9: SERVICE SUBCATEGORY | J9: DATA TYPE | K9: DATA TYPE SUBCATEGORY | L9: LOCATION | M9: LOCATION SUBCATEGORY | N9: MEASUREMENT | O9: DENOMINATION | Q9: =dms_y1 -> 2020-21 | R9: =dms_y2 -> 2021-22 | S9: =dms_y3 -> 2022-23 | T9: =dms_y4 -> 2023-24 | U9: =dms_y5 -> 2024-25 | V9: =dms_y6 -> 2025-26 | W9: =dms_y7 -> 2026-27
B10: Abermain (110) | C10: CONNECTION POINT RATING | D10: MVA | E10: Non-coincident | G10: TNSP NAME | H10: DEMAND FORECASTING | I10: NON-COINCIDENT MAXIMUM DEMAND | J10: DESCRIPTOR METRIC | K10: CONNECTION POINT RATING | L10: CONNECTION POINT | M10: =B10 -> Abermain (110) | N10: RATING | O10: MVA | Q10: 238.2 | R10: 238.2 | S10: 238.2 | T10: 238.2 | U10: 238.2 | V10: 238.2 | W10: 238.2
E11: Coincident | G11: TNSP NAME | H11: DEMAND FORECASTING | I11: COINCIDENT MAXIMUM DEMAND | J11: DESCRIPTOR METRIC | K11: CONNECTION POINT RATING | L11: CONNECTION POINT | M11: =M10 -> Abermain (110) | N11: RATING | O11: MVA | Q11: 238.2 | R11: 238.2 | S11: 238.2 | T11: 238.2 | U11: 238.2 | V11: 238.2 | W11: 238.2
C12: WINTER/SUMMER PEAKING | E12: Non-coincident | G12: TNSP NAME | H12: DEMAND FORECASTING | I12: NON-COINCIDENT MAXIMUM DEMAND | J12: DESCRIPTOR METRIC | K12: WINTER/SUMMER PEAKING | L12: CONNECTION POINT | M12: =#REF! ->  | N12: WINTER/SUMMER | O12: WINTER/SUMMER | Q12: Summer | R12: Summer | S12: Summer | T12: Summer | U12: Summer | V12: Summer | W12: Summer
E13: Coincident | G13: TNSP NAME | H13: DEMAND FORECASTING | I13: COINCIDENT MAXIMUM DEMAND | J13: DESCRIPTOR METRIC | K13: WINTER/SUMMER PEAKING | L13: CONNECTION POINT | M13: =M12 ->  | N13: WINTER/SUMMER | O13: WINTER/SUMMER | Q13: Summer | R13: Summer | S13: Summer | T13: Summer | U13: Summer | V13: Summer | W13: Summer
C14: ADJUSTMENTS - EMBEDDED GENERATION | D14: MW | E14: Non-coincident | G14: TNSP NAME | H14: DEMAND FORECASTING | I14: NON-COINCIDENT MAXIMUM DEMAND | J14: DESCRIPTOR METRIC | K14: ADJUSTMENTS - EMBEDDED GENERATION | L14: CONNECTION POINT | N14: GENERATED LOAD | O14: MW | Q14: - | R14: - | S14: - | T14: - | U14: - | V14: - | W14: -
E15: Coincident | G15: TNSP NAME | H15: DEMAND FORECASTING | I15: COINCIDENT MAXIMUM DEMAND | J15: DESCRIPTOR METRIC | K15: ADJUSTMENTS - EMBEDDED GENERATION | L15: CONNECTION POINT | N15: GENERATED LOAD | O15: MW | Q15: - | R15: - | S15: - | T15: - | U15: - | V15: - | W15: -
C16: WEATHER CORRECTED MD 10% POE | D16: MW | E16: Non-coincident | G16: TNSP NAME | H16: DEMAND FORECASTING | I16: NON-COINCIDENT MAXIMUM DEMAND | J16: DESCRIPTOR METRIC | K16: WEATHER CORRECTED MD 10% POE | L16: CONNECTION POINT | N16: MAXIMUM DEMAND | O16: MW | Q16: 78.3 | R16: 78.6 | S16: 79.1 | T16: 79.3 | U16: 79.4 | V16: 82.1 | W16: 82.3
E17: Coincident | G17: TNSP NAME | H17: DEMAND FORECASTING | I17: COINCIDENT MAXIMUM DEMAND | J17: DESCRIPTOR METRIC | K17: WEATHER CORRECTED MD 10% POE | L17: CONNECTION POINT | N17: MAXIMUM DEMAND | O17: MW | Q17: 66.2 | R17: 68.4 | S17: 69.1 | T17: 69.9 | U17: 70.4 | V17: 73.2 | W17: 73.6
C18: WEATHER CORRECTED MD 10% POE | D18: MVA | E18: Non-coincident | G18: TNSP NAME | H18: DEMAND FORECASTING | I18: NON-COINCIDENT MAXIMUM DEMAND | J18: DESCRIPTOR METRIC | K18: WEATHER CORRECTED MD 10% POE | L18: CONNECTION POINT | N18: MAXIMUM DEMAND | O18: MVA | Q18: 79.3 | R18: 79.5 | S18: 80.1 | T18: 80.3 | U18: 80.4 | V18: 82.9 | W18: 83.2
E19: Coincident | G19: TNSP NAME | H19: DEMAND FORECASTING | I19: COINCIDENT MAXIMUM DEMAND | J19: DESCRIPTOR METRIC | K19: WEATHER CORRECTED MD 10% POE | L19: CONNECTION POINT | N19: MAXIMUM DEMAND | O19: MVA | Q19: 67.2 | R19: 69.4 | S19: 70.1 | T19: 71 | U19: 71.4 | V19: 74.4 | W19: 74.8
C20: WEATHER CORRECTED MD 50% POE | D20: MW | E20: Non-coincident | G20: TNSP NAME | H20: DEMAND FORECASTING | I20: NON-COINCIDENT MAXIMUM DEMAND | J20: DESCRIPTOR METRIC | K20: WEATHER CORRECTED MD 50% POE | L20: CONNECTION POINT | N20: MAXIMUM DEMAND | O20: MW | Q20: 67.9 | R20: 68.2 | S20: 68.6 | T20: 68.8 | U20: 68.8 | V20: 71.5 | W20: 71.7
E21: Coincident | G21: TNSP NAME | H21: DEMAND FORECASTING | I21: COINCIDENT MAXIMUM DEMAND | J21: DESCRIPTOR METRIC | K21: WEATHER CORRECTED MD 50% POE | L21: CONNECTION POINT | N21: MAXIMUM DEMAND | O21: MW | Q21: 63.1 | R21: 65.1 | S21: 65.8 | T21: 66.6 | U21: 67 | V21: 69.8 | W21: 70.1
C22: WEATHER CORRECTED MD 50% POE | D22: MVA | E22: Non-coincident | G22: TNSP NAME | H22: DEMAND FORECASTING | I22: NON-COINCIDENT MAXIMUM DEMAND | J22: DESCRIPTOR METRIC | K22: WEATHER CORRECTED MD 50% POE | L22: CONNECTION POINT | N22: MAXIMUM DEMAND | O22: MVA | Q22: 68.9 | R22: 69.1 | S22: 69.5 | T22: 69.7 | U22: 69.8 | V22: 72.6 | W22: 72.8
E23: Coincident | G23: TNSP NAME | H23: DEMAND FORECASTING | I23: COINCIDENT MAXIMUM DEMAND | J23: DESCRIPTOR METRIC | K23: WEATHER CORRECTED MD 50% POE | L23: CONNECTION POINT | N23: MAXIMUM DEMAND | O23: MVA | Q23: 63.9 | R23: 66 | S23: 66.7 | T23: 67.5 | U23: 67.9 | V23: 70.8 | W23: 71.1
B24: Abermain (33) | C24: CONNECTION POINT RATING | D24: MVA | E24: Non-coincident | G24: TNSP NAME | H24: DEMAND FORECASTING | I24: NON-COINCIDENT MAXIMUM DEMAND | J24: DESCRIPTOR METRIC | K24: CONNECTION POINT RATING | L24: CONNECTION POINT | M24: =B24 -> Abermain (33) | N24: RATING | O24: MVA | Q24: 277 | R24: 277 | S24: 277 | T24: 277 | U24: 277 | V24: 277 | W24: 277
E25: Coincident | G25: TNSP NAME | H25: DEMAND FORECASTING | I25: COINCIDENT MAXIMUM DEMAND | J25: DESCRIPTOR METRIC | K25: CONNECTION POINT RATING | L25: CONNECTION POINT | M25: =M24 -> Abermain (33) | N25: RATING | O25: MVA | Q25: 277 | R25: 277 | S25: 277 | T25: 277 | U25: 277 | V25: 277 | W25: 277
C26: WINTER/SUMMER PEAKING | E26: Non-coincident | G26: TNSP NAME | H26: DEMAND FORECASTING | I26: NON-COINCIDENT MAXIMUM DEMAND | J26: DESCRIPTOR METRIC | K26: WINTER/SUMMER PEAKING | L26: CONNECTION POINT | M26: =#REF! ->  | N26: WINTER/SUMMER | O26: WINTER/SUMMER | Q26: Summer | R26: Summer | S26: Summer | T26: Summer | U26: Summer | V26: Summer | W26: Summer
E27: Coincident | G27: TNSP NAME | H27: DEMAND FORECASTING | I27: COINCIDENT MAXIMUM DEMAND | J27: DESCRIPTOR METRIC | K27: WINTER/SUMMER PEAKING | L27: CONNECTION POINT | M27: =M26 ->  | N27: WINTER/SUMMER | O27: WINTER/SUMMER | Q27: Summer | R27: Summer | S27: Summer | T27: Summer | U27: Summer | V27: Summer | W27: Summer
C28: ADJUSTMENTS - EMBEDDED GENERATION | D28: MW | E28: Non-coincident | G28: TNSP NAME | H28: DEMAND FORECASTING | I28: NON-COINCIDENT MAXIMUM DEMAND | J28: DESCRIPTOR METRIC | K28: ADJUSTMENTS - EMBEDDED GENERATION | L28: CONNECTION POINT | N28: GENERATED LOAD | O28: MW | Q28: - | R28: - | S28: - | T28: - | U28: - | V28: - | W28: -
E29: Coincident | G29: TNSP NAME | H29: DEMAND FORECASTING | I29: COINCIDENT MAXIMUM DEMAND | J29: DESCRIPTOR METRIC | K29: ADJUSTMENTS - EMBEDDED GENERATION | L29: CONNECTION POINT | N29: GENERATED LOAD | O29: MW | Q29: - | R29: - | S29: - | T29: - | U29: - | V29: - | W29: -
C30: WEATHER CORRECTED MD 10% POE | D30: MW | E30: Non-coincident | G30: TNSP NAME | H30: DEMAND FORECASTING | I30: NON-COINCIDENT MAXIMUM DEMAND | J30: DESCRIPTOR METRIC | K30: WEATHER CORRECTED MD 10% POE | L30: CONNECTION POINT | N30: MAXIMUM DEMAND | O30: MW | Q30: 123.5 | R30: 128.2 | S30: 132.7 | T30: 134.4 | U30: 134.6 | V30: 135 | W30: 135.3
E31: Coincident | G31: TNSP NAME | H31: DEMAND FORECASTING | I31: COINCIDENT MAXIMUM DEMAND | J31: DESCRIPTOR METRIC | K31: WEATHER CORRECTED MD 10% POE | L31: CONNECTION POINT | N31: MAXIMUM DEMAND | O31: MW | Q31: 104.7 | R31: 112.4 | S31: 117 | T31: 119.7 | U31: 120.5 | V31: 121.1 | W31: 121.6
C32: WEATHER CORRECTED MD 10% POE | D32: MVA | E32: Non-coincident | G32: TNSP NAME | H32: DEMAND FORECASTING | I32: NON-COINCIDENT MAXIMUM DEMAND | J32: DESCRIPTOR METRIC | K32: WEATHER CORRECTED MD 10% POE | L32: CONNECTION POINT | N32: MAXIMUM DEMAND | O32: MVA | Q32: 128.6 | R32: 133.7 | S32: 139 | T32: 140.9 | U32: 141.1 | V32: 141.5 | W32: 141.8
E33: Coincident | G33: TNSP NAME | H33: DEMAND FORECASTING | I33: COINCIDENT MAXIMUM DEMAND | J33: DESCRIPTOR METRIC | K33: WEATHER CORRECTED MD 10% POE | L33: CONNECTION POINT | N33: MAXIMUM DEMAND | O33: MVA | Q33: 110.2 | R33: 118.5 | S33: 123.3 | T33: 126.3 | U33: 127.1 | V33: 127.8 | W33: 128.2
C34: WEATHER CORRECTED MD 50% POE | D34: MW | E34: Non-coincident | G34: TNSP NAME | H34: DEMAND FORECASTING | I34: NON-COINCIDENT MAXIMUM DEMAND | J34: DESCRIPTOR METRIC | K34: WEATHER CORRECTED MD 50% POE | L34: CONNECTION POINT | N34: MAXIMUM DEMAND | O34: MW | Q34: 107.4 | R34: 112 | S34: 116.2 | T34: 117.8 | U34: 117.9 | V34: 118.3 | W34: 118.5
E35: Coincident | G35: TNSP NAME | H35: DEMAND FORECASTING | I35: COINCIDENT MAXIMUM DEMAND | J35: DESCRIPTOR METRIC | K35: WEATHER CORRECTED MD 50% POE | L35: CONNECTION POINT | N35: MAXIMUM DEMAND | O35: MW | Q35: 99.7 | R35: 107 | S35: 111.5 | T35: 114 | U35: 114.8 | V35: 115.4 | W35: 115.8
C36: WEATHER CORRECTED MD 50% POE | D36: MVA | E36: Non-coincident | G36: TNSP NAME | H36: DEMAND FORECASTING | I36: NON-COINCIDENT MAXIMUM DEMAND | J36: DESCRIPTOR METRIC | K36: WEATHER CORRECTED MD 50% POE | L36: CONNECTION POINT | N36: MAXIMUM DEMAND | O36: MVA | Q36: 112.6 | R36: 117.6 | S36: 121.9 | T36: 123.7 | U36: 123.8 | V36: 124.2 | W36: 124.4
E37: Coincident | G37: TNSP NAME | H37: DEMAND FORECASTING | I37: COINCIDENT MAXIMUM DEMAND | J37: DESCRIPTOR METRIC | K37: WEATHER CORRECTED MD 50% POE | L37: CONNECTION POINT | N37: MAXIMUM DEMAND | O37: MVA | Q37: 104.5 | R37: 112.4 | S37: 116.9 | T37: 119.8 | U37: 120.6 | V37: 121.2 | W37: 121.6
B38: Alan Sherriff | C38: CONNECTION POINT RATING | D38: MVA | E38: Non-coincident | Q38: 457.3 | R38: 457.3 | S38: 457.3 | T38: 457.3 | U38: 457.3 | V38: 457.3 | W38: 457.3
E39: Coincident | Q39: 457.3 | R39: 457.3 | S39: 457.3 | T39: 457.3 | U39: 457.3 | V39: 457.3 | W39: 457.3
C40: WINTER/SUMMER PEAKING | E40: Non-coincident | Q40: Summer | R40: Summer | S40: Summer | T40: Summer | U40: Summer | V40: Summer | W40: Summer
E41: Coincident | Q41: Summer | R41: Summer | S41: Summer | T41: Summer | U41: Summer | V41: Summer | W41: Summer
C42: ADJUSTMENTS - EMBEDDED GENERATION | D42: MW | E42: Non-coincident | Q42: - | R42: - | S42: - | T42: - | U42: - | V42: - | W42: -
E43: Coincident | Q43: - | R43: - | S43: - | T43: - | U43: - | V43: - | W43: -
C44: WEATHER CORRECTED MD 10% POE | D44: MW | E44: Non-coincident | Q44: 29.4 | R44: 29.3 | S44: 29.2 | T44: 29.2 | U44: 29.3 | V44: 29.5 | W44: 29.8
E45: Coincident | Q45: 23.2 | R45: 23.8 | S45: 23.8 | T45: 24.1 | U45: 24.2 | V45: 24.4 | W45: 24.7
C46: WEATHER CORRECTED MD 10% POE | D46: MVA | E46: Non-coincident | Q46: 30.6 | R46: 30.5 | S46: 30.5 | T46: 30.5 | U46: 30.5 | V46: 30.7 | W46: 31
E47: Coincident | Q47: 24.2 | R47: 24.9 | S47: 24.9 | T47: 25.2 | U47: 25.3 | V47: 25.6 | W47: 25.8
C48: WEATHER CORRECTED MD 50% POE | D48: MW | E48: Non-coincident | Q48: 24.8 | R48: 24.7 | S48: 24.6 | T48: 24.6 | U48: 24.7 | V48: 24.8 | W48: 25.1
E49: Coincident | Q49: 22.1 | R49: 22.6 | S49: 22.7 | T49: 22.9 | U49: 23 | V49: 23.3 | W49: 23.5
C50: WEATHER CORRECTED MD 50% POE | D50: MVA | E50: Non-coincident | Q50: 25.8 | R50: 25.7 | S50: 25.7 | T50: 25.7 | U50: 25.7 | V50: 25.9 | W50: 26.2
E51: Coincident | Q51: 23 | R51: 23.6 | S51: 23.7 | T51: 23.9 | U51: 24 | V51: 24.3 | W51: 24.5
B52: Algester | C52: CONNECTION POINT RATING | D52: MVA | E52: Non-coincident | Q52: 202 | R52: 202 | S52: 202 | T52: 202 | U52: 202 | V52: 202 | W52: 202
E53: Coincident | Q53: 202 | R53: 202 | S53: 202 | T53: 202 | U53: 202 | V53: 202 | W53: 202
C54: WINTER/SUMMER PEAKING | E54: Non-coincident | Q54: Summer | R54: Summer | S54: Summer | T54: Summer | U54: Summer | V54: Summer | W54: Summer
E55: Coincident | Q55: Summer | R55: Summer | S55: Summer | T55: Summer | U55: Summer | V55: Summer | W55: Summer
C56: ADJUSTMENTS - EMBEDDED GENERATION | D56: MW | E56: Non-coincident | Q56: - | R56: - | S56: - | T56: - | U56: - | V56: - | W56: -
E57: Coincident | Q57: - | R57: - | S57: - | T57: - | U57: - | V57: - | W57: -
C58: WEATHER CORRECTED MD 10% POE | D58: MW | E58: Non-coincident | Q58: 79.6 | R58: 78.9 | S58: 78.6 | T58: 78.2 | U58: 77.6 | V58: 77.3 | W58: 77
E59: Coincident | Q59: 68.7 | R59: 70.1 | S59: 70.1 | T59: 70.4 | U59: 70.3 | V59: 70.1 | W59: 69.9
C60: WEATHER CORRECTED MD 10% POE | D60: MVA | E60: Non-coincident | Q60: 81.4 | R60: 80.7 | S60: 80.4 | T60: 80 | U60: 80.6 | V60: 80.2 | W60: 79.9
E61: Coincident | Q61: 71.7 | R61: 73.1 | S61: 73.1 | T61: 73.5 | U61: 73.3 | V61: 73.1 | W61: 72.9
C62: WEATHER CORRECTED MD 50% POE | D62: MW | E62: Non-coincident | Q62: 70.5 | R62: 69.8 | S62: 69.6 | T62: 69.3 | U62: 68.7 | V62: 68.5 | W62: 68.2
E63: Coincident | Q63: 65.4 | R63: 66.7 | S63: 66.7 | T63: 67.1 | U63: 66.9 | V63: 66.8 | W63: 66.6
C64: WEATHER CORRECTED MD 50% POE | D64: MVA | E64: Non-coincident | Q64: 73.3 | R64: 72.6 | S64: 72.3 | T64: 72 | U64: 71.5 | V64: 71.2 | W64: 70.9
E65: Coincident | Q65: 68 | R65: 69.4 | S65: 69.4 | T65: 69.7 | U65: 69.6 | V65: 69.4 | W65: 69.2
B66: Alligator Creek (132) | C66: CONNECTION POINT RATING | D66: MVA | E66: Non-coincident | Q66: 280.1 | R66: 280.1 | S66: 280.1 | T66: 280.1 | U66: 280.1 | V66: 280.1 | W66: 280.1
E67: Coincident | Q67: 280.1 | R67: 280.1 | S67: 280.1 | T67: 280.1 | U67: 280.1 | V67: 280.1 | W67: 280.1
C68: WINTER/SUMMER PEAKING | E68: Non-coincident | Q68: Summer | R68: Summer | S68: Summer | T68: Summer | U68: Summer | V68: Summer | W68: Summer
E69: Coincident | Q69: Summer | R69: Summer | S69: Summer | T69: Summer | U69: Summer | V69: Summer | W69: Summer
C70: ADJUSTMENTS - EMBEDDED GENERATION | D70: MW | E70: Non-coincident | Q70: - | R70: - | S70: - | T70: - | U70: - | V70: - | W70: -
E71: Coincident | Q71: - | R71: - | S71: - | T71: - | U71: - | V71: - | W71: -
C72: WEATHER CORRECTED MD 10% POE | D72: MW | E72: Non-coincident | Q72: 46.4 | R72: 46.5 | S72: 46.5 | T72: 46.7 | U72: 46.8 | V72: 47 | W72: 47.1
E73: Coincident | Q73: 23.9 | R73: 24.6 | S73: 24.7 | T73: 25.1 | U73: 25.3 | V73: 25.4 | W73: 25.5
C74: WEATHER CORRECTED MD 10% POE | D74: MVA | E74: Non-coincident | Q74: 47.9 | R74: 47.9 | S74: 48 | T74: 48.2 | U74: 48.3 | V74: 48.4 | W74: 48.6
E75: Coincident | Q75: 24.7 | R75: 25.5 | S75: 25.6 | T75: 26 | U75: 26.2 | V75: 26.3 | W75: 26.4
C76: WEATHER CORRECTED MD 50% POE | D76: MW | E76: Non-coincident | Q76: 45.2 | R76: 45.3 | S76: 45.3 | T76: 45.5 | U76: 45.6 | V76: 45.7 | W76: 45.8
E77: Coincident | Q77: 22.7 | R77: 23.4 | S77: 23.5 | T77: 23.9 | U77: 24.1 | V77: 24.2 | W77: 24.3
C78: WEATHER CORRECTED MD 50% POE | D78: MVA | E78: Non-coincident | Q78: 46.6 | R78: 46.7 | S78: 46.7 | T78: 46.9 | U78: 47 | V78: 47.2 | W78: 47.3
E79: Coincident | Q79: 23.5 | R79: 24.2 | S79: 24.3 | T79: 24.7 | U79: 24.8 | V79: 25 | W79: 25.1
B80: Alligator Creek (33) | C80: CONNECTION POINT RATING | D80: MVA | E80: Non-coincident | Q80: 250.8 | R80: 250.8 | S80: 250.8 | T80: 250.8 | U80: 250.8 | V80: 250.8 | W80: 250.8
E81: Coincident | Q81: 250.8 | R81: 250.8 | S81: 250.8 | T81: 250.8 | U81: 250.8 | V81: 250.8 | W81: 250.8
C82: WINTER/SUMMER PEAKING | E82: Non-coincident | Q82: Summer | R82: Summer | S82: Summer | T82: Summer | U82: Summer | V82: Summer | W82: Summer
E83: Coincident | Q83: Summer | R83: Summer | S83: Summer | T83: Summer | U83: Summer | V83: Summer | W83: Summer
C84: ADJUSTMENTS - EMBEDDED GENERATION | D84: MW | E84: Non-coincident | Q84: - | R84: - | S84: - | T84: - | U84: - | V84: - | W84: -
E85: Coincident | Q85: - | R85: - | S85: - | T85: - | U85: - | V85: - | W85: -
C86: WEATHER CORRECTED MD 10% POE | D86: MW | E86: Non-coincident | Q86: 45.2 | R86: 45.4 | S86: 45.6 | T86: 45.9 | U86: 46.1 | V86: 46.5 | W86: 46.9
E87: Coincident | Q87: 38.9 | R87: 40.2 | S87: 40.5 | T87: 41.2 | U87: 41.6 | V87: 42 | W87: 42.5
C88: WEATHER CORRECTED MD 10% POE | D88: MVA | E88: Non-coincident | Q88: 45.7 | R88: 45.8 | S88: 46 | T88: 46.3 | U88: 46.5 | V88: 46.9 | W88: 47.4
E89: Coincident | Q89: 39.8 | R89: 41.1 | S89: 41.4 | T89: 42.1 | U89: 42.5 | V89: 42.9 | W89: 43.4
C90: WEATHER CORRECTED MD 50% POE | D90: MW | E90: Non-coincident | Q90: 41.4 | R90: 41.6 | S90: 41.8 | T90: 42 | U90: 42.2 | V90: 42.6 | W90: 43
E91: Coincident | Q91: 37.1 | R91: 38.3 | S91: 38.6 | T91: 39.2 | U91: 39.6 | V91: 40 | W91: 40.5
C92: WEATHER CORRECTED MD 50% POE | D92: MVA | E92: Non-coincident | Q92: 41.8 | R92: 41.9 | S92: 42.2 | T92: 42.4 | U92: 42.6 | V92: 43 | W92: 43.4
E93: Coincident | Q93: 37.9 | R93: 39.1 | S93: 39.4 | T93: 40 | U93: 40.5 | V93: 40.9 | W93: 41.3
B94: Alligator Creek (Rail 132) | C94: CONNECTION POINT RATING | D94: MVA | E94: Non-coincident | Q94: - | R94: - | S94: - | T94: - | U94: - | V94: - | W94: -
E95: Coincident | Q95: - | R95: - | S95: - | T95: - | U95: - | V95: - | W95: -
C96: WINTER/SUMMER PEAKING | E96: Non-coincident | Q96: Summer | R96: Summer | S96: Summer | T96: Summer | U96: Summer | V96: Summer | W96: Summer
E97: Coincident | Q97: Summer | R97: Summer | S97: Summer | T97: Summer | U97: Summer | V97: Summer | W97: Summer
C98: ADJUSTMENTS - EMBEDDED GENERATION | D98: MW | E98: Non-coincident | Q98: - | R98: - | S98: - | T98: - | U98: - | V98: - | W98: -
E99: Coincident | Q99: - | R99: - | S99: - | T99: - | U99: - | V99: - | W99: -
C100: WEATHER CORRECTED MD 10% POE | D100: MW | E100: Non-coincident
E101: Coincident
C102: WEATHER CORRECTED MD 10% POE | D102: MVA | E102: Non-coincident
E103: Coincident
C104: WEATHER CORRECTED MD 50% POE | D104: MW | E104: Non-coincident
E105: Coincident
C106: WEATHER CORRECTED MD 50% POE | D106: MVA | E106: Non-coincident
E107: Coincident
B108: Ashgrove West (110) | C108: CONNECTION POINT RATING | D108: MVA | E108: Non-coincident | Q108: 457.3 | R108: 457.3 | S108: 457.3 | T108: 457.3 | U108: 457.3 | V108: 457.3 | W108: 457.3
E109: Coincident | Q109: 457.3 | R109: 457.3 | S109: 457.3 | T109: 457.3 | U109: 457.3 | V109: 457.3 | W109: 457.3
C110: WINTER/SUMMER PEAKING | E110: Non-coincident | Q110: Summer | R110: Summer | S110: Summer | T110: Summer | U110: Summer | V110: Summer | W110: Summer
E111: Coincident | Q111: Summer | R111: Summer | S111: Summer | T111: Summer | U111: Summer | V111: Summer | W111: Summer
C112: ADJUSTMENTS - EMBEDDED GENERATION | D112: MW | E112: Non-coincident | Q112: - | R112: - | S112: - | T112: - | U112: - | V112: - | W112: -
E113: Coincident | Q113: - | R113: - | S113: - | T113: - | U113: - | V113: - | W113: -
C114: WEATHER CORRECTED MD 10% POE | D114: MW | E114: Non-coincident | Q114: 132.9 | R114: 134.4 | S114: 139.7 | T114: 142.8 | U114: 143.9 | V114: 143.7 | W114: 143.4
E115: Coincident | Q115: 121.4 | R115: 126.5 | S115: 132.2 | T115: 136.7 | U115: 138.6 | V115: 138.6 | W115: 138.6
C116: WEATHER CORRECTED MD 10% POE | D116: MVA | E116: Non-coincident | Q116: 135.6 | R116: 137.2 | S116: 142.8 | T116: 146.3 | U116: 147.6 | V116: 147.3 | W116: 147
E117: Coincident | Q117: 124.1 | R117: 129.4 | S117: 135.5 | T117: 140.4 | U117: 142.5 | V117: 142.5 | W117: 142.5
C118: WEATHER CORRECTED MD 50% POE | D118: MW | E118: Non-coincident | Q118: 124.5 | R118: 126.1 | S118: 131.3 | T118: 134.4 | U118: 135.6 | V118: 135.3 | W118: 135.1
E119: Coincident | Q119: 115.6 | R119: 120.5 | S119: 125.9 | T119: 130.2 | U119: 132 | V119: 132 | W119: 132
C120: WEATHER CORRECTED MD 50% POE | D120: MVA | E120: Non-coincident | Q120: 127 | R120: 128.7 | S120: 134.3 | T120: 137.7 | U120: 139 | V120: 138.8 | W120: 138.6
E121: Coincident | Q121: 117.9 | R121: 123 | S121: 128.8 | T121: 133.4 | U121: 135.4 | V121: 135.4 | W121: 135.4
B122: Ashgrove West (33) | C122: CONNECTION POINT RATING | D122: MVA | E122: Non-coincident | Q122: 179.1 | R122: 179.1 | S122: 179.1 | T122: 179.1 | U122: 179.1 | V122: 179.1 | W122: 179.1
E123: Coincident | Q123: 179.1 | R123: 179.1 | S123: 179.1 | T123: 179.1 | U123: 179.1 | V123: 179.1 | W123: 179.1
C124: WINTER/SUMMER PEAKING | E124: Non-coincident | Q124: Summer | R124: Summer | S124: Summer | T124: Summer | U124: Summer | V124: Summer | W124: Summer
E125: Coincident | Q125: Summer | R125: Summer | S125: Summer | T125: Summer | U125: Summer | V125: Summer | W125: Summer
C126: ADJUSTMENTS - EMBEDDED GENERATION | D126: MW | E126: Non-coincident | Q126: - | R126: - | S126: - | T126: - | U126: - | V126: - | W126: -
E127: Coincident | Q127: - | R127: - | S127: - | T127: - | U127: - | V127: - | W127: -
C128: WEATHER CORRECTED MD 10% POE | D128: MW | E128: Non-coincident | Q128: 81.2 | R128: 80.9 | S128: 80.9 | T128: 80.8 | U128: 80.4 | V128: 80.2 | W128: 80.1
E129: Coincident | Q129: 66.7 | R129: 68.4 | S129: 68.7 | T129: 69.2 | U129: 69.3 | V129: 69.3 | W129: 69.2
C130: WEATHER CORRECTED MD 10% POE | D130: MVA | E130: Non-coincident | Q130: 81.5 | R130: 81.2 | S130: 81.2 | T130: 81 | U130: 80.7 | V130: 80.5 | W130: 80.4
E131: Coincident | Q131: 66.9 | R131: 68.6 | S131: 68.9 | T131: 69.4 | U131: 69.5 | V131: 69.5 | W131: 69.4
C132: WEATHER CORRECTED MD 50% POE | D132: MW | E132: Non-coincident | Q132: 68.4 | R132: 68.2 | S132: 68.2 | T132: 68.1 | U132: 67.7 | V132: 67.6 | W132: 67.5
E133: Coincident | Q133: 63.5 | R133: 65.2 | S133: 65.4 | T133: 65.9 | U133: 66 | V133: 66 | W133: 65.9
C134: WEATHER CORRECTED MD 50% POE | D134: MVA | E134: Non-coincident | Q134: 68.6 | R134: 68.4 | S134: 68.4 | T134: 68.3 | U134: 67.9 | V134: 67.8 | W134: 67.7
E135: Coincident | Q135: 63.7 | R135: 65.4 | S135: 65.6 | T135: 66.1 | U135: 66.1 | V135: 66.2 | W135: 66.1
B136: Belmont (110) | C136: CONNECTION POINT RATING | D136: MVA | E136: Non-coincident | Q136: 1622 | R136: 1622 | S136: 1622 | T136: 1622 | U136: 1622 | V136: 1622 | W136: 1622
E137: Coincident | Q137: 1622 | R137: 1622 | S137: 1622 | T137: 1622 | U137: 1622 | V137: 1622 | W137: 1622
C138: WINTER/SUMMER PEAKING | E138: Non-coincident | Q138: Summer | R138: Summer | S138: Summer | T138: Summer | U138: Summer | V138: Summer | W138: Summer
E139: Coincident | Q139: Summer | R139: Summer | S139: Summer | T139: Summer | U139: Summer | V139: Summer | W139: Summer
C140: ADJUSTMENTS - EMBEDDED GENERATION | D140: MW | E140: Non-coincident | Q140: 1.8 | R140: 1.8 | S140: 1.8 | T140: 1.8 | U140: 1.8 | V140: 1.8 | W140: 1.8
E141: Coincident | Q141: - | R141: - | S141: - | T141: - | U141: - | V141: - | W141: -
C142: WEATHER CORRECTED MD 10% POE | D142: MW | E142: Non-coincident | Q142: 497.3 | R142: 506.6 | S142: 509.7 | T142: 510.1 | U142: 509.6 | V142: 509.4 | W142: 509.3
E143: Coincident | Q143: 441.6 | R143: 464 | S143: 468.6 | T143: 473.5 | U143: 475.5 | V143: 476.3 | W143: 476.8
C144: WEATHER CORRECTED MD 10% POE | D144: MVA | E144: Non-coincident | Q144: 509.8 | R144: 519.9 | S144: 523.2 | T144: 523.6 | U144: 523 | V144: 522.9 | W144: 522.7
E145: Coincident | Q145: 453.8 | R145: 477.4 | S145: 482.3 | T145: 487.3 | U145: 489.3 | V145: 490.2 | W145: 490.7
C146: WEATHER CORRECTED MD 50% POE | D146: MW | E146: Non-coincident | Q146: 452.9 | R146: 462.3 | S146: 465.2 | T146: 465.6 | U146: 465.1 | V146: 465 | W146: 464.8
E147: Coincident | Q147: 420.6 | R147: 441.9 | S147: 446.3 | T147: 450.9 | U147: 452.8 | V147: 453.7 | W147: 454.1
C148: WEATHER CORRECTED MD 50% POE | D148: MVA | E148: Non-coincident | Q148: 464.4 | R148: 474.6 | S148: 477.7 | T148: 478.1 | U148: 477.6 | V148: 477.4 | W148: 477.3
E149: Coincident | Q149: 431.2 | R149: 453.6 | S149: 458.2 | T149: 463 | U149: 465 | V149: 465.8 | W149: 466.3
B150: Belmont (33) | C150: CONNECTION POINT RATING | D150: MVA | E150: Non-coincident | Q150: 307 | R150: 307 | S150: 307 | T150: 307 | U150: 307 | V150: 307 | W150: 307
E151: Coincident | Q151: 307 | R151: 307 | S151: 307 | T151: 307 | U151: 307 | V151: 307 | W151: 307
C152: WINTER/SUMMER PEAKING | E152: Non-coincident | Q152: Summer | R152: Summer | S152: Summer | T152: Summer | U152: Summer | V152: Summer | W152: Summer
E153: Coincident | Q153: Summer | R153: Summer | S153: Summer | T153: Summer | U153: Summer | V153: Summer | W153: Summer
C154: ADJUSTMENTS - EMBEDDED GENERATION | D154: MW | E154: Non-coincident | Q154: - | R154: - | S154: - | T154: - | U154: - | V154: - | W154: -
E155: Coincident | Q155: - | R155: - | S155: - | T155: - | U155: - | V155: - | W155: -
C156: WEATHER CORRECTED MD 10% POE | D156: MW | E156: Non-coincident | Q156: 132.6 | R156: 132.3 | S156: 132.3 | T156: 132.1 | U156: 131.4 | V156: 131.4 | W156: 131.4
E157: Coincident | Q157: 115.2 | R157: 118.3 | S157: 118.8 | T157: 119.7 | U157: 119.7 | V157: 119.9 | W157: 120.1
C158: WEATHER CORRECTED MD 10% POE | D158: MVA | E158: Non-coincident | Q158: 134.4 | R158: 134.1 | S158: 134.1 | T158: 133.9 | U158: 134.2 | V158: 134.2 | W158: 134.1
E159: Coincident | Q159: 117.7 | R159: 120.9 | S159: 121.4 | T159: 122.3 | U159: 122.3 | V159: 122.6 | W159: 122.7
C160: WEATHER CORRECTED MD 50% POE | D160: MW | E160: Non-coincident | Q160: 118.1 | R160: 117.9 | S160: 117.9 | T160: 117.7 | U160: 117.1 | V160: 117.1 | W160: 117
E161: Coincident | Q161: 109.7 | R161: 112.7 | S161: 113.1 | T161: 114 | U161: 114 | V161: 114.2 | W161: 114.4
C162: WEATHER CORRECTED MD 50% POE | D162: MVA | E162: Non-coincident | Q162: 120.5 | R162: 120.2 | S162: 120.3 | T162: 120.1 | U162: 119.4 | V162: 119.4 | W162: 119.4
E163: Coincident | Q163: 111.9 | R163: 114.9 | S163: 115.4 | T163: 116.3 | U163: 116.3 | V163: 116.5 | W163: 116.7
B164: Biloela | C164: CONNECTION POINT RATING | D164: MVA | E164: Non-coincident | Q164: 200 | R164: 200 | S164: 200 | T164: 200 | U164: 200 | V164: 200 | W164: 200
E165: Coincident | Q165: 200 | R165: 200 | S165: 200 | T165: 200 | U165: 200 | V165: 200 | W165: 200
C166: WINTER/SUMMER PEAKING | E166: Non-coincident | Q166: Summer | R166: Summer | S166: Summer | T166: Summer | U166: Summer | V166: Summer | W166: Summer
E167: Coincident | Q167: Summer | R167: Summer | S167: Summer | T167: Summer | U167: Summer | V167: Summer | W167: Summer
C168: ADJUSTMENTS - EMBEDDED GENERATION | D168: MW | E168: Non-coincident | Q168: - | R168: - | S168: - | T168: - | U168: - | V168: - | W168: -
E169: Coincident | Q169: - | R169: - | S169: - | T169: - | U169: - | V169: - | W169: -
C170: WEATHER CORRECTED MD 10% POE | D170: MW | E170: Non-coincident | Q170: 35.4 | R170: 35.3 | S170: 35.3 | T170: 35.3 | U170: 35.3 | V170: 35.3 | W170: 35.4
E171: Coincident | Q171: 26.2 | R171: 26.8 | S171: 26.9 | T171: 27.1 | U171: 27.2 | V171: 27.3 | W171: 27.4
C172: WEATHER CORRECTED MD 10% POE | D172: MVA | E172: Non-coincident | Q172: 35.6 | R172: 35.5 | S172: 35.5 | T172: 35.5 | U172: 35.5 | V172: 35.6 | W172: 35.7
E173: Coincident | Q173: 26.2 | R173: 26.9 | S173: 26.9 | T173: 27.2 | U173: 27.3 | V173: 27.4 | W173: 27.5
C174: WEATHER CORRECTED MD 50% POE | D174: MW | E174: Non-coincident | Q174: 32.7 | R174: 32.7 | S174: 32.6 | T174: 32.6 | U174: 32.6 | V174: 32.7 | W174: 32.8
E175: Coincident | Q175: 24.9 | R175: 25.5 | S175: 25.6 | T175: 25.8 | U175: 25.9 | V175: 26 | W175: 26.1
C176: WEATHER CORRECTED MD 50% POE | D176: MVA | E176: Non-coincident | Q176: 32.9 | R176: 32.8 | S176: 32.8 | T176: 32.8 | U176: 32.8 | V176: 32.9 | W176: 33
E177: Coincident | Q177: 25 | R177: 25.6 | S177: 25.6 | T177: 25.9 | U177: 26 | V177: 26.1 | W177: 26.2
B178: Blackstone | C178: CONNECTION POINT RATING | D178: MVA | E178: Non-coincident | Q178: 800.2 | R178: 800.2 | S178: 800.2 | T178: 800.2 | U178: 800.2 | V178: 800.2 | W178: 800.2
E179: Coincident | Q179: 800.2 | R179: 800.2 | S179: 800.2 | T179: 800.2 | U179: 800.2 | V179: 800.2 | W179: 800.2
C180: WINTER/SUMMER PEAKING | E180: Non-coincident | Q180: Summer | R180: Summer | S180: Summer | T180: Summer | U180: Summer | V180: Summer | W180: Summer
E181: Coincident | Q181: Summer | R181: Summer | S181: Summer | T181: Summer | U181: Summer | V181: Summer | W181: Summer
C182: ADJUSTMENTS - EMBEDDED GENERATION | D182: MW | E182: Non-coincident | Q182: - | R182: - | S182: - | T182: - | U182: - | V182: - | W182: -
E183: Coincident | Q183: - | R183: - | S183: - | T183: - | U183: - | V183: - | W183: -
C184: WEATHER CORRECTED MD 10% POE | D184: MW | E184: Non-coincident | Q184: 119.4 | R184: 121.5 | S184: 123.1 | T184: 124.3 | U184: 125.3 | V184: 127.1 | W184: 128.1
E185: Coincident | Q185: 99.5 | R185: 104.4 | S185: 106 | T185: 108.1 | U185: 109.5 | V185: 111.3 | W185: 112.3
C186: WEATHER CORRECTED MD 10% POE | D186: MVA | E186: Non-coincident | Q186: 120.2 | R186: 122.4 | S186: 123.9 | T186: 125.2 | U186: 126.2 | V186: 128 | W186: 129
E187: Coincident | Q187: 101.1 | R187: 106.1 | S187: 107.7 | T187: 109.8 | U187: 111.2 | V187: 113.1 | W187: 114.1
C188: WEATHER CORRECTED MD 50% POE | D188: MW | E188: Non-coincident | Q188: 102 | R188: 104 | S188: 105.2 | T188: 106.3 | U188: 107.1 | V188: 108.7 | W188: 109.5
E189: Coincident | Q189: 94.7 | R189: 99.4 | S189: 100.9 | T189: 102.9 | U189: 104.3 | V189: 106 | W189: 107
C190: WEATHER CORRECTED MD 50% POE | D190: MVA | E190: Non-coincident | Q190: 103.5 | R190: 105.5 | S190: 106.8 | T190: 107.9 | U190: 108.6 | V190: 110.2 | W190: 111
E191: Coincident | Q191: 96.1 | R191: 100.9 | S191: 102.4 | T191: 104.4 | U191: 105.8 | V191: 107.5 | W191: 108.5
B192: Blackwater (66/11) | C192: CONNECTION POINT RATING | D192: MVA | E192: Non-coincident | Q192: 331.6 | R192: 331.6 | S192: 320 | T192: 320 | U192: 320 | V192: 320 | W192: 320
E193: Coincident | Q193: 331.6 | R193: 331.6 | S193: 320 | T193: 320 | U193: 320 | V193: 320 | W193: 320
C194: WINTER/SUMMER PEAKING | E194: Non-coincident | Q194: Summer | R194: Summer | S194: Summer | T194: Summer | U194: Summer | V194: Summer | W194: Summer
E195: Coincident | Q195: Summer | R195: Summer | S195: Summer | T195: Summer | U195: Summer | V195: Summer | W195: Summer
C196: ADJUSTMENTS - EMBEDDED GENERATION | D196: MW | E196: Non-coincident | Q196: - | R196: - | S196: - | T196: - | U196: - | V196: - | W196: -
E197: Coincident | Q197: - | R197: - | S197: - | T197: - | U197: - | V197: - | W197: -
C198: WEATHER CORRECTED MD 10% POE | D198: MW | E198: Non-coincident | Q198: 101.2 | R198: 101.1 | S198: 101.2 | T198: 101.5 | U198: 101.5 | V198: 105.9 | W198: 110.3
E199: Coincident | Q199: 93.1 | R199: 95.8 | S199: 96.1 | T199: 97.4 | U199: 97.9 | V199: 101.5 | W199: 105
C200: WEATHER CORRECTED MD 10% POE | D200: MVA | E200: Non-coincident | Q200: 103.1 | R200: 103.1 | S200: 103.1 | T200: 103.4 | U200: 103.4 | V200: 107.9 | W200: 112.3
E201: Coincident | Q201: 95 | R201: 97.8 | S201: 98.1 | T201: 99.4 | U201: 100 | V201: 103.5 | W201: 107
C202: WEATHER CORRECTED MD 50% POE | D202: MW | E202: Non-coincident | Q202: 97.5 | R202: 97.5 | S202: 97.5 | T202: 97.8 | U202: 97.9 | V202: 101.2 | W202: 104.5
... 4679 more rows

Sheet 7.1 Policies and Procedures
B1: =(LOOKUP(dms_Model,dms_Model_List,dms_Worksheet_List)) -> REGULATORY REPORTING STATEMENT
B2: =INDEX(dms_TradingNameFull_List,MATCH(dms_TradingName,dms_TradingName_List)) -> Queensland Electricity Transmission Corporation Limited trading as Powerlink Queensland
B3: =IF(SUM(dms_SingleYear_Model)>0,CRY,CONCATENATE(FRCP_y1," to ",dms_MultiYear_FinalYear_Result)) -> 2022-23 to 2026-27
B4: 7.1 PLANS, POLICIES, PROCEDURES AND STRATEGIES
B7: Instructions
B8: =CONCATENATE(dms_TradingName, " must list and provide a brief description of key internal plans, "&"policies, procedures or strategies that are used by it to plan and conduct its day to day operations and that have been relied upon in the development of its regulatory proposal. "&dms_TradingName," must identify any internal plans, policies, procedures and strategies that have changed in the current regulatory control period "&"or that are expected to change before the next regulatory control period where the change has been identified as a step change.") -> Powerlink must list and provide a brief description of key internal plans, policies, procedures or strategies that are used by it to plan and conduct its day to day operations and that have been relied upon in the development of its regulatory proposal. Powerlink must identify any internal plans, policies, procedures and strategies that have changed in the current regulatory control period or that are expected to change before the next regulatory control period where the change has been identified as a step change.
B10: 7.1.1 - PLANS, POLICIES, PROCEDURES AND STRATEGIES
C11: Brief description | D11: Relevance to regulatory proposal | E11: Expenditure impact
C12: Description of the plan, policy, procedure or strategy. | D12: Identify the element of the proposal/supporting documents that the policy, plan, procedure or strategy is relevant to e.g. replacement capex, capacity utilisation thresholds, opex | E12: Is this policy, plan or procedure identified in the response to section 4 'Step Changes' of the notice (yes or no)?
B13: Corporate
B14: Statement of Corporate Intent 2019/20 | C14: Statement of the strategic intent and performance objectives for Powerlink in the most recent full financial year. | D14: Forecast capital expenditure Forecast operating expenditure | E14: No
B17: Governance framework
B18: Asset Management Framework | C18: Defines the asset management framework for network assets. | D18: Forecast capital expenditure Forecast operating expenditure | E18: No
B19: Asset Management Policy | C19: Sets out the direction and framework for the sustainable management of all network and non-network assets. | D19: Forecast capital expenditure Forecast operating expenditure | E19: No
B35: Accounting policies, procedures and methodologies (including a capitalisation policy, depreciation policy and an approved expenditure allocation methodology)
B36: Depreciation of Fixed Assets | C36: Sets out the approach to depreciation (methodology and assignment of useful life) for fixed assets. | D36: Forecast depreciation | E36: No
B37: Powerlink Cost Allocation Methodology | C37: Sets out Powerlink’s methodology for attributing costs to, or allocating costs between or within prescribed, negotiated and other non-regulated transmission services. | D37: Revenue Proposal | E37: No
B38: Property Plant & Equipment - Recognition | C38: Sets out the policies and procedures for capitalisation of asset expenditure | D38: Forecast capital expenditure Forecast operating expenditure | E38: No
B39: Asset management plan or equivalent documentation
B40: Asset Management Policies
B41: Asset Management Framework | C41: Defines the asset management framework for network assets. | D41: Forecast capital expenditure Forecast operating expenditure | E41: No
B42: Asset Management Policy | C42: Sets out the direction and framework for the sustainable management of all network and non-network assets. | D42: Forecast capital expenditure Forecast operating expenditure | E42: No
B43: Asset Management Strategies
B44: Asset Management Strategy | C44: Outlines the asset management strategy applied over the life cycle of network assets. | D44: Forecast capital expenditure Forecast operating expenditure | E44: No
B48: Asset Management Plans
B49: Asset Management Plan Volume 1 (Overview) | C49: Overview of Powerlink's asset management planning process. | D49: Forecast capital expenditure Forecast operating expenditure | E49: No
B50: Asset Management Plan Volume 2 (Investment Outlook) | C50: Summary of the outcomes from Powerlink's asset management planning process. | D50: Forecast capital expenditure Forecast operating expenditure | E50: No
B51: Asset Management Plan Volume 3 (Area Plan) | C51: Detailed descriptions of Powerlink's area planning analysis and recommendations | D51: Forecast capital expenditure Forecast operating expenditure | E51: No
B52: Bushfire Mitigation Plan | C52: Outlines the approach to bushfire mitigation that considers the resources and responses needed to manage risks associated with bushfires | D52: Forecast capital expenditure Forecast operating expenditure | E52: No
B53: Facilities Asset Management Plan | C53: Sets out Powerlink's approach to management of commercial buildings and facilities. | D53: Forecast capital expenditure Forecast operating expenditure | E53: No
B54: Fleet Asset Management Plan | C54: Sets out Powerlink's approach to the management of motor vehicle assets. | D54: Forecast capital expenditure Forecast operating expenditure | E54: No
B55: Operational Technology Asset Strategy 2020-2027 | C55: Outlines the approach to asset management for Operational Technology systems. | D55: Forecast capital expenditure | E55: No
B56: Operational Technology Business Strategy 2020-2027 | C56: Outlines strategic initiatives for Operational Technology (OT) systems | D56: Forecast capital expenditure | E56: No
B57: Operational Technology Development Plan 2020-2027 | C57: Outlines development plans for Operational Technology | D57: Forecast capital expenditure | E57: No
B58: Secondary Systems Asset Strategy 2020-2027 | C58: Outlines the approach to asset management for Secondary systems | D58: Forecast capital expenditure | E58: No
B59: Secondary Systems Business Strategy 2020-2027 | C59: Outlines strategic initiatives for Secondary Systems. | D59: Forecast capital expenditure | E59: No
B60: Telecommunications Asset Strategy 2020-2027 | C60: Outlines the approach to asset management for Telecommunications systems. | D60: Forecast capital expenditure | E60: No
B61: Telecommunications Business Strategy 2020-2027 | C61: Outlines strategic initiatives for Telecommunications systems. | D61: Forecast capital expenditure | E61: No
B62: Transmission Annual Planning Report 2020 | C62: Provides information to interested stakeholders on the planning and development of the Queensland transmission network. | D62: Forecast capital expenditure Forecast operating expenditure | E62: No
B72: Capital expenditure policies and procedures (including capex approval policies and procedures and replacement policy)
B73: Capital Network Investment Approval – Guideline | C73: Provides a high level overview of regulated network capital project approval process. | D73: Forecast capital expenditure | E73: No
B77: Internal standards for network planning, design, maintenance and operation
B78: Asset End of Life Strategy | C78: Establishes the overarching approach to network assets which have reached end of life. | D78: Forecast capital expenditure Forecast operating expenditure | E78: No
B79: Asset Maintenance Standard | C79: Establishes the overarching approach to maintenance needs, plans and work. | D79: Forecast operating expenditure | E79: No
B80: Asset Planning Criteria Framework | C80: Outlines the criteria Powerlink applies in planning of the transmission network. | D80: Forecast capital expenditure | E80: No
B81: Asset Refurbishment Standard | C81: Establishes the overarching approach to operational refurbishment needs, plans & projects. | D81: Forecast operating expenditure | E81: No
B82: Asset Reinvestment Criteria Framework | C82: Establishes the basis on which Powerlink idenditifes assets which require reinvestment. | D82: Forecast capital expenditure Forecast operating expenditure | E82: No
B83: Digital Asset Management | C83: Sets out the whole of life asset management philosophy for Powerlink’s Digital assets. | D83: Forecast capital expenditure Forecast operating expenditure | E83: No
B84: HV Underground Cable Asset Methodology | C84: Sets out the whole of life asset management philosophy for Powerlink’s HV underground cable assets. | D84: Forecast capital expenditure Forecast operating expenditure | E84: No
B85: Joint Planning Framework | C85: Outlines Powerlink's approach to jointly plan the network with other TNSPs, DNSPs and EAMO | D85: Forecast capital expenditure | E85: No
B86: Land Asset Methodology | C86: Sets out the whole of life asset management philosophy for Powerlink’s Land assets. | D86: Forecast capital expenditure Forecast operating expenditure | E86: No
B87: Substation Asset Methodology | C87: Sets out the whole of life asset management philosophy for Powerlink’s Substation assets. | D87: Forecast capital expenditure Forecast operating expenditure | E87: No
B88: Transmission Line Asset Methodology | C88: Sets out the whole of life asset management philosophy for Powerlink’s Transmission Line assets. | D88: Forecast capital expenditure Forecast operating expenditure | E88: No
B157: Procurement and contracting out policies
B158: Procurement standard | C158: Describes approach to procurement practices. | D158: Forecast capital expenditure Forecast operating expenditure | E158: No
B162: Information technology policies or strategies
B163: IT Plan 2023-27 | C163: Sets out Powerlink's proposed IT investments in the 2023-27 regulatory period. | D163: Forecast capital expenditure Forecast operating expenditure | E163: No
B199: Demand management policies or strategies
B200: Transmission Annual Planning Report 2020 | C200: Provides information to interested parties on network developments and potential opportunities for provision of demand management solutions. | D200: Forecast capital expenditure Forecast operating expenditure | E200: No
B203: Self insurance guidelines or policy
B204: Marsh - Insurance Projections | C204: Sets out Powerlink's independent advice on self insurance requirements for the 2023-27 regulatory period. | D204: Forecast operating expenditure | E204: No
B208: Land and easement acquisition polices
B209: Powerlink - Strategic Network Land Acquisition – Strategy | C209: Develops a practical framework for establishing Powerlink’s land acquisition requirements | D209: Forecast capital expenditure | E209: No
B210: Powerlink - Understanding Designation for Transmission Line Infrastructure | C210: Sets out process and requirements for community infrastructure designation | D210: Forecast capital expenditure | E210: No
B211: Powerlink - Understanding resumptions for Transmission Line Infrastructure | C211: Sets out process and requirements for resumption of land and easements | D211: Forecast capital expenditure | E211: No
B213: Asset security plans and policies
B214: Information Security Strategy | C214: Outlines Powerlink’s security drivers and strategy in regard to information security. | D214: Forecast capital expenditure | E214: No
B215: Security Management - Framework | C215: Describes how Powerlink applies security to its business operations and transmission services. | D215: Forecast capital expenditure Forecast operating expenditure | E215: No
B224: Disaster recovery policy
B225: Business resilience policy | C225: Sets out Powerlink's approach to proactively plan for and management the impact of emergencies and natural disasters to the transmission network and its business operations. | D225: Forecast capital expenditure Forecast operating expenditure | E225: No

Sheet 7.2 Contingent projects
B1: =(LOOKUP(dms_Model,dms_Model_List,dms_Worksheet_List)) -> REGULATORY REPORTING STATEMENT
B2: =INDEX(dms_TradingNameFull_List,MATCH(dms_TradingName,dms_TradingName_List)) -> Queensland Electricity Transmission Corporation Limited trading as Powerlink Queensland
B3: =IF(SUM(dms_SingleYear_Model)>0,CRY,CONCATENATE(FRCP_y1," to ",dms_MultiYear_FinalYear_Result)) -> 2022-23 to 2026-27
B4: 7.2 CONTINGENT PROJECTS
B7: Instructions
B8: =CONCATENATE(dms_TradingName," is required to populate all input cells (yellow) in table 7.2.1 presented below. Additional rows may be added by ",dms_TradingName," if required." ) -> Powerlink is required to populate all input cells (yellow) in table 7.2.1 presented below. Additional rows may be added by Powerlink if required.
B10: 7.2.1 - PROPOSED CONTINGENT PROJECTS FOR THE FORTHCOMING REGULATORY CONTROL PERIOD
B11: Proposed contingent project name | C11: Proposed contingent capital expenditure ($0's, nominal) | D11: Proposed trigger events | E11: =CONCATENATE("Proposed MAR for ", FRCP_y1," ($0's, nominal)") -> Proposed MAR for 2022-23 ($0's, nominal) | F11: =CONCATENATE("5 per cent of the ", FRCP_y1," ($0's, nominal) MAR") -> 5 per cent of the 2022-23 ($0's, nominal) MAR
B12: Central to North Queensland Reinforcement | C12: 57183516.08 | D12: • commitment of additional load in excess of 250 MW to be connected to the Central West and/or North Queensland zones that requires the dispatch of higher cost generation in northern Queensland to maintain power transfers within limits ; • successful completion of the RIT-T, including a comprehensive assessment of credible options, that demonstrates a network investment by Powerlink maximises the net market benefits while meeting Powerlink’s reliability of supply obligations to North Queensland; and • Powerlink Board commitment to proceed with the project subject to the AER amending Powerlink’s revenue determination pursuant to the Rules. | E12: 689657739.3 | F12: =+E12*0.05 -> 34482886.96
E13: =+$E$12 -> 689657739.3 | F13: 34482886.96
E14: 689657739.3 | F14: 34482886.96
E15: 689657739.3 | F15: 34482886.96
E16: 689657739.3 | F16: 34482886.96
E17: 689657739.3 | F17: 34482886.96
E18: 689657739.3 | F18: 34482886.96
E19: 689657739.3 | F19: 34482886.96
E20: 689657739.3 | F20: 34482886.96
E21: 689657739.3 | F21: 34482886.96
E22: 689657739.3 | F22: 34482886.96
E23: 689657739.3 | F23: 34482886.96
E24: 689657739.3 | F24: 34482886.96
E25: 689657739.3 | F25: 34482886.96
E26: 689657739.3 | F26: 34482886.96
E27: 689657739.3 | F27: 34482886.96
E28: 689657739.3 | F28: 34482886.96
E29: 689657739.3 | F29: 34482886.96
E30: 689657739.3 | F30: 34482886.96
E31: 689657739.3 | F31: 34482886.96

Sheet 7.3 Obligations
B1: =(LOOKUP(dms_Model,dms_Model_List,dms_Worksheet_List)) -> REGULATORY REPORTING STATEMENT
B2: =INDEX(dms_TradingNameFull_List,MATCH(dms_TradingName,dms_TradingName_List)) -> Queensland Electricity Transmission Corporation Limited trading as Powerlink Queensland
B3: =IF(SUM(dms_SingleYear_Model)>0,CRY,CONCATENATE(FRCP_y1," to ",dms_MultiYear_FinalYear_Result)) -> 2022-23 to 2026-27
B4: 7.3 OBLIGATIONS, REQUIREMENTS & STANDARDS
B6: There is ONE table on this worksheet. It has been sub-grouped for ease of navigation. See the Instructions sheet on how to group or ungroup data.
B8: Instructions
B9: =CONCATENATE("Outline those obligations and requirements that ",dms_TradingName, " identifies as having a material impact on expenditure requirements.") -> Outline those obligations and requirements that Powerlink identifies as having a material impact on expenditure requirements.
B12: 7.3.1 - OBLIGATIONS OR REQUIREMENTS
C13: Brief description | D13: Relevance to regulatory proposal | E13: Expenditure impact
C14: Description of relevant obligations or requirements within the instrument (e.g. safety obligations, reliability targets) | D14: Identify what element of the proposal/supporting documents the obligation or requirement is relevant to e.g. replacement capex, capacity utilisation thresholds, opex | E14: Is the obligation or requirement identified in the response to section 4 'Step Changes' of the notice (yes or no)?
B15: Legislation
B16: Aboriginal Cultural Heritage Act 2003(Qld) | C16: This Act provides a framework for the recognition, protection and conservation of Aboriginal cultural heritage which includes an obligation to avoid harm to cultural heritage which applies to Powerlink's activities related to the construction, operation and maintenance of transmission network infrastructure. | D16: Forecast capital expenditure Forecast operating expenditure | E16: No
B17: Acquisition of Land Act 1967 (Qld) and associated regulation | C17: This Act relates to the acquisition of land or an interest in land which includes an easement for electricity works and the payment of compensation to the interest holders of the land over which an easement or other interest is taken. | D17: Forecast capital expenditure | E17: No
B18: Anti-Discrimination Act 1991 (Qld) Age Discrimination Act 2004 (Cth) Disability Discrimination Act 1992 (Cth) Racial Discrimination Act 1975 (Cth) Sex Discrimination Act 1984 (Cth) | C18: These laws provide the framework to protect people from unfair discrimination and other objectionable conduct and applies to Powerlink as an employer. | D18: Forecast operating expenditure | E18: No
B19: Biosecurity Act 2014 (Qld) and associated regulation | C19: This Acts provides a framework for managing biosecurity risks that Powerlink must apply when constructing, operating and maintaining transmission infrastructure and for reporting and notifying of incidents. | D19: Forecast capital expenditure Forecast operating expenditure | E19: No
B20: Civil Aviation Act 1998 (Cth) and associated regulations | C20: This Act regulates the safe operation of aircraft (including drones) and aerial work (including helicopter flight operations). It provides a system of licensing and operational requirements and applies to Powerlink inspection of its transmission infrastructure network. | D20: Forecast operating expenditure | E20: No
B21: Coastal Protection and Management Act 1995 (Qld) | C21: This Act provdies a framework for the protection, conservation and management of the Queensland coast and its resources and applies to certain Powerlink activities carried out in those areas or impacting on tidal waters and associated resources. | D21: Forecast capital expenditure Forecast operating expenditure | E21: No
B22: Corporations Act 2001 (Cth) | C22: This Act includes a corporate sector whistleblower protection regime for whistleblowers who report misconduct about companies and company officers. Companies are required to have a whistleblower policy and apply particular processes including protections of whistleblowers. The regime applies to Powerlink. | D22: Forecast operating expenditure | E22: No
B23: Crime and Corruption Act 2001 (Qld) | C23: This Act provides a framework for the management and notification of complaints of suspected corrupt conduct. | D23: Forecast operating expenditure | E23: No
B24: Economic Development Act 2012 (Qld) | C24: This Act facilitates economic development and development for community purposes which regulates development in declared priority development areas (PDAs). Development of Powerlink's network infrastructure in PDAs is subject to requirements and approval. | D24: Forecast capital expenditure Forecast operating expenditure | E24: No
B25: Electrical Safety Act 2002 (Qld) | C25: This Act sets out compliance obligations for electricity entities to ensure electricity works are operated in a way that is electrically safe. This includes requirements that Powerlink inspects, tests and maintains its works. | D25: Forecast capital expenditure Forecast operating expenditure | E25: No
B26: Electrical Safety Regulation 2013 (Qld) | C26: This Regulation sets out the more detailed requirements for how an electricity entity complies with the Electrical Safety Act. | D26: Forecast capital expenditure Forecast operating expenditure | E26: No
B27: Electricity Act 1994 (Qld) | C27: This Act includes the following key obligations: (a) comply with technical conditions for operating the transmission grid in the transmission authority area, regulations and National Electricity Law and Rules; (b) must properly take into account the environmental impacts of its activities; (c) pay the amounts required under the authority or the regulations for administering the authority and its conditions; (d) must also pay an annual fee that is a proportion of the cost of the State’s funding commitments to national energy market regulation (AEMC Levy). | D27: Forecast capital expenditure Forecast operating expenditure | E27: No
B28: Electricity Regulation 2006 (Qld) | C28: This Regulation is focused on ensuring a secure, efficient and economic supply of electricity to customers on fair and reasonable terms, ensuring customers' interests are adequately protected, provide for proper measurement and information provision regarding the energy efficiency and performance of electrical equipment and prescribes particular conditions of employees in the government owned electricity industry. | D28: Forecast capital expenditure Forecast operating expenditure | E28: No
B29: Electricity—National Scheme (Queensland) Act 1997 and the National Electricity Law (NEL) | C29: Electricity transmission entities have a large number of obligations under the NEL. The most significant obligations are to: register with AEMO as a "Registered Participant"; comply with the transmission determination that applies to the electricity transmission network services provided; provide the AER with the necessary information or prepare, maintain or keep the information as is requested by the AER in either a "relevant notice" or a "regulatory information instrument"; provide information to the AER for the purpose of the preparation of a NSP's performance or financial report; comply with the guidelines established by AEMO in relation to the shedding and restoration of loads in order to ensure the safety and security of the National Electricity System; comply with a wide range of obligations relating to the determination and resolution of access disputes, as well as to the restrictions on, variation of and compliance with access determinations; and comply with the general obligation not to prevent or hinder the access of another person to a regulated network service. | D29: Revenue Proposal | E29: No
B30: Environment Protection and Biodiversity Conservation Act 1999 (Cth) and associated regulation | C30: This Act provides a framework to protect and manage matters of national environmental significance (MNES) which includes assessment and approval processes for activities that may impact on MNES as part of developing and constructing transmission network infrastructure. | D30: Forecast capital expenditure Forecast operating expenditure | E30: No
B31: Environmental Offsets Act 2014 (Qld) and associated subordinate legislation | C31: This Act provides a framework for coordinating the assessment and implementation of environmental offsets for activities that impact on prescribed environmental matters under a range of legislation. | D31: Forecast capital expenditure Forecast operating expenditure | E31: No
B32: Environmental Protection Act 1994 (Qld) and subordinate legislation | C32: This Act sets out the obligations for the management of impacts to the environment to avoid harm that apply when constructing, operating and maintaining network infrastructure or related operations. The Act is supported by subordinate legislation which prescribes processes for environmental authorities and environment protection policies for specific environmental aspects. | D32: Forecast capital expenditure Forecast operating expenditure | E32: No
B33: Fair Work Act 2009 (Cth) and associated regulation | C33: This Act provides a framework for cooperative workplace relations and establishes minimum terms and conditions of employment and rights and obligations for employers and employees. | D33: Forecast capital expenditure Forecast operating expenditure | E33: No
B34: Fisheries Act 1994 (Qld) and associated regulation | C34: This Act provides a framework to ensure fisheries resources are used in an ecologically sustainble way. Development of Powerlink's network in fish habitat areas or impacting marine plants is subject to requirements and approval. | D34: Forecast capital expenditure Forecast operating expenditure | E34: No
B35: Forestry Act 1959 (Qld) | C35: This Act regulates Timber Reserves and State Forests to preserve them for timber production. Powerlink must obtain a permit to occupy these areas and approval to interfere with forest products as part of construction, operation and maintainenance of the network infrastructure. | D35: Forecast capital expenditure Forecast operating expenditure | E35: No
B36: Great Barrier Reef Marine Park Act 1975 (Cth) | C36: This Act regulates activities in the marine park in the Great Barrier Reef region and applies to Powerlink activities related to the construction of transmission network infrastructure in marine park zones. | D36: Forecast capital expenditure Forecast operating expenditure | E36: No
B37: Heavy Vehicle National Law Act 2012 (Qld) and associated regulations | C37: This Law is a national scheme for regulating the use of heavy vehicles on roads to ensure public safety, impact minimisation, promote productivity and safe business practices, including chain of resonsiblity obligations that applies to parties with a level of control or influence of heavy vehicles and associted processes. | D37: Forecast capital expenditure Forecast operating expenditure | E37: No
B38: Human Rights Act 2019 (Qld) | C38: This Act establishes a framework for the protection of human rights in public sector decision making which requires all Powerlink decisions give appropriate consideration to potentially impacted human rights. | D38: Forecast capital expenditure Forecast operating expenditure | E38: No
B39: Income Tax Assessment Act 1997 | C39: This Act establishes obligations for corporations to pay income tax as assessed. | D39: Maximum Allowed Revenue | E39: No
B40: Land Act 1994 (Qld) | C40: This Act sets out a range of legal obligations and processes related to the registration and administration of easements. | D40: Forecast capital expenditure Forecast operating expenditure | E40: No
B41: Land Regulation 2020 (Qld) | C41: This Regulation sets out the obligations under the Land Act relating to the issuing and managing of Trustee issued leases and permits to third parties. | D41: Forecast capital expenditure Forecast operating expenditure | E41: No
B42: Land Title Act 1994 (Qld) | C42: This Act relates to the registration and administration of easements and are broadly similar to its obligations under the Land Act 1994. | D42: Forecast capital expenditure Forecast operating expenditure | E42: No
B43: Marine Parks Act 2004 (Qld) | C43: This Act provides a regulatory framework for multi-use management to allow certain activties to occur in marine parks and applies to Powerlink activities related to the construction and maintenance of the transmission network infrastructure in marine parks. | D43: Forecast capital expenditure Forecast operating expenditure | E43: No
B44: Modern Slavery Act 2018 (Cth) | C44: This Act requires entities based, or operating, in Australia, which have an annual consolidated revenue of more than $100 million, to report annually on the risks of modern slavery in their operations and supply chains, and actions to address those risks. | D44: Forecast capital expenditure Forecast operating expenditure | E44: No
B45: National Greenhouse and Energy Reporting Act 2007 (Cth) and associated regulation | C45: This Act establishes a single national reporting framework for the reporting and dissemination of information related to greenhouse gas emissions, projects, energy consumption and energy production of businesses. | D45: Forecast operating expenditure | E45: No
B46: Nature Conservation Act 1992 (Qld) and subordinate legislation | C46: This Act and related subordinate legislation sets out the protected area, protected plants and protected animals framework under which Powerlink may obtain permission to construct, operate and maintain network infrastructure within protected areas and the requirements for taking a protected plant and impacts to protected animals. | D46: Forecast capital expenditure Forecast operating expenditure | E46: No
B47: Ozone Protection and Synthetic Greenhouse Gas Management Act 1989 (Cth) and associated subordinate legislation | C47: This Act provides a framework to control the manufacture, import, export, use and disposal of ozone depleting substances and synthetic greenhouse gases and products containing these gases. Approval processes apply to Powerlink’s SF6 reprocessing plant processes for recovery, storage, conditioning and dispensing of SF6 gas recovered from insulated HV Gas Insulated Switchgear (GIS), bus ducts, circuit breakers and other devices or instruments containing SF6 gas. | D47: Forecast operating expenditure | E47: No
B48: Planning Act 2016 (Qld) and associated regulation | C48: This Act provides a framework for the integration of planning, environment and development assessment requirements at the local, regional and State levels. The Act provides for the Infrastructure Designation process for the development of Powerlink's network infrastructure. | D48: Forecast capital expenditure | E48: No
B49: Radiocommunications Act 1992 (Cth) and associated regulations | C49: This Act provides for the regulation of the radiofrequency spectrum. It provides a system of licensing for commercial use of spectrum (including microwaves in communication systems). | D49: Forecast operating expenditure | E49: No
B50: Security of Critical Infrastructure Act 2018 (Cth) and the Security of Critical Infrastructure Rules 2018 (Cth) | C50: This Act establishes a regime to manage national security risks from foreign involvement in Australia’s critical infrastructure. The related rules prescribe critical infrastructure assets which includes Powerlink's transmission infrastructure network and provides further information requirements for reporting. | D50: Forecast capital expenditure Forecast operating expenditure | E50: No
B51: Vegetation Management Act 1999 (Qld) and associated regulation | C51: This Act sets out requirements for the clearing, conservation and management of native vegetation related to Powerlink constructing, operating and maintaining its transmission network infrastructure. | D51: Forecast capital expenditure Forecast operating expenditure | E51: No
B52: Waste Reduction and Recycling Act 2011 (Qld) and associated regulation | C52: This Act provides a framework for waste management and applies to Powerlink potential waste types that may be generated at a Powerlink facility or operation, or a result of construction of transmission network infrastructure. | D52: Forecast capital expenditure Forecast operating expenditure | E52: No
B53: Water Act 2000 (Qld) and associated regulation | C53: This Act provides a framework for managing water use and activities that may impact on water resources that apply to Powerlink activities related to the construction of transmission network infrastructure. | D53: Forecast capital expenditure Forecast operating expenditure | E53: No
B54: Wet Tropics World Heritage Protection and Management Act 1993 (Qld) and associated subordinate legislation | C54: This Act regulates activities in the wet tropics area and applies to Powerlink as part of construction and maintenance of the network infrastructure in the wet tropics area. | D54: Forecast capital expenditure Forecast operating expenditure | E54: No
B55: Work Health and Safety Regulation 2011 (Qld) | C55: The Regulation sets out the legal requirements to eliminate, minimise or control workplace risks. | D55: Forecast capital expenditure Forecast operating expenditure | E55: No
B56: Work Health and Safety Act 2011(Qld) | C56: This Act sets out the requirements for Powerlink to maintain appropriate health and safety standards to ensure the safety of its employees and other persons. | D56: Forecast capital expenditure Forecast operating expenditure | E56: No
B227: Licences
B228: Electricity Act 1994 (Qld) | C228: Powerlink's Transmission Authority sets out the licence obligations and reliability standard to which Powerlink must comply. | D228: Forecast capital expenditure Forecast operating expenditure | E228: No
B232: Rules
B233: National Electricity Rules | C233: The Rules contain provisions that impose specific obligations on the different entities that operate within the electricity industry. TNSPs, such as Powerlink, have a number of obligations under the Rules which apply to different parts of their operations, including registration as a NSP, technical standards of operation, network connections, economic regulation and metering. | D233: Revenue Proposal | E233: No
B237: Orders
B238: Nil
B241: Codes
B242: Accepted Development Vegetation Clearing Code Clearing for Infrastructure (Qld) | C242: This Code regulates the clearing of certain categories of remnant vegetation and allows certain infrastrucuture development, including transmission infrastructure, to occur without assessment provided it meets the requirements of the Code. | D242: Forecast capital expenditure Forecast operating expenditure | E242: No
B243: Code of Practice - Maintenance of Electricity Corridors in Queensland's Parks and Forest (Qld) | C243: This Code sets out the processes and requirements for maintaining transmission infrasturcutre in Parks and Forests and in the Wet Tropics of Queensland World Heritage Area. | D243: Forecast capital expenditure Forecast operating expenditure | E243: No
B244: Code of Practice 2011 How to Manage and Control Asbestos in the Workplace (Qld) | C244: This Code sets out practices to control the risks of asbestos-containing materials in workplaces. | D244: Forecast capital expenditure Forecast operating expenditure | E244: No
B245: Code of Practice 2011 How to Safely Remove Asbestos (Qld) | C245: This Code sets out practices for the safe removal of asbestos and asbestos-containing material from buildings and structures, plant and equipment and vehicles. | D245: Forecast capital expenditure Forecast operating expenditure | E245: No
B246: Construction and Operation of Solar Farms Code of Practice 2019 (Qld) | C246: This Code sets out how duty holders can comply with work health and safety and electrical safety duties during the design, construction, commissioning, operation, maintenance and end of life management of solar farms. This includes installers of electrical equipment or an electrical installation which can include Powerlink. | D246: Forecast capital expenditure Forecast operating expenditure | E246: No
B247: Electrical Code of Practice 2013 Managing Electrical Risks in the Workplace (Qld) | C247: This Code sets out practices to manage electrical risk when working near exposed live parts. | D247: Forecast capital expenditure Forecast operating expenditure | E247: No
B248: Electrical Code of Practice 2020 - Working Near Overhead and Underground Electric Lines (Qld) | C248: This Code sets out compliance requirements to ensure that no person, plant or thing comes within an unsafe distance (exclusion zone) of an overhead electric line. | D248: Forecast capital expenditure Forecast operating expenditure | E248: No
B249: Electrical Safety Code of Practice 2020 - Works (Qld) | C249: This Code sets out how to manage risks associated with associated with earthing systems, underground cable systems, and supporting structures for overhead lines forming parts of the works of an electricity entity. | D249: Forecast capital expenditure Forecast operating expenditure | E249: No
B250: How to Manage Work Health and Safety Risks Code of Practice 2011 (Qld) | C250: This Code applies to all types of work and all workplaces covered by the WHS Act. | D250: Forecast capital expenditure Forecast operating expenditure | E250: No
B251: Queensland Electricity Supply Industry Code of Practice for Maintenance of Electricity Corridors (Qld) | C251: This Code sets out the processes and requirements for maintaining Powerlink's transmission infrastructure in protected areas. | D251: Forecast capital expenditure Forecast operating expenditure | E251: No
B252: State Government Supported Infrastructure Koala Conservation Policy (Qld) | C252: This policy establishes critiera to reduce adverse impacts on koalas and koala habitat and applies to the planning and delivery of all Queensland Government supported infrastructure projects within the South East Queensland Koala Protection Area (SEQKPA) that are not otherwise regulated or where no development approval is required. | D252: Forecast capital expenditure Forecast operating expenditure | E252: No
B253: Work Health and Safety Consultation, Co-operation and Co-ordination Code of Practice 2011 (Qld) | C253: This Code sets out how to effectively consult with workers, includes mechanisms to facilitate worker participation and representation and consultation, co-opereration and co-ordination of activities of share duty holders. | D253: Forecast capital expenditure Forecast operating expenditure | E253: No
B257: Guidelines
B258: AER's Better Regulation Guidelines and Schemes | C258: Guidelines relate to confidentiality, expenditure forecast assessment, cost allocation, capital expenditure incentives, rate of return and consumer engagement. Schemes include STPIS and EBSS. | D258: Revenue Proposal | E258: No
B259: Corporate Goverannce Guidelines for Government Owned Corporations | C259: This guideline sets the Government Owned Corporation Shareholder expectations for governance and reporting arrangements. | D259: Revenue Proposal | E259: No
B296: Default agreements
B297: Nil
B301: Other
B302: Nil

Sheet 7.4 Shared Assets
B1: =(LOOKUP(dms_Model,dms_Model_List,dms_Worksheet_List)) -> REGULATORY REPORTING STATEMENT
B2: =INDEX(dms_TradingNameFull_List,MATCH(dms_TradingName,dms_TradingName_List)) -> Queensland Electricity Transmission Corporation Limited trading as Powerlink Queensland
B3: =IF(SUM(dms_SingleYear_Model)>0,CRY,CONCATENATE(FRCP_y1," to ",dms_MultiYear_FinalYear_Result)) -> 2022-23 to 2026-27
B4: 7.4 SHARED ASSETS
B6: 7.4.1 - TOTAL UNREGULATED REVENUE EARNED WITH SHARED ASSETS
B7: Name of shared asset unregulated service | C7: Description of shared assets used to provide the service | D7: Shared asset unregulated revenue ($0's, nominal) | L7: =CONCATENATE("Shared asset unregulated revenue ($0's, real ", dms_DollarReal,")") -> Shared asset unregulated revenue ($0's, real June 2022)
D8: =PRCP_y1 -> 2012-13 | E8: =PRCP_y2 -> 2013-14 | F8: =PRCP_y3 -> 2014-15 | G8: =PRCP_y4 -> 2015-16 | H8: =PRCP_y5 -> 2016-17 | I8: =CRCP_y1 -> 2017-18 | J8: =CRCP_y2 -> 2018-19 | K8: =CRCP_y3 -> 2019-20 | L8: =dms_y1 -> 2020-21 | M8: =dms_y2 -> 2021-22 | N8: =dms_y3 -> 2022-23 | O8: =dms_y4 -> 2023-24 | P8: =dms_y5 -> 2024-25 | Q8: =dms_y6 -> 2025-26 | R8: =dms_y7 -> 2026-27 | S8: =CONCATENATE("Total ",FRCP_y1, " to ", dms_MultiYear_FinalYear_Result) -> Total 2022-23 to 2026-27
B9: Oil Testing & Laboratory Services | C9: Oil lab, tools and equipment. | D9: 347400.6 | E9: 260391.96 | F9: 423787.22 | G9: 387205.34 | H9: 254153.07 | I9: 15935.66 | J9: 120048.03 | K9: 247447.78 | L9: 258193.0722 | M9: 256271.8283 | N9: 257854.4199 | O9: 257857.6753 | P9: 257860.9306 | Q9: 257864.186 | R9: 257867.4414 | S9: =SUM(N9:R9) -> 1289304.653
B10: Property Rentals | C10: Relevant properties and land. | D10: 1466338.19 | E10: 206046.77 | F10: 326439.92 | G10: 233787.98 | H10: 162956.61 | I10: 525693.96 | J10: 565497.53 | K10: 320015.18 | L10: 624725.9824 | M10: 613042.4129 | N10: 635618.1296 | O10: 426298.9407 | P10: 430497.1226 | Q10: 652006.1026 | R10: 651240.7528 | S10: 2795661.048
B11: Tower Access | C11: Transmission and telecommunications towers. | D11: 2826870.66 | E11: 3056775.34 | F11: 2724748.26 | G11: 2677737.74 | H11: 2688241.7 | I11: 2331677.8 | J11: 2417718.68 | K11: 2208640.61 | L11: 2179273.31 | M11: 2163057.091 | N11: 2176414.923 | O11: 2176442.399 | P11: 2176469.876 | Q11: 2176497.353 | R11: 2176497.353 | S11: 10882321.9
S12: 0
S13: 0
S14: 0
S15: 0
S16: 0
S17: 0
S18: 0
S19: 0
S20: 0
S21: 0
S22: 0
S23: 0
B25: 7.4.2 - SHARED ASSET UNREGULATED SERVICES - APPORTIONMENT METHODOLOGY
B26: Name of shared asset unregulated service for which revenues were apportioned | C26: Apportionment methodology

Sheet 7.9 STPIS
B1: =(LOOKUP(dms_Model,dms_Model_List,dms_Worksheet_List)) -> REGULATORY REPORTING STATEMENT
B2: =INDEX(dms_TradingNameFull_List,MATCH(dms_TradingName,dms_TradingName_List)) -> Queensland Electricity Transmission Corporation Limited trading as Powerlink Queensland
B3: =IF(SUM(dms_SingleYear_Model)>0,CRY,CONCATENATE(FRCP_y1," to ",dms_MultiYear_FinalYear_Result)) -> 2022-23 to 2026-27
B4: 7.9 SERVICE TARGET PERFORMANCE INCENTIVE SCHEME (STPIS)
B6: There are FOUR tables on this worksheet. Each table has been grouped (and sub-grouped) for ease of navigation. See the Instructions sheet on how to group or ungroup tables.
B8: 7.9.1 - Historical performance and proposed floor, caps and targets for the service component of the STPIS
B9: Parameter | C9: Performance actuals | I9: Average of actual performance | J9: Floor | K9: Target | L9: Cap | M9: Weighting (% of MAR)
C10: =(LEFT(PRCP_y3,2)&RIGHT(PRCP_y3,2)) -> 2015 | D10: =LEFT(PRCP_y4,2)&RIGHT(PRCP_y4,2) -> 2016 | E10: =LEFT(PRCP_y5,2)&RIGHT(PRCP_y5,2) -> 2017 | F10: =(LEFT(CRCP_y1,2)&RIGHT(CRCP_y1,2)) -> 2018 | G10: =(LEFT(CRCP_y2,2)&RIGHT(CRCP_y2,2)) -> 2019 | H10: =(LEFT(CRCP_y3,2)&RIGHT(CRCP_y3,2)) -> 2020
B11: Unplanned outage circuit event rate:
B12: Transmission line outage - fault | C12: 18.51851852 | D12: 16.21621622 | E12: 18.6440678 | F12: 24.57912458 | G12: 16.66666667 | I12: =+AVERAGE(C12:H12) -> 18.92491876 | J12: 23.85 | K12: =I12 -> 18.92491876 | L12: 14.85 | M12: 0.002
B13: Transformer outage – fault | C13: 17.91907514 | D13: 13.37209302 | E13: 21.05263158 | F13: 24.56140351 | G13: 13.4502924 | I13: =+AVERAGE(C13:H13) -> 18.07109913 | J13: 25.09 | K13: =I13 -> 18.07109913 | L13: 10.44 | M13: 0.002
B14: Reactive plant – fault | C14: 22.30215827 | D14: 25.73529412 | E14: 27.94117647 | F14: 27.40740741 | G14: 24.62686567 | I14: 25.60258039 | J14: 29.16 | K14: 25.60258039 | L14: 22.34 | M14: 0.001
B15: Transmission line outage – forced outage | C15: 17.17171717 | D15: 13.85135135 | E15: 20.6779661 | F15: 13.8047138 | G15: 18.66666667 | I15: 16.83448302 | J15: 21 | K15: 16.83448302 | L15: 11.85 | M15: 0.001
B16: Transformer outage – forced outage | C16: 15.02890173 | D16: 14.53488372 | E16: 18.71345029 | F16: 10.52631579 | G16: 11.69590643 | I16: 14.09989159 | J16: 19.07 | K16: 14.09989159 | L16: 9.78 | M16: 0.001
B17: Reactive plant – forced outage | C17: 20.14388489 | D17: 21.32352941 | E17: 22.79411765 | F17: 20 | G17: 21.64179104 | I17: 21.1806646 | J17: 22.8 | K17: =I17 -> 21.1806646 | L17: 18.92 | M17: 0.0005
B18: Loss of supply event frequency (number of events):
B19: > (x) system minutes | C19: 2 | D19: 1 | E19: 6 | F19: 2 | G19: 0 | I19: 2.2 | J19: 7 | K19: =I19 -> 2.2 | L19: 0 | M19: 0.0015
B20: > (y) system minutes | C20: 1 | D20: 0 | E20: 0 | F20: 1 | G20: 0 | I20: 0.4 | J20: 2 | K20: 1 | L20: 0 | M20: 0.0015
B21: Average outage duration (minutes): | C21: 236.2286666 | D21: 30.06 | E21: 27.451875 | F21: 36.23818182 | G21: 15 | I21: 68.99574468 | J21: 147.1709 | K21: =I21 -> 68.99574468 | L21: 7.9066 | M21: 0.002
B22: Proper operation of equipment (number of events):
B23: Failure of protection system | C23: 25 | D23: 20 | E23: 37 | F23: 38 | G23: 15 | I23: 27 | J23: N/A | K23: N/A | L23: N/A | M23: 0
B24: Material failure of SCADA | C24: 1 | D24: 2 | E24: 1 | F24: 2 | G24: 0 | I24: 1.2 | J24: N/A | K24: N/A | L24: N/A | M24: 0
B25: Incorrect operational isolation of primary or secondary equipment | C25: 8 | D25: 4 | E25: 3 | F25: 2 | G25: 5 | I25: 4.4 | J25: N/A | K25: N/A | L25: N/A | M25: 0
B29: 7.9.2 - Proposed priority projects for the network capability incentive parameter
B30: Project ranking | C30: Transmission Circuit / Injection Point | D30: Scope of works | E30: =CONCATENATE(("If applicable, the present value of quantified benefits associated with the project ($0's, "),CRCP_y5,")") -> If applicable, the present value of quantified benefits associated with the project ($0's, 2021-22) | F30: =CONCATENATE(("Project cost ($0's, "),CRCP_y5,")") -> Project cost ($0's, 2021-22)
F31: =FRCP_y1 -> 2022-23 | G31: =FRCP_y2 -> 2023-24 | H31: =FRCP_y3 -> 2024-25 | I31: =FRCP_y4 -> 2025-26 | J31: =FRCP_y5 -> 2026-27 | K31: Opex | L31: Capex
B32: 1 | C32: Nil
B33: 2
B34: 3
B35: 4
B36: 5
B37: 6
B38: 7
B39: 8
B40: 9
B41: 10
B42: 11
B43: 12
B44: 13
B45: 14
B46: 15
B47: 16
B52: 7.9.3 – Network limit information
B53: Limit identification | C53: Define limit | D53: Reason for the limit | E53: Is limit addressed by priority project | F53: Supporting information reference
B66: 7.9.4 - Market impact component
D68: Market impact parameter
D69: Planned outage count(DI) | F69: Unplanned outage count (DI)
B70: Year | C70: Month | D70: without exclusions | E70: with exclusions | F70: without exclusions | G70: with exclusions | H70: Market impact parameters
B71: =LEFT(PRCP_y2,4) -> 2013 | C71: January | D71: 0 | E71: 0 | F71: 2 | G71: 0 | H71: =(E71+G71)/12 -> 0
B72: 2013 | C72: February | D72: 0 | E72: 0 | F72: 19 | G72: 13 | H72: =(E72+G72)/12 -> 1.083333333
B73: 2013 | C73: March | D73: 0 | E73: 0 | F73: 14 | G73: 0 | H73: =(E73+G73)/12 -> 0
B74: 2013 | C74: April | D74: 0 | E74: 0 | F74: 0 | G74: 0 | H74: 0
B75: 2013 | C75: May | D75: 6 | E75: 0 | F75: 4 | G75: 3 | H75: 0.25
B76: 2013 | C76: June | D76: 87 | E76: 81 | F76: 0 | G76: 0 | H76: 6.75
B77: 2013 | C77: July | D77: 5 | E77: 0 | F77: 0 | G77: 0 | H77: 0
B78: 2013 | C78: August | D78: 0 | E78: 0 | F78: 0 | G78: 0 | H78: 0
B79: 2013 | C79: September | D79: 0 | E79: 0 | F79: 0 | G79: 0 | H79: 0
B80: 2013 | C80: October | D80: 1 | E80: 0 | F80: 0 | G80: 0 | H80: 0
B81: 2013 | C81: November | D81: 0 | E81: 0 | F81: 0 | G81: 0 | H81: 0
B82: 2013 | C82: December | D82: 0 | E82: 0 | F82: 0 | G82: 0 | H82: =(E82+G82)/12 -> 0
B83: =CONCATENATE("Total ",LEFT(PRCP_y2,4)) -> Total 2013 | D83: =+SUM(D71:D82) -> 99 | E83: =+SUM(E71:E82) -> 81 | F83: =+SUM(F71:F82) -> 39 | G83: =+SUM(G71:G82) -> 16 | H83: =+SUM(H71:H82) -> 8.083333333
B84: =LEFT(PRCP_y3,4) -> 2014 | C84: January | D84: 39 | E84: 0 | F84: 0 | G84: 0 | H84: =(E84+G84)/12 -> 0
B85: 2014 | C85: February | D85: 0 | E85: 0 | F85: 0 | G85: 0 | H85: =(E85+G85)/12 -> 0
B86: 2014 | C86: March | D86: 13 | E86: 0 | F86: 0 | G86: 0 | H86: =(E86+G86)/12 -> 0
B87: 2014 | C87: April | D87: 8 | E87: 0 | F87: 0 | G87: 0 | H87: 0
B88: 2014 | C88: May | D88: 149 | E88: 2 | F88: 0 | G88: 0 | H88: 0.1666666667
B89: 2014 | C89: June | D89: 25 | E89: 25 | F89: 0 | G89: 0 | H89: 2.083333333
B90: 2014 | C90: July | D90: 833 | E90: 811 | F90: 0 | G90: 0 | H90: 67.58333333
B91: 2014 | C91: August | D91: 115 | E91: 6 | F91: 0 | G91: 0 | H91: 0.5
B92: 2014 | C92: September | D92: 1850 | E92: 1192 | F92: 9 | G92: 5 | H92: 99.75
B93: 2014 | C93: October | D93: 1930 | E93: 1900 | F93: 17 | G93: 0 | H93: 158.3333333
B94: 2014 | C94: November | D94: 97 | E94: 0 | F94: 0 | G94: 0 | H94: 0
B95: 2014 | C95: December | D95: 44 | E95: 0 | F95: 0 | G95: 0 | H95: =(E95+G95)/12 -> 0
B96: =CONCATENATE("Total ", LEFT(PRCP_y3,4)) -> Total 2014 | D96: =+SUM(D84:D95) -> 5103 | E96: =+SUM(E84:E95) -> 3936 | F96: =+SUM(F84:F95) -> 26 | G96: =+SUM(G84:G95) -> 5 | H96: =+SUM(H84:H95) -> 328.4166667
B97: =LEFT(PRCP_y4,4) -> 2015 | C97: January | D97: 323 | E97: 0 | F97: 30 | G97: 1 | H97: =(E97+G97)/12 -> 0.08333333333
B98: 2015 | C98: February | D98: 15 | E98: 0 | F98: 337 | G98: 0 | H98: =(E98+G98)/12 -> 0
B99: 2015 | C99: March | D99: 6 | E99: 0 | F99: 0 | G99: 0 | H99: =(E99+G99)/12 -> 0
B100: 2015 | C100: April | D100: 361 | E100: 2 | F100: 0 | G100: 0 | H100: 0.1666666667
B101: 2015 | C101: May | D101: 68 | E101: 0 | F101: 0 | G101: 0 | H101: 0
B102: 2015 | C102: June | D102: 1 | E102: 0 | F102: 0 | G102: 0 | H102: 0
B103: 2015 | C103: July | D103: 20 | E103: 1 | F103: 0 | G103: 0 | H103: 0.08333333333
B104: 2015 | C104: August | D104: 249 | E104: 0 | F104: 0 | G104: 0 | H104: 0
B105: 2015 | C105: September | D105: 774 | E105: 0 | F105: 3 | G105: 0 | H105: 0
B106: 2015 | C106: October | D106: 268 | E106: 58 | F106: 2 | G106: 0 | H106: 4.833333333
B107: 2015 | C107: November | D107: 10 | E107: 3 | F107: 33 | G107: 0 | H107: 0.25
B108: 2015 | C108: December | D108: 6 | E108: 0 | F108: 2 | G108: 0 | H108: =(E108+G108)/12 -> 0
B109: =CONCATENATE("Total ", LEFT(PRCP_y4,4)) -> Total 2015 | D109: =+SUM(D97:D108) -> 2101 | E109: =+SUM(E97:E108) -> 64 | F109: =+SUM(F97:F108) -> 407 | G109: =+SUM(G97:G108) -> 1 | H109: =+SUM(H97:H108) -> 5.416666667
B110: =LEFT(PRCP_y5,4) -> 2016 | C110: January | D110: 0 | E110: 0 | F110: 103 | G110: 0 | H110: =(E110+G110)/12 -> 0
B111: 2016 | C111: February | D111: 0 | E111: 0 | F111: 6 | G111: 0 | H111: =(E111+G111)/12 -> 0
B112: 2016 | C112: March | D112: 47 | E112: 0 | F112: 19 | G112: 0 | H112: =(E112+G112)/12 -> 0
B113: 2016 | C113: April | D113: 0 | E113: 0 | F113: 15 | G113: 0 | H113: 0
B114: 2016 | C114: May | D114: 30 | E114: 0 | F114: 32 | G114: 0 | H114: 0
B115: 2016 | C115: June | D115: 923 | E115: 7 | F115: 1 | G115: 0 | H115: 0.5833333333
B116: 2016 | C116: July | D116: 23 | E116: 0 | F116: 0 | G116: 0 | H116: 0
B117: 2016 | C117: August | D117: 0 | E117: 0 | F117: 35 | G117: 35 | H117: 2.916666667
B118: 2016 | C118: September | D118: 0 | E118: 0 | F118: 17 | G118: 0 | H118: 0
B119: 2016 | C119: October | D119: 10 | E119: 0 | F119: 4 | G119: 0 | H119: 0
B120: 2016 | C120: November | D120: 0 | E120: 0 | F120: 56 | G120: 0 | H120: 0
B121: 2016 | C121: December | D121: 231 | E121: 0 | F121: 220 | G121: 0 | H121: =(E121+G121)/12 -> 0
B122: =CONCATENATE("Total ", LEFT(PRCP_y5,4)) -> Total 2016 | D122: =+SUM(D110:D121) -> 1264 | E122: =+SUM(E110:E121) -> 7 | F122: =+SUM(F110:F121) -> 508 | G122: =+SUM(G110:G121) -> 35 | H122: =+SUM(H110:H121) -> 3.5
B123: =LEFT(CRCP_y1,4) -> 2017 | C123: January | D123: 314 | E123: 0 | F123: 127 | G123: 0 | H123: =(E123+G123)/12 -> 0
B124: 2017 | C124: February | D124: 143 | E124: 0 | F124: 0 | G124: 0 | H124: =(E124+G124)/12 -> 0
B125: 2017 | C125: March | D125: 105 | E125: 22 | F125: 337 | G125: 5 | H125: =(E125+G125)/12 -> 2.25
B126: 2017 | C126: April | D126: 333 | E126: 0 | F126: 9 | G126: 0 | H126: 0
B127: 2017 | C127: May | D127: 120 | E127: 0 | F127: 21 | G127: 0 | H127: 0
B128: 2017 | C128: June | D128: 396 | E128: 37 | F128: 48 | G128: 0 | H128: 3.083333333
B129: 2017 | C129: July | D129: 2 | E129: 0 | F129: 0 | G129: 0 | H129: 0
B130: 2017 | C130: August | D130: 912 | E130: 0 | F130: 22 | G130: 0 | H130: 0
B131: 2017 | C131: September | D131: 2460 | E131: 0 | F131: 22 | G131: 0 | H131: 0
B132: 2017 | C132: October | D132: 4743 | E132: 3 | F132: 86 | G132: 6 | H132: 0.75
B133: 2017 | C133: November | D133: 156 | E133: 0 | F133: 24 | G133: 0 | H133: 0
B134: 2017 | C134: December | D134: 1474 | E134: 0 | F134: 615 | G134: 0 | H134: =(E134+G134)/12 -> 0
B135: =CONCATENATE("Total ", LEFT(CRCP_y1,4)) -> Total 2017 | D135: =+SUM(D123:D134) -> 11158 | E135: =+SUM(E123:E134) -> 62 | F135: =+SUM(F123:F134) -> 1311 | G135: =+SUM(G123:G134) -> 11 | H135: =+SUM(H123:H134) -> 6.083333333
B136: =LEFT(CRCP_y2,4) -> 2018 | C136: January | D136: 479 | E136: 0 | F136: 106 | G136: 17 | H136: =(E136+G136)/12 -> 1.416666667
B137: 2018 | C137: February | D137: 416 | E137: 0 | F137: 406 | G137: 0 | H137: =(E137+G137)/12 -> 0
B138: 2018 | C138: March | D138: 27 | E138: 0 | F138: 8 | G138: 0 | H138: =(E138+G138)/12 -> 0
B139: 2018 | C139: April | D139: 45 | E139: 0 | F139: 0 | G139: 0 | H139: 0
B140: 2018 | C140: May | D140: 1860 | E140: 0 | F140: 24 | G140: 10 | H140: 0.8333333333
B141: 2018 | C141: June | D141: 18331 | E141: 45 | F141: 4 | G141: 0 | H141: 3.75
B142: 2018 | C142: July | D142: 14157 | E142: 2 | F142: 37 | G142: 1 | H142: 0.25
B143: 2018 | C143: August | D143: 11306 | E143: 12 | F143: 290 | G143: 239 | H143: 20.91666667
B144: 2018 | C144: September | D144: 8758 | E144: 42 | F144: 0 | G144: 0 | H144: 3.5
B145: 2018 | C145: October | D145: 17243 | E145: 0 | F145: 276 | G145: 19 | H145: 1.583333333
B146: 2018 | C146: November | D146: 17689 | E146: 2 | F146: 37 | G146: 0 | H146: 0.1666666667
B147: 2018 | C147: December | D147: 15101 | E147: 57 | F147: 3 | G147: 0 | H147: =(E147+G147)/12 -> 4.75
B148: =CONCATENATE("Total ", LEFT(CRCP_y2,4)) -> Total 2018 | D148: =+SUM(D136:D147) -> 105412 | E148: =+SUM(E136:E147) -> 160 | F148: =+SUM(F136:F147) -> 1191 | G148: =+SUM(G136:G147) -> 286 | H148: =+SUM(H136:H147) -> 37.16666667
B149: =LEFT(CRCP_y3,4) -> 2019 | C149: January | D149: 9345 | E149: 0 | F149: 215 | G149: 44 | H149: =(E149+G149)/12 -> 3.666666667
B150: 2019 | C150: February | D150: 8892 | E150: 0 | F150: 102 | G150: 0 | H150: =(E150+G150)/12 -> 0
B151: 2019 | C151: March | D151: 3484 | E151: 6 | F151: 17 | G151: 0 | H151: =(E151+G151)/12 -> 0.5
B152: 2019 | C152: April | D152: 2923 | E152: 430 | F152: 17 | G152: 0 | H152: 35.83333333
B153: 2019 | C153: May | D153: 4508 | E153: 416 | F153: 0 | G153: 0 | H153: 34.66666667
B154: 2019 | C154: June | D154: 5888 | E154: 1548 | F154: 90 | G154: 34 | H154: 131.8333333
B155: 2019 | C155: July | D155: 7331 | E155: 2963 | F155: 504 | G155: 337 | H155: 275
B156: 2019 | C156: August | D156: 5733 | E156: 41 | F156: 54 | G156: 21 | H156: 5.166666667
B157: 2019 | C157: September | D157: 4713 | E157: 2513 | F157: 57 | G157: 0 | H157: 209.4166667
B158: 2019 | C158: October | D158: 5972 | E158: 4288 | F158: 114 | G158: 20 | H158: 359
B159: 2019 | C159: November | D159: 2118 | E159: 103 | F159: 1676 | G159: 0 | H159: 8.583333333
B160: 2019 | C160: December | D160: 1335 | E160: 787 | F160: 391 | G160: 382 | H160: =(E160+G160)/12 -> 97.41666667
B161: =CONCATENATE("Total ", LEFT(CRCP_y3,4)) -> Total 2019 | D161: =+SUM(D149:D160) -> 62242 | E161: =+SUM(E149:E160) -> 13095 | F161: =+SUM(F149:F160) -> 3237 | G161: =+SUM(G149:G160) -> 838 | H161: =+SUM(H149:H160) -> 1161.083333
B162: =LEFT(CRCP_y4,4) -> 2020 | C162: January | H162: =(E162+G162)/12 -> 0
B163: 2020 | C163: February | H163: =(E163+G163)/12 -> 0
B164: 2020 | C164: March | H164: =(E164+G164)/12 -> 0
B165: 2020 | C165: April | H165: 0
B166: 2020 | C166: May | H166: 0
B167: 2020 | C167: June | H167: 0
B168: 2020 | C168: July | H168: 0
B169: 2020 | C169: August | H169: 0
B170: 2020 | C170: September | H170: 0
B171: 2020 | C171: October | H171: 0
B172: 2020 | C172: November | H172: 0
B173: 2020 | C173: December | H173: =(E173+G173)/12 -> 0
B174: =CONCATENATE("Total ", LEFT(CRCP_y4,4)) -> Total 2020 | D174: =+SUM(D162:D173) -> 0 | E174: =+SUM(E162:E173) -> 0 | F174: =+SUM(F162:F173) -> 0 | G174: =+SUM(G162:G173) -> 0 | H174: =+SUM(H162:H173) -> 0

Sheet 7.9 STPIS (Alternative)
B1: =(LOOKUP(dms_Model,dms_Model_List,dms_Worksheet_List)) -> REGULATORY REPORTING STATEMENT
B2: =INDEX(dms_TradingNameFull_List,MATCH(dms_TradingName,dms_TradingName_List)) -> Queensland Electricity Transmission Corporation Limited trading as Powerlink Queensland
B3: =IF(SUM(dms_SingleYear_Model)>0,CRY,CONCATENATE(FRCP_y1," to ",dms_MultiYear_FinalYear_Result)) -> 2022-23 to 2026-27
B4: 7.9 SERVICE TARGET PERFORMANCE INCENTIVE SCHEME (STPIS)
B6: There are FOUR tables on this worksheet. Each table has been grouped (and sub-grouped) for ease of navigation. See the Instructions sheet on how to group or ungroup tables.
B8: 7.9.1 - Historical performance and proposed floor, caps and targets for the service component of the STPIS
B9: Parameter | C9: Performance actuals | I9: Average of actual performance | J9: Floor | K9: Target | L9: Cap | M9: Weighting (% of MAR)
C10: =(LEFT(PRCP_y3,2)&RIGHT(PRCP_y3,2)) -> 2015 | D10: =LEFT(PRCP_y4,2)&RIGHT(PRCP_y4,2) -> 2016 | E10: =LEFT(PRCP_y5,2)&RIGHT(PRCP_y5,2) -> 2017 | F10: =(LEFT(CRCP_y1,2)&RIGHT(CRCP_y1,2)) -> 2018 | G10: =(LEFT(CRCP_y2,2)&RIGHT(CRCP_y2,2)) -> 2019 | H10: =(LEFT(CRCP_y3,2)&RIGHT(CRCP_y3,2)) -> 2020
B11: Unplanned outage circuit event rate:
B12: Transmission line outage - fault | D12: 16.21621622 | E12: 18.6440678 | F12: 24.57912458 | G12: 16.66666667 | H12: 9.060402685 | I12: =+AVERAGE(C12:H12) -> 17.03329559 | J12: 24.9892 | K12: =I12 -> 17.03329559 | L12: 8.7896 | M12: 0.002
B13: Transformer outage – fault | D13: 13.37209302 | E13: 21.05263158 | F13: 24.56140351 | G13: 13.4502924 | H13: 11.62790698 | I13: =+AVERAGE(C13:H13) -> 16.8128655 | J13: 23.9395 | K13: =I13 -> 16.8128655 | L13: 5.4921 | M13: 0.002
B14: Reactive plant – fault | D14: 25.73529412 | E14: 27.94117647 | F14: 27.40740741 | G14: 24.62686567 | H14: 22.55639098 | I14: 25.65342693 | J14: 29.0447 | K14: 25.65342693 | L14: 22.5248 | M14: 0.001
B15: Transmission line outage – forced outage | D15: 13.85135135 | E15: 20.6779661 | F15: 13.8047138 | G15: 18.66666667 | H15: 18.12080537 | I15: 17.02430066 | J15: 21.1274 | K15: 17.02430066 | L15: 12.1454 | M15: 0.001
B16: Transformer outage – forced outage | D16: 14.53488372 | E16: 18.71345029 | F16: 10.52631579 | G16: 11.69590643 | H16: 18.60465116 | I16: 14.81504148 | J16: 22.3448 | K16: 14.81504148 | L16: 9.3686 | M16: 0.001
B17: Reactive plant – forced outage | D17: 21.32352941 | E17: 22.79411765 | F17: 20 | G17: 21.64179104 | H17: 20.30075188 | I17: 21.212038 | J17: 22.7942 | K17: =I17 -> 21.212038 | L17: 18.9972 | M17: 0.0005
B18: Loss of supply event frequency (number of events):
B19: > (x) system minutes | D19: 1 | E19: 6 | F19: 2 | G19: 0 | H19: 0 | I19: 1.8 | J19: 6 | K19: =I19 -> 1.8 | L19: 0 | M19: 0.0015
B20: > (y) system minutes | D20: 0 | E20: 0 | F20: 1 | G20: 0 | H20: 0 | I20: 0.2 | J20: 2 | K20: 1 | L20: 0 | M20: 0.0015
B21: Average outage duration (minutes): | D21: 30.06 | E21: 27.451875 | F21: 36.23818182 | G21: 15 | H21: 57.4075 | I21: 33.23151136 | J21: 58.9992 | K21: =I21 -> 33.23151136 | L21: 14.0551 | M21: 0.002
B22: Proper operation of equipment (number of events):
B23: Failure of protection system | D23: 20 | E23: 37 | F23: 38 | G23: 15 | H23: 21 | I23: 26.2 | J23: N/A | K23: N/A | L23: N/A | M23: 0
B24: Material failure of SCADA | D24: 2 | E24: 1 | F24: 2 | G24: 0 | H24: 0 | I24: 1 | J24: N/A | K24: N/A | L24: N/A | M24: 0
B25: Incorrect operational isolation of primary or secondary equipment | D25: 4 | E25: 3 | F25: 2 | G25: 5 | H25: 9 | I25: 4.6 | J25: N/A | K25: N/A | L25: N/A | M25: 0
B29: 7.9.2 - Proposed priority projects for the network capability incentive parameter
B30: Project ranking | C30: Transmission Circuit / Injection Point | D30: Scope of works | E30: =CONCATENATE(("If applicable, the present value of quantified benefits associated with the project ($0's, "),CRCP_y5,")") -> If applicable, the present value of quantified benefits associated with the project ($0's, 2021-22) | F30: =CONCATENATE(("Project cost ($0's, "),CRCP_y5,")") -> Project cost ($0's, 2021-22)
F31: =FRCP_y1 -> 2022-23 | G31: =FRCP_y2 -> 2023-24 | H31: =FRCP_y3 -> 2024-25 | I31: =FRCP_y4 -> 2025-26 | J31: =FRCP_y5 -> 2026-27 | K31: Opex | L31: Capex
B32: 1 | D32: Nil
B33: 2
B34: 3
B35: 4
B36: 5
B37: 6
B38: 7
B39: 8
B40: 9
B41: 10
B42: 11
B43: 12
B44: 13
B45: 14
B46: 15
B47: 16
B52: 7.9.3 – Network limit information
B53: Limit identification | C53: Define limit | D53: Reason for the limit | E53: Is limit addressed by priority project | F53: Supporting information reference
B66: 7.9.4 - Market impact component
D68: Market impact parameter
D69: Planned outage count(DI) | F69: Unplanned outage count (DI)
B70: Year | C70: Month | D70: without exclusions | E70: with exclusions | F70: without exclusions | G70: with exclusions | H70: Market impact parameters
B71: =LEFT(PRCP_y2,4) -> 2013 | C71: January | H71: =(E71+G71)/12 -> 0
B72: 2013 | C72: February | H72: =(E72+G72)/12 -> 0
B73: 2013 | C73: March | H73: =(E73+G73)/12 -> 0
B74: 2013 | C74: April | H74: 0
B75: 2013 | C75: May | H75: 0
B76: 2013 | C76: June | H76: 0
B77: 2013 | C77: July | H77: 0
B78: 2013 | C78: August | H78: 0
B79: 2013 | C79: September | H79: 0
B80: 2013 | C80: October | H80: 0
B81: 2013 | C81: November | H81: 0
B82: 2013 | C82: December | H82: =(E82+G82)/12 -> 0
B83: =CONCATENATE("Total ",LEFT(PRCP_y2,4)) -> Total 2013 | D83: =+SUM(D71:D82) -> 0 | E83: =+SUM(E71:E82) -> 0 | F83: =+SUM(F71:F82) -> 0 | G83: =+SUM(G71:G82) -> 0 | H83: =+SUM(H71:H82) -> 0
B84: =LEFT(PRCP_y3,4) -> 2014 | C84: January | D84: 39 | E84: 0 | F84: 0 | G84: 0 | H84: =(E84+G84)/12 -> 0
B85: 2014 | C85: February | D85: 0 | E85: 0 | F85: 0 | G85: 0 | H85: =(E85+G85)/12 -> 0
B86: 2014 | C86: March | D86: 13 | E86: 0 | F86: 0 | G86: 0 | H86: =(E86+G86)/12 -> 0
B87: 2014 | C87: April | D87: 8 | E87: 0 | F87: 0 | G87: 0 | H87: 0
B88: 2014 | C88: May | D88: 149 | E88: 2 | F88: 0 | G88: 0 | H88: 0.1666666667
B89: 2014 | C89: June | D89: 25 | E89: 25 | F89: 0 | G89: 0 | H89: 2.083333333
B90: 2014 | C90: July | D90: 833 | E90: 811 | F90: 0 | G90: 0 | H90: 67.58333333
B91: 2014 | C91: August | D91: 115 | E91: 6 | F91: 0 | G91: 0 | H91: 0.5
B92: 2014 | C92: September | D92: 1850 | E92: 1192 | F92: 9 | G92: 5 | H92: 99.75
B93: 2014 | C93: October | D93: 1930 | E93: 1900 | F93: 17 | G93: 0 | H93: 158.3333333
B94: 2014 | C94: November | D94: 97 | E94: 0 | F94: 0 | G94: 0 | H94: 0
B95: 2014 | C95: December | D95: 44 | E95: 0 | F95: 0 | G95: 0 | H95: =(E95+G95)/12 -> 0
B96: =CONCATENATE("Total ", LEFT(PRCP_y3,4)) -> Total 2014 | D96: =+SUM(D84:D95) -> 5103 | E96: =+SUM(E84:E95) -> 3936 | F96: =+SUM(F84:F95) -> 26 | G96: =+SUM(G84:G95) -> 5 | H96: =+SUM(H84:H95) -> 328.4166667
B97: =LEFT(PRCP_y4,4) -> 2015 | C97: January | D97: 323 | E97: 0 | F97: 30 | G97: 1 | H97: =(E97+G97)/12 -> 0.08333333333
B98: 2015 | C98: February | D98: 15 | E98: 0 | F98: 337 | G98: 0 | H98: =(E98+G98)/12 -> 0
B99: 2015 | C99: March | D99: 6 | E99: 0 | F99: 0 | G99: 0 | H99: =(E99+G99)/12 -> 0
B100: 2015 | C100: April | D100: 361 | E100: 2 | F100: 0 | G100: 0 | H100: 0.1666666667
B101: 2015 | C101: May | D101: 68 | E101: 0 | F101: 0 | G101: 0 | H101: 0
B102: 2015 | C102: June | D102: 1 | E102: 0 | F102: 0 | G102: 0 | H102: 0
B103: 2015 | C103: July | D103: 20 | E103: 1 | F103: 0 | G103: 0 | H103: 0.08333333333
B104: 2015 | C104: August | D104: 249 | E104: 0 | F104: 0 | G104: 0 | H104: 0
B105: 2015 | C105: September | D105: 774 | E105: 0 | F105: 3 | G105: 0 | H105: 0
B106: 2015 | C106: October | D106: 268 | E106: 58 | F106: 2 | G106: 0 | H106: 4.833333333
B107: 2015 | C107: November | D107: 10 | E107: 3 | F107: 33 | G107: 0 | H107: 0.25
B108: 2015 | C108: December | D108: 6 | E108: 0 | F108: 2 | G108: 0 | H108: =(E108+G108)/12 -> 0
B109: =CONCATENATE("Total ", LEFT(PRCP_y4,4)) -> Total 2015 | D109: =+SUM(D97:D108) -> 2101 | E109: =+SUM(E97:E108) -> 64 | F109: =+SUM(F97:F108) -> 407 | G109: =+SUM(G97:G108) -> 1 | H109: =+SUM(H97:H108) -> 5.416666667
B110: =LEFT(PRCP_y5,4) -> 2016 | C110: January | D110: 0 | E110: 0 | F110: 103 | G110: 0 | H110: =(E110+G110)/12 -> 0
B111: 2016 | C111: February | D111: 0 | E111: 0 | F111: 6 | G111: 0 | H111: =(E111+G111)/12 -> 0
B112: 2016 | C112: March | D112: 47 | E112: 0 | F112: 19 | G112: 0 | H112: =(E112+G112)/12 -> 0
B113: 2016 | C113: April | D113: 0 | E113: 0 | F113: 15 | G113: 0 | H113: 0
B114: 2016 | C114: May | D114: 30 | E114: 0 | F114: 32 | G114: 0 | H114: 0
B115: 2016 | C115: June | D115: 923 | E115: 7 | F115: 1 | G115: 0 | H115: 0.5833333333
B116: 2016 | C116: July | D116: 23 | E116: 0 | F116: 0 | G116: 0 | H116: 0
B117: 2016 | C117: August | D117: 0 | E117: 0 | F117: 35 | G117: 35 | H117: 2.916666667
B118: 2016 | C118: September | D118: 0 | E118: 0 | F118: 17 | G118: 0 | H118: 0
B119: 2016 | C119: October | D119: 10 | E119: 0 | F119: 4 | G119: 0 | H119: 0
B120: 2016 | C120: November | D120: 0 | E120: 0 | F120: 56 | G120: 0 | H120: 0
B121: 2016 | C121: December | D121: 231 | E121: 0 | F121: 220 | G121: 0 | H121: =(E121+G121)/12 -> 0
B122: =CONCATENATE("Total ", LEFT(PRCP_y5,4)) -> Total 2016 | D122: =+SUM(D110:D121) -> 1264 | E122: =+SUM(E110:E121) -> 7 | F122: =+SUM(F110:F121) -> 508 | G122: =+SUM(G110:G121) -> 35 | H122: =+SUM(H110:H121) -> 3.5
B123: =LEFT(CRCP_y1,4) -> 2017 | C123: January | D123: 314 | E123: 0 | F123: 127 | G123: 0 | H123: =(E123+G123)/12 -> 0
B124: 2017 | C124: February | D124: 143 | E124: 0 | F124: 0 | G124: 0 | H124: =(E124+G124)/12 -> 0
B125: 2017 | C125: March | D125: 105 | E125: 22 | F125: 337 | G125: 5 | H125: =(E125+G125)/12 -> 2.25
B126: 2017 | C126: April | D126: 333 | E126: 0 | F126: 9 | G126: 0 | H126: 0
B127: 2017 | C127: May | D127: 120 | E127: 0 | F127: 21 | G127: 0 | H127: 0
B128: 2017 | C128: June | D128: 396 | E128: 37 | F128: 48 | G128: 0 | H128: 3.083333333
B129: 2017 | C129: July | D129: 2 | E129: 0 | F129: 0 | G129: 0 | H129: 0
B130: 2017 | C130: August | D130: 912 | E130: 0 | F130: 22 | G130: 0 | H130: 0
B131: 2017 | C131: September | D131: 2460 | E131: 0 | F131: 22 | G131: 0 | H131: 0
B132: 2017 | C132: October | D132: 4743 | E132: 3 | F132: 86 | G132: 6 | H132: 0.75
B133: 2017 | C133: November | D133: 156 | E133: 0 | F133: 24 | G133: 0 | H133: 0
B134: 2017 | C134: December | D134: 1474 | E134: 0 | F134: 615 | G134: 0 | H134: =(E134+G134)/12 -> 0
B135: =CONCATENATE("Total ", LEFT(CRCP_y1,4)) -> Total 2017 | D135: =+SUM(D123:D134) -> 11158 | E135: =+SUM(E123:E134) -> 62 | F135: =+SUM(F123:F134) -> 1311 | G135: =+SUM(G123:G134) -> 11 | H135: =+SUM(H123:H134) -> 6.083333333
B136: =LEFT(CRCP_y2,4) -> 2018 | C136: January | D136: 479 | E136: 0 | F136: 106 | G136: 17 | H136: =(E136+G136)/12 -> 1.416666667
B137: 2018 | C137: February | D137: 416 | E137: 0 | F137: 406 | G137: 0 | H137: =(E137+G137)/12 -> 0
B138: 2018 | C138: March | D138: 27 | E138: 0 | F138: 8 | G138: 0 | H138: =(E138+G138)/12 -> 0
B139: 2018 | C139: April | D139: 45 | E139: 0 | F139: 0 | G139: 0 | H139: 0
B140: 2018 | C140: May | D140: 1860 | E140: 0 | F140: 24 | G140: 10 | H140: 0.8333333333
B141: 2018 | C141: June | D141: 18331 | E141: 45 | F141: 4 | G141: 0 | H141: 3.75
B142: 2018 | C142: July | D142: 14157 | E142: 2 | F142: 37 | G142: 1 | H142: 0.25
B143: 2018 | C143: August | D143: 11306 | E143: 12 | F143: 290 | G143: 239 | H143: 20.91666667
B144: 2018 | C144: September | D144: 8758 | E144: 42 | F144: 0 | G144: 0 | H144: 3.5
B145: 2018 | C145: October | D145: 17243 | E145: 0 | F145: 276 | G145: 19 | H145: 1.583333333
B146: 2018 | C146: November | D146: 17689 | E146: 2 | F146: 37 | G146: 0 | H146: 0.1666666667
B147: 2018 | C147: December | D147: 15101 | E147: 57 | F147: 3 | G147: 0 | H147: =(E147+G147)/12 -> 4.75
B148: =CONCATENATE("Total ", LEFT(CRCP_y2,4)) -> Total 2018 | D148: =+SUM(D136:D147) -> 105412 | E148: =+SUM(E136:E147) -> 160 | F148: =+SUM(F136:F147) -> 1191 | G148: =+SUM(G136:G147) -> 286 | H148: =+SUM(H136:H147) -> 37.16666667
B149: =LEFT(CRCP_y3,4) -> 2019 | C149: January | D149: 9345 | E149: 0 | F149: 215 | G149: 44 | H149: =(E149+G149)/12 -> 3.666666667
B150: 2019 | C150: February | D150: 8892 | E150: 0 | F150: 102 | G150: 0 | H150: =(E150+G150)/12 -> 0
B151: 2019 | C151: March | D151: 3484 | E151: 6 | F151: 17 | G151: 0 | H151: =(E151+G151)/12 -> 0.5
B152: 2019 | C152: April | D152: 2923 | E152: 430 | F152: 17 | G152: 0 | H152: 35.83333333
B153: 2019 | C153: May | D153: 4508 | E153: 416 | F153: 0 | G153: 0 | H153: 34.66666667
B154: 2019 | C154: June | D154: 5888 | E154: 1548 | F154: 90 | G154: 34 | H154: 131.8333333
B155: 2019 | C155: July | D155: 7331 | E155: 2963 | F155: 504 | G155: 337 | H155: 275
B156: 2019 | C156: August | D156: 5733 | E156: 41 | F156: 54 | G156: 21 | H156: 5.166666667
B157: 2019 | C157: September | D157: 4713 | E157: 2513 | F157: 57 | G157: 0 | H157: 209.4166667
B158: 2019 | C158: October | D158: 5972 | E158: 4288 | F158: 114 | G158: 20 | H158: 359
B159: 2019 | C159: November | D159: 2118 | E159: 103 | F159: 1676 | G159: 0 | H159: 8.583333333
B160: 2019 | C160: December | D160: 1335 | E160: 787 | F160: 391 | G160: 382 | H160: =(E160+G160)/12 -> 97.41666667
B161: =CONCATENATE("Total ", LEFT(CRCP_y3,4)) -> Total 2019 | D161: =+SUM(D149:D160) -> 62242 | E161: =+SUM(E149:E160) -> 13095 | F161: =+SUM(F149:F160) -> 3237 | G161: =+SUM(G149:G160) -> 838 | H161: =+SUM(H149:H160) -> 1161.083333
B162: =LEFT(CRCP_y4,4) -> 2020 | C162: January | D162: 1843 | E162: 968 | F162: 2039 | G162: 0 | H162: =(E162+G162)/12 -> 80.66666667
B163: 2020 | C163: February | D163: 1266 | E163: 384 | F163: 45607 | G163: 2 | H163: =(E163+G163)/12 -> 32.16666667
B164: 2020 | C164: March | D164: 3299 | E164: 507 | F164: 3983 | G164: 744 | H164: =(E164+G164)/12 -> 104.25
B165: 2020 | C165: April | D165: 1470 | E165: 730 | F165: 175 | G165: 175 | H165: 75.41666667
B166: 2020 | C166: May | D166: 1825 | E166: 134 | F166: 7 | G166: 0 | H166: 11.16666667
B167: 2020 | C167: June | D167: 1204 | E167: 658 | F167: 43 | G167: 1 | H167: 54.91666667
B168: 2020 | C168: July | D168: 5103 | E168: 4058 | F168: 10 | G168: 0 | H168: 338.1666667
B169: 2020 | C169: August | D169: 4785 | E169: 3194 | F169: 200 | G169: 24 | H169: 268.1666667
B170: 2020 | C170: September | D170: 1213 | E170: 705 | F170: 44 | G170: 44 | H170: 62.41666667
B171: 2020 | C171: October | D171: 10650 | E171: 9637 | F171: 122 | G171: 37 | H171: 806.1666667
B172: 2020 | C172: November | D172: 3189 | E172: 2551 | F172: 1847 | G172: 0 | H172: 212.5833333
B173: 2020 | C173: December | D173: 1148 | E173: 326 | F173: 54 | G173: 21 | H173: =(E173+G173)/12 -> 28.91666667
B174: =CONCATENATE("Total ", LEFT(CRCP_y4,4)) -> Total 2020 | D174: =+SUM(D162:D173) -> 36995 | E174: =+SUM(E162:E173) -> 23852 | F174: =+SUM(F162:F173) -> 54131 | G174: =+SUM(G162:G173) -> 1048 | H174: =+SUM(H162:H173) -> 2075

Sheet 8.2 Capex
B1: =(LOOKUP(dms_Model,dms_Model_List,dms_Worksheet_List)) -> REGULATORY REPORTING STATEMENT
B2: =INDEX(dms_TradingNameFull_List,MATCH(dms_TradingName,dms_TradingName_List)) -> Queensland Electricity Transmission Corporation Limited trading as Powerlink Queensland
B3: =IF(SUM(dms_SingleYear_Model)>0,CRY,CONCATENATE(FRCP_y1," to ",dms_MultiYear_FinalYear_Result)) -> 2022-23 to 2026-27
B4: 8.2 - CAPEX
B6: 8.2.7 - IMMEDIATE EXPENSING OF CAPEX
B7: ESTIMATED - AS COMMISSIONED
C8: =CONCATENATE("($0's, real ", dms_DollarReal,")") -> ($0's, real June 2022)
C9: =dms_y1 -> 2020-21 | D9: =dms_y2 -> 2021-22 | E9: =dms_y3 -> 2022-23 | F9: =dms_y4 -> 2023-24 | G9: =dms_y5 -> 2024-25 | H9: =dms_y6 -> 2025-26 | I9: =dms_y7 -> 2026-27
B10: Transmission Lines - Overhead | C10: 1530151.442 | D10: 266135.5384 | E10: 129965.0803 | F10: 5542300.503 | G10: 2202491.354 | H10: 1852397.292 | I10: 1238410.412
B11: Transmission Lines - Underground | C11: 16588.7706 | D11: 0 | E11: 0 | F11: 0 | G11: 381773.9257 | H11: 94784.23634 | I11: 4092138.754
B12: Transmission Lines - Refit | C12: 10659522.69 | D12: 262524.6641 | E12: 0 | F12: 1149005.955 | G12: 4302196.77 | H12: 0 | I12: 0
B13: Substations Primary Plant | C13: 10320857.65 | D13: 6381921.184 | E13: 9312770.41 | F13: 9185996.018 | G13: 7987345.737 | H13: 2075093.738 | I13: 1532985.908
B14: Substations Secondary Systems | C14: 6784217.572 | D14: 5629859.111 | E14: 5649078.553 | F14: 5328891.213 | G14: 2852597.547 | H14: 2085288.126 | I14: 6525111.182
B15: Communications Other Assets | C15: 1546326.715 | D15: 1420056.598 | E15: 485041.0786 | F15: 706453.0262 | G15: 153311.2675 | H15: 1752460.241 | I15: 3790651.379
B16: Comms - Civil Works | C16: 0 | D16: 0 | E16: 0 | F16: 0 | G16: 0 | H16: 0 | I16: 0
B17: Network Switching Centres | C17: 375434.0401 | D17: 490517.5778 | E17: 4981702.129 | F17: 158794.9939 | G17: 158887.2555 | H17: 158399.0231 | I17: 301878.2483
B18: Land | C18: 0 | D18: 0 | E18: 0 | F18: 0 | G18: 0 | H18: 0 | I18: 0
B19: Easements | C19: 11193.16694 | D19: 306631.8421 | E19: 0 | F19: 0 | G19: 0 | H19: 152361.1838 | I19: 149779.288
B20: Commercial Buildings | C20: 4233.075444 | D20: 184505.9362 | E20: 411677.6259 | F20: 2533291.48 | G20: 1336632.73 | H20: 54375.17723 | I20: 4529.407488
B21: Computer Equipment | C21: 1973434.074 | D21: 1058703.579 | E21: 797648.8521 | F21: 255227.8912 | G21: 116210.6077 | H21: 183346.3227 | I21: 360833.4663
B22: Office Furniture & Miscellaneous | C22: 0 | D22: 0 | E22: 0 | F22: 0 | G22: 0 | H22: 0 | I22: 0
B23: Office Machines | C23: 0 | D23: 0 | E23: 0 | F23: 0 | G23: 0 | H23: 0 | I23: 0
B24: Vehicles | C24: 515047.5492 | D24: 362852.2482 | E24: 332494.6556 | F24: 243486.1888 | G24: 339219.5615 | H24: 453237.906 | I24: 440400.5486
B25: Moveable Plant | C25: 106983.5406 | D25: 158939.9771 | E25: 159299.3618 | F25: 159467.2947 | G25: 159395.3673 | H25: 158665.4417 | I25: 159633.6805
B26: Insurance Spares | C26: 0 | D26: 0 | E26: 0 | F26: 0 | G26: 0 | H26: 0 | I26: 0
B27: In-house software | C27: 0 | D27: 0 | E27: 1163961.61 | F27: 1563985.33 | G27: 1050647.517 | H27: 1182412.013 | I27: 770579.2031
B60: Total | C60: =SUM(C10:C59) -> 33843990.29 | D60: =SUM(D10:D59) -> 16522648.26 | E60: =SUM(E10:E59) -> 23423639.36 | F60: 26826899.89 | G60: 21040709.64 | H60: =SUM(H10:H59) -> 10202820.7 | I60: =SUM(I10:I59) -> 19366931.48
